Workbook

Sheet Cover
A1: Camira Group Greenhouse Gas Emissions - Reporting Process and Workbook

Sheet GHG Reporting Process
C1: Greenhouse Gas Emission Reporting Process
B3: Process Name: | D3: Greenhouse Gas Emission Reporting | G3: Process Number: | H3: CG99.4.XX
B4: Process Purpose: | D4: Address stakeholder reporting requirements | G4: Process Level: | H4: Level 4
B5: Process Owner: | D5: Group Risk & Compliance Manager | G5: Date: | H5: 2022-01-31
B6: Phase | C6: Stakeholder | D6: Risk & Compliance | E6: Camira Entity | F6: Notes | H6: Level 4 Documents
C42: Additional Information and Comments
C43: Scope 1 emissions are direct greenhouse (GHG) emissions that occur from sources that are controlled or owned by an organisation (e.g., emissions associated with fuel combustion in boilers, furnaces, vehicles). Scope 2 emissions include those from electricity and other sources of energy purchased from your local utility that is not combusted on-site. Examples include electricity, steam, and chilled or hot water. To generate this energy, utilities combust coal, natural gas, and other fossil fuels, emitting carbon dioxide, methane, and nitrous oxide in the process. Scope 3 emissions are the result of activities from assets not owned or controlled by the reporting organization, but that the organization indirectly impacts in its value chain, both upstream and downstream. Scope 3 emissions often represent the majority of an organization’s total GHG emissions.

Sheet GHG Questionnaire
B1: Greenhouse Gas Emission Questionnaire
B3: General information | G3: Intensity ratio metrics | I3: Unit | J3: Total
B4: Reporting year | G4: Turnover
B5: Entity | G5: Production / sales
B6: Location | G6: Headcount | I6: N/A
B7: Contact | G7: Date reported
B9: Scope | C9: Question | F9: Answer | I9: Comments
A10: Camira Emissions | B10: 1.1 | C10: Did the Camira entity use any gases, oils, coal etc in the reporting year?
B11: 1.2 | C11: Did employees of the Camira entity use Camira owned/leased vehicles in the reporting year?
B12: 1.3 | C12: Did the Camira entity use any air conditioning or fire suppression systems in the reporting year?
B13: 2 | C13: Did the Camira entity purchase energy such as electricity or steam in the reporting year?
A14: Supplier Emissions | B14: 3.1 | C14: Did the Camira entity purchase goods or services in the reporting year?
B15: 3.2 | C15: Did the Camira entity undertake any capital expenditure in the reporting year? | D15: Did the Camira entity undertake any capital expenditure? | E15: Did the Camira entity undertake any capital expenditure?
B16: 3.3 | C16: Did any supplier sell energy to the Camira entity in the reporting year? | D16: Did any supplier sell energy to the Camira entity? | E16: Did any supplier sell energy to the Camira entity?
B17: 3.4 | C17: Did any supplier use their own transport in the reporting year? | D17: Did any supplier use their own transport? | E17: Did any supplier use their own transport?
B18: 3.5 | C18: Did any supplier treat waste on behalf of the reporting company in the reporting year? | D18: Did any supplier treat waste on behalf of the reporting company? | E18: Did any supplier treat waste on behalf of the reporting company?
B19: 3.6 | C19: Did the reporting company lease any assets from a supplier in the reporting year? | D19: Did the reporting company lease any assets from a supplier? | E19: Did the reporting company lease any assets from a supplier?
A20: Employee Emissions | B20: 3.7 | C20: Did any employees of the Camira entity conduct busines travel in a vehicle not owned or leased by Camira in the reporting year? | D20: Did any employees of the reporting company conduct busines travel in a vehicle not owned or leased by the reporting company? | E20: Did any employees of the reporting company conduct busines travel in a vehicle not owned or leased by the reporting company?
B21: 3.8 | C21: Did employees of the Camira entity commute (at their own expense) to a workplace of the Camira in the reporting year? | D21: Did employees of the reporting company commute (at their own expense) to a workplace of the reporting company? | E21: Did employees of the reporting company commute (at their own expense) to a workplace of the reporting company?
A22: Customer Emissions | B22: 3.9 | C22: Did the customer use transportation to move goods supplied by Camira to their premises or onwards to the next actor in their supply chain in the reporting year? | D22: Did the customer use transportation to move goods supplied by Camira to their premises or onwards to the next actor in their supply chain? | E22: Did the customer use transportation to move goods supplied by Camira to their premises or onwards to the next actor in their supply chain?
B23: 3.1 | C23: Did the customer use energy in their processes in the reporting year? | D23: Did the customer use energy in their processes? | E23: Did the customer use energy in their processes?
B24: 3.11 | C24: Does the use of the sold product create emissions while the customer is using it during its product lifecycle? | D24: Does the use of the sold product create emissions while the customer is using it? | E24: Does the use of the sold product create emissions while the customer is using it?
B25: 3.12 | C25: Does the product require waste treament at the end of its life? | D25: Does the product require waste treament at the end of its life? | E25: Does the product require waste treament at the end of its life?
B26: 3.13 | C26: Did the Camira entity lease any assets to a customer in the reporting year? | D26: Does the Camira entity lease any assets to a customer? | E26: Does the Camira entity lease any assets to a customer?
B27: 3.14 | C27: Did the Camira entity operate any franchise in the reporting year? | D27: Does the Camira entity operate any franchise? | E27: Does the Camira entity operate any franchise?
B28: 3.15 | C28: Did the Camira entity make any equity investments, debt investments, project finance, managed investments and client services, in the reporting year? | D28: Has the Camira entity made any equity investments, debt investments, project finance, managed investments and client services? | E28: Has the Camira entity made any equity investments, debt investments, project finance, managed investments and client services?

Sheet GHG SoA
B2: Greenhouse Gas Emission Statement of Applicability
Q3: Statement of Applicability
B4: General Information | H4: Reporting | Q4: Scope 1 | X4: Scope 2 | AA4: Scope 3
H5: Scope of reporting | K5: Intensity ratio 1 | L5: Intensity ratio 2 | N5: Intensity Ratio 3 | P5: Intensity Ratio 4 | Q5: Stationary combustion | S5: Mobile combustion | U5: Fugitive emissions | X5: Purchased energy | AA5: Supplier energy | AG5: Employee energy | AI5: Customer energy
Q6: Scope 1.1 | S6: Scope 1.2 | U6: Scope 1.3 | X6: Scope 2.1 | AA6: Scope 3.1 | AB6: Scope 3.2 | AC6: Scope 3.3 | AD6: Scope 3.4 | AE6: Scope 3.5 | AF6: Scope 3.6 | AG6: Scope 3.7 | AH6: Scope 3.8 | AI6: Scope 3.9 | AJ6: Scope 3.10 | AK6: Scope 3.11 | AL6: Scope 3.12 | AM6: Scope 3.13 | AN6: Scope 3.14 | AO6: Scope 3.15
B7: Reporting year | C7: Entity | D7: Location | E7: Authority | F7: Contact | G7: Calculation 1 | H7: Reporting - Customer requirements (Steelcase) | I7: Reporting - Legal requirements (SECR) | J7: Reporting - Business requirements (Sustainability snapshot) | K7: Headcount | L7: Currency | M7: Turnover | N7: Unit | O7: Production Volume | P7: Sqm | Q7: Site has facilities that burns fuel on site | R7: Stationary combustion comments | S7: Site owns or leases vehicles (road and non-road) | T7: Mobile combustion comments | U7: Site has air conditioning facilities | V7: Site has fire surpression facilities | W7: Fugitive emission comments | X7: Site purchases electricity | Y7: Site purchases steam | Z7: Purchased energy comments | AA7: Did the Camira entity purchase goods or services? | AB7: Did the Camira entity undertake any capital expenditure? | AC7: Did any supplier sell energy to the Camira entity? | AD7: Did any supplier use their own transport? | AE7: Did any supplier treat waste on behalf of the reporting company? | AF7: Did the reporting company lease any assets from a supplier? | AG7: Did any employees of the reporting company conduct busines travel in a vehicle not owned or leased by the reporting company? | AH7: Did employees of the reporting company commute (at their own expense) to a workplace of the reporting company? | AI7: Did the customer use transportation to move goods supplied by Camira to their premises or onwards to the next actor in their supply chain? | AJ7: Did the customer use energy in their processes? | AK7: Does the use of the sold product create emissions while the customer is using it? | AL7: Does the product require waste treament at the end of its life? | AM7: Does the Camira entity lease any assets to a customer? | AN7: Does the Camira entity operate any franchise? | AO7: Has the Camira entity made any equity investments, debt investments, project finance, managed investments and client services?
B8: 2021 | C8: Camira Fabrics Limited | D8: Mirfield | E8: DBEIS/DEFRA | F8: N Walker | G8: =IF(AND(Table25[[#This Row],[Reporting - Customer requirements (Steelcase)]]="No",Table25[[#This Row],[Reporting - Legal requirements (SECR)]]="No",Table25[[#This Row],[Reporting - Business requirements (Sustainability snapshot)]]="No"),"No","Yes") -> Yes | H8: Yes | I8: Yes | J8: Yes | K8: 77 | L8: GBP | M8: 57444000 | N8: m | O8: 0 | P8: 1323 | Q8: Not relevant, justification provided | R8: No gas supply to site | S8: Relevant, calculated | U8: Not relevant, justification provided | V8: Relevant, not yet calculated | W8: No AC, FS in ICT comms room | X8: Relevant, calculated | Y8: Not relevant, justification provided | Z8: No steam purchased | AA8: Relevant, not calculated, justification provided | AB8: Relevant, not calculated, justification provided | AC8: Relevant, not calculated, justification provided | AD8: Relevant, not calculated, justification provided | AE8: Relevant, not calculated, justification provided | AF8: Not relevant, justification provided | AG8: Relevant, not yet calculated | AH8: Relevant, not calculated, justification provided | AI8: Not relevant, justification provided | AJ8: Not relevant, justification provided | AK8: Not relevant, justification provided | AL8: Not relevant, justification provided | AM8: Not relevant, justification provided | AN8: Not relevant, justification provided | AO8: Not relevant, justification provided
B9: 2021 | C9: Camira Fabrics Limited | D9: Meltham | E9: DBEIS/DEFRA | F9: N Walker | G9: =IF(AND(Table25[[#This Row],[Reporting - Customer requirements (Steelcase)]]="No",Table25[[#This Row],[Reporting - Legal requirements (SECR)]]="No",Table25[[#This Row],[Reporting - Business requirements (Sustainability snapshot)]]="No"),"No","Yes") -> Yes | H9: Yes | I9: Yes | J9: Yes | K9: 185 | L9: GBP | M9: 0 | N9: m | O9: 8413651 | P9: 31776 | Q9: Relevant, calculated | R9: Gas | S9: Relevant, not yet calculated | U9: Relevant, not yet calculated | V9: Relevant, not yet calculated | W9: AC and FS in ICT comms room | X9: Relevant, calculated | Y9: Not relevant, justification provided | Z9: No steam purchased | AA9: Relevant, not calculated, justification provided | AB9: Relevant, not calculated, justification provided | AC9: Relevant, not calculated, justification provided | AD9: Relevant, not calculated, justification provided | AE9: Relevant, not calculated, justification provided | AF9: Relevant, not calculated, justification provided | AG9: Relevant, not yet calculated | AH9: Relevant, not calculated, justification provided | AI9: Relevant, not calculated, justification provided | AJ9: Relevant, not calculated, justification provided | AK9: Not relevant, justification provided | AL9: Relevant, not calculated, justification provided | AM9: Not relevant, justification provided | AN9: Not relevant, justification provided | AO9: Not relevant, justification provided
B10: 2021 | C10: Camira Fabrics Limited | D10: Nottingham | E10: DBEIS/DEFRA | F10: D Hill | G10: =IF(AND(Table25[[#This Row],[Reporting - Customer requirements (Steelcase)]]="No",Table25[[#This Row],[Reporting - Legal requirements (SECR)]]="No",Table25[[#This Row],[Reporting - Business requirements (Sustainability snapshot)]]="No"),"No","Yes") -> Yes | H10: Yes | I10: Yes | J10: Yes | K10: 15 | L10: GBP | M10: 0 | N10: unit | O10: 242055 | P10: 1200 | Q10: Relevant, not yet calculated | R10: Gas | S10: Relevant, calculated | T10: Company car Darren and Camira delivery van | U10: Not relevant, justification provided | V10: Not relevant, justification provided | W10: No AC or FS | X10: Relevant, not yet calculated | Y10: Not relevant, justification provided | Z10: No steam purchased | AA10: Relevant, not calculated, justification provided | AB10: Relevant, not calculated, justification provided | AC10: Relevant, not calculated, justification provided | AD10: Relevant, not calculated, justification provided | AE10: Relevant, not calculated, justification provided | AF10: Not relevant, justification provided | AG10: Relevant, not yet calculated | AH10: Relevant, not calculated, justification provided | AI10: Relevant, not calculated, justification provided | AJ10: Relevant, not calculated, justification provided | AK10: Not relevant, justification provided | AL10: Relevant, not calculated, justification provided | AM10: Not relevant, justification provided | AN10: Not relevant, justification provided | AO10: Not relevant, justification provided
B11: 2021 | C11: Camira Fabrics Limited | D11: London | E11: DBEIS/DEFRA | F11: N Walker | G11: =IF(AND(Table25[[#This Row],[Reporting - Customer requirements (Steelcase)]]="No",Table25[[#This Row],[Reporting - Legal requirements (SECR)]]="No",Table25[[#This Row],[Reporting - Business requirements (Sustainability snapshot)]]="No"),"No","Yes") -> No | H11: No | I11: No | J11: No | L11: GBP
B12: 2021 | C12: Camira Fabrics Limited | D12: Denmark | F12: L Cross | G12: =IF(AND(Table25[[#This Row],[Reporting - Customer requirements (Steelcase)]]="No",Table25[[#This Row],[Reporting - Legal requirements (SECR)]]="No",Table25[[#This Row],[Reporting - Business requirements (Sustainability snapshot)]]="No"),"No","Yes") -> No | H12: No | I12: No | J12: No | L12: EUR
B13: 2021 | C13: Camira Transport Fabrics Limited | D13: Mirfield | E13: DBEIS/DEFRA | F13: N Walker | G13: =IF(AND(Table25[[#This Row],[Reporting - Customer requirements (Steelcase)]]="No",Table25[[#This Row],[Reporting - Legal requirements (SECR)]]="No",Table25[[#This Row],[Reporting - Business requirements (Sustainability snapshot)]]="No"),"No","Yes") -> No | H13: No | I13: No | J13: No | L13: GBP
B14: 2021 | C14: Camira Transport Fabrics Limited | D14: Meltham | E14: DBEIS/DEFRA | F14: N Walker | G14: =IF(AND(Table25[[#This Row],[Reporting - Customer requirements (Steelcase)]]="No",Table25[[#This Row],[Reporting - Legal requirements (SECR)]]="No",Table25[[#This Row],[Reporting - Business requirements (Sustainability snapshot)]]="No"),"No","Yes") -> No | H14: No | I14: No | J14: No | L14: GBP
B15: 2021 | C15: Camira Yarns Limited | D15: Birkby | E15: DBEIS/DEFRA | F15: R Hutchinson | G15: =IF(AND(Table25[[#This Row],[Reporting - Customer requirements (Steelcase)]]="No",Table25[[#This Row],[Reporting - Legal requirements (SECR)]]="No",Table25[[#This Row],[Reporting - Business requirements (Sustainability snapshot)]]="No"),"No","Yes") -> Yes | H15: Yes | I15: No | J15: Yes | K15: 98 | L15: GBP | M15: 5999291 | N15: kg | O15: 723698 | P15: 12050 | Q15: Relevant, calculated | R15: Gas | S15: Not relevant, justification provided | U15: Not relevant, justification provided | V15: Not relevant, justification provided | W15: No FS | X15: Relevant, calculated | Y15: Not relevant, justification provided | Z15: No steam purchased | AA15: Relevant, not calculated, justification provided | AB15: Relevant, not calculated, justification provided | AC15: Relevant, not calculated, justification provided | AD15: Relevant, not calculated, justification provided | AE15: Relevant, not calculated, justification provided | AF15: Relevant, not calculated, justification provided | AG15: Relevant, not yet calculated | AH15: Relevant, not calculated, justification provided | AI15: Relevant, not calculated, justification provided | AJ15: Relevant, not calculated, justification provided | AK15: Not relevant, justification provided | AL15: Relevant, not calculated, justification provided | AM15: Not relevant, justification provided | AN15: Not relevant, justification provided | AO15: Not relevant, justification provided
B16: 2021 | C16: Holmfirth Dyers Limited | D16: Holmfirth | E16: DBEIS/DEFRA | F16: D Ducker | G16: =IF(AND(Table25[[#This Row],[Reporting - Customer requirements (Steelcase)]]="No",Table25[[#This Row],[Reporting - Legal requirements (SECR)]]="No",Table25[[#This Row],[Reporting - Business requirements (Sustainability snapshot)]]="No"),"No","Yes") -> Yes | H16: Yes | I16: No | J16: Yes | K16: 58 | L16: GBP | M16: 7226000 | N16: m | O16: 5563730 | P16: 3346 | Q16: Relevant, calculated | R16: Gas | S16: Relevant, not yet calculated | U16: Relevant, not yet calculated | V16: Not relevant, justification provided | X16: Relevant, calculated | Y16: Not relevant, justification provided | Z16: No steam purchased | AA16: Relevant, not calculated, justification provided | AB16: Relevant, not calculated, justification provided | AC16: Relevant, not calculated, justification provided | AD16: Relevant, not calculated, justification provided | AE16: Relevant, not calculated, justification provided | AF16: Relevant, not calculated, justification provided | AG16: Relevant, not yet calculated | AH16: Relevant, not calculated, justification provided | AI16: Relevant, not calculated, justification provided | AJ16: Relevant, not calculated, justification provided | AK16: Not relevant, justification provided | AL16: Relevant, not calculated, justification provided | AM16: Not relevant, justification provided | AN16: Not relevant, justification provided | AO16: Not relevant, justification provided
B17: 2021 | C17: UAB Camira Fabrics | D17: Lithuania | F17: M Rucinskas | G17: =IF(AND(Table25[[#This Row],[Reporting - Customer requirements (Steelcase)]]="No",Table25[[#This Row],[Reporting - Legal requirements (SECR)]]="No",Table25[[#This Row],[Reporting - Business requirements (Sustainability snapshot)]]="No"),"No","Yes") -> Yes | H17: No | I17: No | J17: Yes | K17: 193 | L17: GBP | M17: 11792000 | N17: m | O17: 678719 | P17: 8050 | Q17: Relevant, not yet calculated | R17: Oil | S17: Relevant, not yet calculated | T17: 1 leased car | U17: Relevant, not yet calculated | V17: Not relevant, justification provided | X17: Relevant, calculated | Y17: Not relevant, justification provided | Z17: No steam purchased | AA17: Relevant, not calculated, justification provided | AB17: Relevant, not calculated, justification provided | AC17: Relevant, not calculated, justification provided | AD17: Relevant, not calculated, justification provided | AE17: Relevant, not calculated, justification provided | AF17: Relevant, not calculated, justification provided | AG17: Relevant, not yet calculated | AH17: Relevant, not calculated, justification provided | AI17: Relevant, not calculated, justification provided | AJ17: Relevant, not calculated, justification provided | AK17: Not relevant, justification provided | AL17: Relevant, not calculated, justification provided | AM17: Not relevant, justification provided | AN17: Not relevant, justification provided | AO17: Not relevant, justification provided
B18: 2021 | C18: Camira Fabrics GmbH | D18: Germany | F18: R Rupp | G18: =IF(AND(Table25[[#This Row],[Reporting - Customer requirements (Steelcase)]]="No",Table25[[#This Row],[Reporting - Legal requirements (SECR)]]="No",Table25[[#This Row],[Reporting - Business requirements (Sustainability snapshot)]]="No"),"No","Yes") -> No | H18: No | I18: No | J18: No | L18: EUR
B19: 2021 | C19: Camira Fabrics Turkey Tekstil Limited Sirketi | D19: Turkey | F19: U Usta | G19: =IF(AND(Table25[[#This Row],[Reporting - Customer requirements (Steelcase)]]="No",Table25[[#This Row],[Reporting - Legal requirements (SECR)]]="No",Table25[[#This Row],[Reporting - Business requirements (Sustainability snapshot)]]="No"),"No","Yes") -> No | H19: No | I19: No | J19: No | L19: EUR
B20: 2021 | C20: Camira Group, Inc | D20: Grand Rapids | E20: EPA | F20: R Akselberg | G20: =IF(AND(Table25[[#This Row],[Reporting - Customer requirements (Steelcase)]]="No",Table25[[#This Row],[Reporting - Legal requirements (SECR)]]="No",Table25[[#This Row],[Reporting - Business requirements (Sustainability snapshot)]]="No"),"No","Yes") -> Yes | H20: Yes | I20: No | J20: Yes | K20: 22 | L20: GBP | M20: 10547000 | N20: m | O20: 0 | P20: 1811 | Q20: Relevant, calculated | R20: Gas | S20: Relevant, calculated | T20: 2 cars. | U20: Relevant, not yet calculated | V20: Not relevant, justification provided | W20: AC in office, no FS | X20: Relevant, calculated | Y20: Not relevant, justification provided | Z20: No steam purchased | AA20: Relevant, not calculated, justification provided | AB20: Relevant, not calculated, justification provided | AC20: Relevant, not calculated, justification provided | AD20: Relevant, not calculated, justification provided | AE20: Relevant, not calculated, justification provided | AF20: Not relevant, justification provided | AG20: Relevant, not yet calculated | AH20: Relevant, not calculated, justification provided | AI20: Relevant, not calculated, justification provided | AJ20: Relevant, not calculated, justification provided | AK20: Not relevant, justification provided | AL20: Relevant, not calculated, justification provided | AM20: Not relevant, justification provided | AN20: Not relevant, justification provided | AO20: Not relevant, justification provided
B21: 2021 | C21: Camira Group, Inc | D21: Chicago | E21: EPA | F21: R Akselberg | G21: =IF(AND(Table25[[#This Row],[Reporting - Customer requirements (Steelcase)]]="No",Table25[[#This Row],[Reporting - Legal requirements (SECR)]]="No",Table25[[#This Row],[Reporting - Business requirements (Sustainability snapshot)]]="No"),"No","Yes") -> No | H21: No | I21: No | J21: No | L21: USD
B22: 2021 | C22: Luna Textiles, Inc | D22: San Francisco | E22: EPA | F22: R Akselberg | G22: =IF(AND(Table25[[#This Row],[Reporting - Customer requirements (Steelcase)]]="No",Table25[[#This Row],[Reporting - Legal requirements (SECR)]]="No",Table25[[#This Row],[Reporting - Business requirements (Sustainability snapshot)]]="No"),"No","Yes") -> No | H22: No | I22: No | J22: No | L22: USD
B23: 2021 | C23: Camira Fabrics (Shanghai) Limited | D23: Shanghai | F23: A Gauthon | G23: =IF(AND(Table25[[#This Row],[Reporting - Customer requirements (Steelcase)]]="No",Table25[[#This Row],[Reporting - Legal requirements (SECR)]]="No",Table25[[#This Row],[Reporting - Business requirements (Sustainability snapshot)]]="No"),"No","Yes") -> No | H23: No | I23: No | J23: No | L23: CNY
B24: 2021 | C24: Camira Group Pty Limited | D24: Australia | F24: R Peterson | G24: =IF(AND(Table25[[#This Row],[Reporting - Customer requirements (Steelcase)]]="No",Table25[[#This Row],[Reporting - Legal requirements (SECR)]]="No",Table25[[#This Row],[Reporting - Business requirements (Sustainability snapshot)]]="No"),"No","Yes") -> No | H24: No | I24: No | J24: No | L24: AUD

Sheet GHG 2021 Reporting Form (hidden)
A1: Camira Internal Emissions Reporting Form
A3: General information | H3: Dashboard - tco2e
A4: Reference year | H4: Total Emissions | J4: =SUM(K15+E43+E60) -> 
A5: Date reported
A6: Facility | H6: Turnover intensity ratio | J6: =IFERROR(J4/D9,0) -> 0
A7: Contact person
A8: Intensity ratio metrics | C8: Unit | D8: Total | H8: Production intensity ratio | J8: =IFERROR(J4/D10,0) -> 0
A9: Turnover
A10: Production / sales | H10: Headcount intensity ratio | J10: =IFERROR(J4/D11,0) -> 0
A11: Headcount | C11: N/A
A13: Scope 1 - direct GHG emissions | K13: Total Scope Emissions Calculation (tCO2e)
A15: Combustion of fuel and operation of facilities including: gas, fuel in leased/owned vehicles, and fugitive emissions from air conditioning. | K15: =SUM(#REF!+#REF!+#REF!) -> 
A16: Emission type | B16: Source | C16: Data | D16: Conversion factor (kWh) | E16: Consumption (kWh) | F16: Conversion factor (co2e) | G16: Emission calculation (tco2e)
B19: Stationary combustion i.e. purchased natural gas
C20: 10 | D20: N/A | E20: =C20 -> 10
D21: N/A | E21: 0
D22: N/A | E22: 0
D23: N/A | E23: 0
D24: N/A | E24: 0
D25: N/A | E25: 0
B26: Mobile combustion i.e. petrol and diesel used in vehicles owned/leased by Camira
G27: 1
B33: Fugitive emissions i.e. refrigerant losses
A41: Scope 2 – energy indirect emissions | E41: Total Scope Emissions Calculation (tCO2e)
A43: Electricity or steam purchased for our own use. | E43: =SUM(F50:F55) -> 0
A46: Source | B46: Data | C46: Conversion factor (kWh) | D46: Consumption (kWh) | E46: Conversion factor (co2e) | F46: Emission calculation (tco2e)
A49: Location Based method i.e. electricity purchased from energy provider
A58: Scope 3 – other indirect emissions | E58: Total Scope Emissions Calculation (tCO2e)
A60: Company-financed business travel in rental or employee-owned vehicles. | E60: =SUM(F67:F71) -> 0
A63: Source | B63: Data | C63: Conversion factor (kWh) | D63: Consumption (kWh) | E63: Conversion factor (co2e) | F63: Emission calculation (tco2e)
A66: Mobile combustion i.e. petrol or diesel used in vehicles not owned or leased by Camira

Sheet GHG Summary Report
B2: Greenhouse Gas Emission Report 2021
B5: Total Emissions Chart - tCO2e
F6: UK - DBEIS/DEFRA | P6: EUR | R6: US - EPA
F7: Camira Fabrics Limited | L7: Camira Yarns Limited | N7: Holmfirth Dyers Limited | P7: UAB Camira Fabrics | R7: Camira Group, Inc
D8: Scopes | F8: Mirfield | H8: Meltham | J8: Nottingham | L8: Birkby | N8: Holmfirth | P8: Lithuania | R8: Grand Rapids | T8: Total tCO2e
B9: Scope 1 | C9: 1.1 | D9: Stationary Combustion | H9: ='1.1'!Z10 -> 1034.149588 | J9: ='1.1'!Z13 -> 3.46319519 | L9: ='1.1'!Z16 -> 195.5576039 | N9: ='1.1'!Z19 -> 2782.616248 | P9: ='1.1'!Z24 -> 38.50892852 | R9: ='1.1'!Z28 -> 2.95365881 | T9: =SUM(F9:S9) -> 4057.249222
C10: 1.2 | D10: Mobile Sources | F10: ='1.2'!Z8 -> 11.02572945 | H10: ='1.2'!Z11 -> 0 | J10: ='1.2'!Z14 -> 0.07232978294 | N10: ='1.2'!Z21 -> 93.5609106 | P10: ='1.2'!Z24 -> 0.4755477629 | R10: ='1.2'!Z33 -> 10.31182773 | T10: =SUM(F10:S10) -> 115.4463453
C11: 1.3 | D11: Refrigeration Equipment | F11: ='1.3'!Z7 -> 0 | H11: ='1.3'!Z10 -> 0 | N11: ='1.3'!Z19 -> 5.3244 | P11: ='1.3'!Z23 -> 0 | R11: ='1.3'!Z27 -> 0 | T11: 5.3244
C12: 1.4 | D12: Fire Suppression | F12: ='1.4'!Z7 -> 0 | H12: ='1.4'!Z10 -> 0 | T12: 0
C13: 1.5 | D13: Purchased Gases | T13: 0
B14: Scope 2 | C14: 2.1 | D14: Purchased Electricity | F14: ='2.1'!Z7 -> 10.48782802 | H14: ='2.1'!Z10 -> 903.4112798 | J14: ='2.1'!Z14 -> 46.55483881 | L14: ='2.1'!Z17 -> 430.9075979 | N14: ='2.1'!Z20 -> 402.2303081 | P14: ='2.1'!Z24 -> 347.3996952 | R14: ='2.1'!Z28 -> 26.69189347 | T14: 2167.683441
C15: 2.2 | D15: Purchased Steam | T15: 0
B16: Scope 3 | C16: 3.1 | D16: Supplier Scope 1 & 2 - Goods & Services | T16: 0
C17: 3.2 | D17: Supplier Scope 1 & 2 - Capital Spend | T17: 0
C18: 3.3 | D18: Supplier Scope 1 & 2 - Energy Provider | T18: 0
C19: 3.4 | D19: Supplier Scope 1 & 2 - Transportation Provider | T19: 0
C20: 3.5 | D20: Supplier Scope 1 & 2 - Waste Provider | T20: 0
C21: 3.8 | D21: Supplier Scope 1 & 2 - Leased Asset Provider | T21: 0
C22: 3.6 | D22: Employee Business Travel | F22: ='3.6'!Z8 -> 0.626068 | H22: ='3.6'!Z12 -> 0.62287376 | J22: ='3.6'!Z15 -> 0 | L22: ='3.6'!Z19 -> 0.23895376 | N22: ='3.6'!Z22 -> 0 | P22: ='3.6'!Z28 -> 0.21743428 | R22: ='3.6'!Z32 -> 0.63224056 | T22: 2.33757036
C23: 3.7 | D23: Employee Commuting | T23: 0
C24: 3.9 | D24: Customer Scope 1 & 2 - Transport | T24: 0
C25: 3.1 | D25: Customer Scope 1 & 2 - Energy | T25: 0
C26: 3.11 | D26: Customer Scope 1 & 2 - Product Use | T26: 0
C27: 3.12 | D27: Customer Scope 1 & 2 - Product Waste | T27: 0
C28: 3.13 | D28: Customer Scope 1 & 2 - Leased Asset | T28: 0
C29: 3.14 | D29: Customer Scope 1 & 2 - Franchise | T29: 0
C30: 3.15 | D30: Customer Scope 1 & 2 - Investment | T30: 0
B31: Total Scope 1 tCO2e - Location | F31: =SUM(F9:G13) -> 11.02572945 | H31: =SUM(H9:I13) -> 1034.149588 | J31: =SUM(J9:K13) -> 3.535524973 | L31: =SUM(L9:M13) -> 195.5576039 | N31: =SUM(N9:O13) -> 2881.501559 | P31: =SUM(P9:Q13) -> 38.98447629 | R31: =SUM(R9:S13) -> 13.26548654 | T31: =SUM(F31:S31) -> 4178.019968
B32: Total Scope 2 tCO2e - Location | F32: =SUM(F14:G15) -> 10.48782802 | H32: =SUM(H14:I15) -> 903.4112798 | J32: =SUM(J14:K15) -> 46.55483881 | L32: =SUM(L14:M15) -> 430.9075979 | N32: =SUM(N14:O15) -> 402.2303081 | P32: =SUM(P14:Q15) -> 347.3996952 | R32: =SUM(R14:S15) -> 26.69189347 | T32: =SUM(F32:S32) -> 2167.683441
B33: Total Scope 3 tCO2e - Location | F33: =SUM(F16:G30) -> 0.626068 | H33: =SUM(H16:I30) -> 0.62287376 | J33: =SUM(J16:K30) -> 0 | L33: =SUM(L16:M30) -> 0.23895376 | N33: =SUM(N16:O30) -> 0 | P33: =SUM(P16:Q30) -> 0.21743428 | R33: =SUM(R16:S30) -> 0.63224056 | T33: =SUM(F33:S33) -> 2.33757036
B34: Total tCO2e - Location | F34: =SUM(F9:G30) -> 22.13962547 | H34: =SUM(H9:I30) -> 1938.183742 | J34: =SUM(J9:K30) -> 50.09036378 | L34: =SUM(L9:M30) -> 626.7041556 | N34: =SUM(N9:O30) -> 3283.731867 | P34: =SUM(P9:Q30) -> 386.6016058 | R34: =SUM(R9:S30) -> 40.58962057 | T34: =SUM(F34:S34) -> 6348.040979
B37: Intensity Ratio's
F38: Camira Fabrics Limited | L38: Camira Yarns Limited | N38: Holmfirth Dyers Limited | P38: UAB Camira Fabrics | R38: Camira Group, Inc
F39: Mirfield | H39: Meltham | J39: Nottingham | L39: Birkby | N39: Holmfirth | P39: Lithuania | R39: Grand Rapids | T39: Scope Sum | U39: Total Sum
B40: Intensity Ratio 1 | D40: Headcount | E40: Scope 1 | F40: =IFERROR(F31/'GHG SoA'!K8,0) -> 0.1431912916 | H40: =IFERROR(H31/'GHG SoA'!K9,0) -> 5.589997773 | J40: =IFERROR(J31/'GHG SoA'!K10,0) -> 0.2357016649 | L40: =IFERROR(L31/'GHG SoA'!K15,0) -> 1.995485754 | N40: =IFERROR(N31/'GHG SoA'!K16,0) -> 49.68106135 | P40: =IFERROR(P31/'GHG SoA'!K17,0) -> 0.2019921051 | R40: =IFERROR(R31/'GHG SoA'!K20,0) -> 0.6029766608 | T40: =SUM(F40:S40) -> 58.4504066 | U40: =SUM(T40:T42) -> 80.96266097
E41: Scope 2 | F41: =IFERROR(F32/'GHG SoA'!K8,0) -> 0.1362055587 | H41: =IFERROR(H32/'GHG SoA'!K9,0) -> 4.883304215 | J41: =IFERROR(J32/'GHG SoA'!K10,0) -> 3.103655921 | L41: =IFERROR(L32/'GHG SoA'!K15,0) -> 4.397016305 | N41: =IFERROR(N32/'GHG SoA'!K16,0) -> 6.935005312 | P41: =IFERROR(P32/'GHG SoA'!K17,0) -> 1.799998421 | R41: =IFERROR(R32/'GHG SoA'!K20,0) -> 1.213267885 | T41: =SUM(F41:S41) -> 22.46845362
E42: Scope 3 | F42: =IFERROR(F33/'GHG SoA'!K8,0) -> 0.008130753247 | H42: =IFERROR(H33/'GHG SoA'!K9,0) -> 0.003366885189 | J42: =IFERROR(J33/'GHG SoA'!K10,0) -> 0 | L42: =IFERROR(L33/'GHG SoA'!K15,0) -> 0.002438303673 | N42: =IFERROR(N33/'GHG SoA'!K16,0) -> 0 | P42: =IFERROR(P33/'GHG SoA'!K17,0) -> 0.001126602487 | R42: =IFERROR(R33/'GHG SoA'!K20,0) -> 0.02873820727 | T42: 0.04380075187
B43: Intensity Ratio 2 | D43: Turnover (tCO2e/£1m) | E43: Scope 1 | F43: =IFERROR(SUM(F31:K31)/(SUM('GHG SoA'!M8)/1000000),0) -> 18.25622941 | L43: =IFERROR(L31/(SUM('GHG SoA'!M15)/1000000),0) -> 32.59678584 | N43: =IFERROR(N31/(SUM('GHG SoA'!M16)/1000000),0) -> 398.7685523 | P43: =IFERROR(P31/(SUM('GHG SoA'!M17)/1000000),0) -> 3.30601054 | R43: =IFERROR(R31/(SUM('GHG SoA'!M20)/1000000),0) -> 1.257749743 | T43: 454.1853278 | U43: =SUM(T43:T45) -> 630.5272282
E44: Scope 2 | F44: =IFERROR(SUM(F32:K32)/(SUM('GHG SoA'!M8)/1000000),0) -> 16.71983056 | L44: =IFERROR(L32/(SUM('GHG SoA'!M15)/1000000),0) -> 71.82642048 | N44: =IFERROR(N32/(SUM('GHG SoA'!M16)/1000000),0) -> 55.66431056 | P44: =IFERROR(P32/(SUM('GHG SoA'!M17)/1000000),0) -> 29.46062544 | R44: =IFERROR(R32/(SUM('GHG SoA'!M20)/1000000),0) -> 2.530756942 | T44: 176.201944
E45: Scope 3 | F45: =IFERROR(SUM(F33:K33)/(SUM('GHG SoA'!M8)/1000000),0) -> 0.02174190098 | L45: =IFERROR(L33/(SUM('GHG SoA'!M15)/1000000),0) -> 0.03983033328 | N45: =IFERROR(N33/(SUM('GHG SoA'!M16)/1000000),0) -> 0 | P45: =IFERROR(P33/(SUM('GHG SoA'!M17)/1000000),0) -> 0.01843913501 | R45: =IFERROR(R33/(SUM('GHG SoA'!M20)/1000000),0) -> 0.05994506115 | T45: 0.1399564304
B46: Intensity Ratio 3 | D46: Floorspace (tCO2e/sqm) | E46: Scope 1 | F46: =IFERROR(F31/'GHG SoA'!P8,0) -> 0.008333884694 | H46: =IFERROR(H31/'GHG SoA'!P9,0) -> 0.03254498955 | J46: =IFERROR(J31/'GHG SoA'!P10,0) -> 0.002946270811 | L46: =IFERROR(L31/'GHG SoA'!P15,0) -> 0.0162288468 | N46: =IFERROR(N31/'GHG SoA'!P16,0) -> 0.8611779912 | P46: =IFERROR(P31/'GHG SoA'!P17,0) -> 0.004842792085 | R46: =IFERROR(R31/'GHG SoA'!P20,0) -> 0.007324951153 | T46: 0.9333997263 | U46: =SUM(T46:T48) -> 1.223308376
E47: Scope 2 | F47: =IFERROR(F32/'GHG SoA'!P8,0) -> 0.007927307649 | H47: =IFERROR(H32/'GHG SoA'!P9,0) -> 0.02843061681 | J47: =IFERROR(J32/'GHG SoA'!P10,0) -> 0.03879569901 | L47: =IFERROR(L32/'GHG SoA'!P15,0) -> 0.03575996663 | N47: =IFERROR(N32/'GHG SoA'!P16,0) -> 0.1202122858 | P47: =IFERROR(P32/'GHG SoA'!P17,0) -> 0.04315524164 | R47: =IFERROR(R32/'GHG SoA'!P20,0) -> 0.01473875951 | T47: 0.289019877
E48: Scope 3 | F48: =IFERROR(F33/'GHG SoA'!P8,0) -> 0.0004732184429 | H48: =IFERROR(H33/'GHG SoA'!P9,0) -> 1.960201913e-05 | J48: =IFERROR(J33/'GHG SoA'!P10,0) -> 0 | L48: =IFERROR(L33/'GHG SoA'!P15,0) -> 1.983018755e-05 | N48: =IFERROR(N33/'GHG SoA'!P16,0) -> 0 | P48: =IFERROR(P33/'GHG SoA'!P17,0) -> 2.701046957e-05 | R48: =IFERROR(R33/'GHG SoA'!P20,0) -> 0.0003491112976 | T48: 0.0008887724168
B49: Intensity Ratio 4 | D49: Production (tCO2e/000's m/kg) | E49: Scope 1 | F49: =IFERROR(F31/(SUM('GHG SoA'!O8)/1000),0) -> 0 | H49: =IFERROR(H31/(SUM('GHG SoA'!O9)/1000),0) -> 0.1229132974 | J49: =IFERROR(J31/(SUM('GHG SoA'!O10)/1000),0) -> 0.01460628772 | L49: =IFERROR(L31/(SUM('GHG SoA'!O15)/1000),0) -> 0.2702199038 | N49: =IFERROR(N31/(SUM('GHG SoA'!O16)/1000),0) -> 0.5179082304 | P49: =IFERROR(P31/(SUM('GHG SoA'!O17)/1000),0) -> 0.05743831584 | R49: =IFERROR(R31/(SUM('GHG SoA'!O20)/1000),0) -> 0 | T49: 0.9830860352 | U49: =SUM(T49:T51) -> 2.463082552
E50: Scope 2 | F50: =IFERROR(F32/(SUM('GHG SoA'!O8)/1000),0) -> 0 | H50: =IFERROR(H32/(SUM('GHG SoA'!O9)/1000),0) -> 0.1073744656 | J50: =IFERROR(J32/(SUM('GHG SoA'!O10)/1000),0) -> 0.1923316552 | L50: =IFERROR(L32/(SUM('GHG SoA'!O15)/1000),0) -> 0.5954246079 | N50: =IFERROR(N32/(SUM('GHG SoA'!O16)/1000),0) -> 0.07229508048 | P50: =IFERROR(P32/(SUM('GHG SoA'!O17)/1000),0) -> 0.5118461325 | R50: =IFERROR(R32/(SUM('GHG SoA'!O20)/1000),0) -> 0 | T50: 1.479271942
E51: Scope 3 | F51: =IFERROR(F33/(SUM('GHG SoA'!O8)/1000),0) -> 0 | H51: =IFERROR(H33/(SUM('GHG SoA'!O9)/1000),0) -> 7.403132837e-05 | J51: =IFERROR(J33/(SUM('GHG SoA'!O10)/1000),0) -> 0 | L51: =IFERROR(L33/(SUM('GHG SoA'!O15)/1000),0) -> 0.0003301843587 | N51: =IFERROR(N33/(SUM('GHG SoA'!O16)/1000),0) -> 0 | P51: =IFERROR(P33/(SUM('GHG SoA'!O17)/1000),0) -> 0.0003203597954 | R51: =IFERROR(R33/(SUM('GHG SoA'!O20)/1000),0) -> 0 | T51: 0.0007245754825
B55: Total Emissions Graphs - tCO2e
B101: Statement of Applicability
B103: Camira Group Holdings Limited has determined the scope and boundaries of its greenhouse gas emission reporting by evaluating relevant stakeholder needs and expectations alongside its own operational, business, and commercial interests. It is Camira's intention to include all operating Group entities across all relevant GHG scopes in its 2023 report, and until such time, makes the following exclusions:
B106: Key | C106: 3 | D106: Relevant, included
C107: 2 | D107: May be relevant, excluded
C108: 1 | D108: Not relevant, excluded
F109: UK | L109: EUR | P109: US | S109: APAC
B110: Scope | F110: Mirfield | G110: Meltham | H110: Nottingham | I110: Birkby | J110: Holmfirth | K110: London | L110: Lithuania | M110: Denmark | N110: Germany | O110: Turkey | P110: G Rapids | Q110: Chicago | R110: San Fran | S110: Australia | T110: Shanghai
B111: Scope 1 | C111: 1.1 | D111: Stationary Combustion | F111: 1 | G111: 3 | H111: 3 | I111: 3 | J111: 3 | K111: 2 | L111: 3 | M111: 2 | N111: 2 | O111: 2 | P111: 3 | Q111: 2 | R111: 2 | S111: 2 | T111: 2
C112: 1.2 | D112: Mobile Sources | F112: 3 | G112: 3 | H112: 3 | I112: 1 | J112: 3 | K112: 2 | L112: 3 | M112: 2 | N112: 2 | O112: 2 | P112: 3 | Q112: 2 | R112: 2 | S112: 2 | T112: 2
C113: 1.3 | D113: Refrigeration Equipment | F113: 3 | G113: 3 | H113: 1 | I113: 1 | J113: 3 | K113: 2 | L113: 3 | M113: 2 | N113: 2 | O113: 2 | P113: 3 | Q113: 2 | R113: 2 | S113: 2 | T113: 2
C114: 1.4 | D114: Fire Suppression | F114: 3 | G114: 3 | H114: 1 | I114: 1 | J114: 1 | K114: 2 | L114: 1 | M114: 2 | N114: 2 | O114: 2 | P114: 1 | Q114: 2 | R114: 2 | S114: 2 | T114: 2
C115: 1.5 | D115: Purchased Gases | F115: 1 | G115: 1 | H115: 1 | I115: 1 | J115: 1 | K115: 1 | L115: 1 | M115: 1 | N115: 1 | O115: 1 | P115: 1 | Q115: 1 | R115: 1 | S115: 1 | T115: 1
B116: Scope 2 | C116: 2.1 | D116: Purchased Electricity | F116: 3 | G116: 3 | H116: 3 | I116: 3 | J116: 3 | K116: 2 | L116: 3 | M116: 2 | N116: 2 | O116: 2 | P116: 3 | Q116: 2 | R116: 2 | S116: 2 | T116: 2
C117: 2.2 | D117: Purchased Steam | F117: 1 | G117: 1 | H117: 1 | I117: 1 | J117: 1 | K117: 1 | L117: 1 | M117: 1 | N117: 1 | O117: 1 | P117: 1 | Q117: 1 | R117: 1 | S117: 1 | T117: 1
B118: Scope 3 | C118: 3.1 | D118: Supplier Scope 1 & 2 - Goods & Services | F118: 2 | G118: 2 | H118: 2 | I118: 2 | J118: 2 | K118: 2 | L118: 2 | M118: 2 | N118: 2 | O118: 2 | P118: 2 | Q118: 2 | R118: 2 | S118: 2 | T118: 2
C119: 3.2 | D119: Supplier Scope 1 & 2 - Capital Spend | F119: 2 | G119: 2 | H119: 2 | I119: 2 | J119: 2 | K119: 2 | L119: 2 | M119: 2 | N119: 2 | O119: 2 | P119: 2 | Q119: 2 | R119: 2 | S119: 2 | T119: 2
C120: 3.3 | D120: Supplier Scope 1 & 2 - Energy Provider | F120: 2 | G120: 2 | H120: 2 | I120: 2 | J120: 2 | K120: 2 | L120: 2 | M120: 2 | N120: 2 | O120: 2 | P120: 2 | Q120: 2 | R120: 2 | S120: 2 | T120: 2
C121: 3.4 | D121: Supplier Scope 1 & 2 - Transportation Provider | F121: 2 | G121: 2 | H121: 2 | I121: 2 | J121: 2 | K121: 2 | L121: 2 | M121: 2 | N121: 2 | O121: 2 | P121: 2 | Q121: 2 | R121: 2 | S121: 2 | T121: 2
C122: 3.5 | D122: Supplier Scope 1 & 2 - Waste Provider | F122: 2 | G122: 2 | H122: 2 | I122: 2 | J122: 2 | K122: 2 | L122: 2 | M122: 2 | N122: 2 | O122: 2 | P122: 2 | Q122: 2 | R122: 2 | S122: 2 | T122: 2
C123: 3.8 | D123: Supplier Scope 1 & 2 - Leased Asset Provider | F123: 2 | G123: 2 | H123: 2 | I123: 2 | J123: 2 | K123: 2 | L123: 2 | M123: 2 | N123: 2 | O123: 2 | P123: 2 | Q123: 2 | R123: 2 | S123: 2 | T123: 2
C124: 3.6 | D124: Employee Business Travel | F124: 3 | G124: 3 | H124: 3 | I124: 3 | J124: 3 | K124: 2 | L124: 3 | M124: 2 | N124: 2 | O124: 2 | P124: 3 | Q124: 2 | R124: 2 | S124: 2 | T124: 2
C125: 3.7 | D125: Employee Commuting | F125: 2 | G125: 2 | H125: 2 | I125: 2 | J125: 2 | K125: 2 | L125: 2 | M125: 2 | N125: 2 | O125: 2 | P125: 2 | Q125: 2 | R125: 2 | S125: 2 | T125: 2
C126: 3.9 | D126: Customer Scope 1 & 2 - Transport | F126: 2 | G126: 2 | H126: 2 | I126: 2 | J126: 2 | K126: 2 | L126: 2 | M126: 2 | N126: 2 | O126: 2 | P126: 2 | Q126: 2 | R126: 2 | S126: 2 | T126: 2
C127: 3.1 | D127: Customer Scope 1 & 2 - Energy | F127: 2 | G127: 2 | H127: 2 | I127: 2 | J127: 2 | K127: 2 | L127: 2 | M127: 2 | N127: 2 | O127: 2 | P127: 2 | Q127: 2 | R127: 2 | S127: 2 | T127: 2
C128: 3.11 | D128: Customer Scope 1 & 2 - Product Use | F128: 1 | G128: 1 | H128: 1 | I128: 1 | J128: 1 | K128: 1 | L128: 1 | M128: 1 | N128: 1 | O128: 1 | P128: 1 | Q128: 1 | R128: 1 | S128: 1 | T128: 1
C129: 3.12 | D129: Customer Scope 1 & 2 - Product Waste | F129: 2 | G129: 2 | H129: 2 | I129: 2 | J129: 2 | K129: 2 | L129: 2 | M129: 2 | N129: 2 | O129: 2 | P129: 2 | Q129: 2 | R129: 2 | S129: 2 | T129: 2
C130: 3.13 | D130: Customer Scope 1 & 2 - Leased Asset | F130: 1 | G130: 1 | H130: 1 | I130: 1 | J130: 1 | K130: 1 | L130: 1 | M130: 1 | N130: 1 | O130: 1 | P130: 1 | Q130: 1 | R130: 1 | S130: 1 | T130: 1
C131: 3.14 | D131: Customer Scope 1 & 2 - Franchise | F131: 1 | G131: 1 | H131: 1 | I131: 1 | J131: 1 | K131: 1 | L131: 1 | M131: 1 | N131: 1 | O131: 1 | P131: 1 | Q131: 1 | R131: 1 | S131: 1 | T131: 1
C132: 3.15 | D132: Customer Scope 1 & 2 - Investment | F132: 1 | G132: 1 | H132: 1 | I132: 1 | J132: 1 | K132: 1 | L132: 1 | M132: 1 | N132: 1 | O132: 1 | P132: 1 | Q132: 1 | R132: 1 | S132: 1 | T132: 1
B135: Exclusions
B137: Exclusions - site general | J137: Exclusions - scopes
B138: Site | D138: Justification | J138: Scope | O138: Justification
B139: London | D139: Showroom only - minimal emissions | J139: Purchased Gases | O139: No relevant gases purchased by any entity or location
B140: Denmark | D140: Showroom only - minimal emissions | J140: Purchased Steam | O140: No steam purchased by any entity or location
B141: Germany | D141: Office only - minimal emissions | J141: Supplier Scope 1 & 2 - Goods & Services | O141: Process adaption required to enable reporting
B142: Turkey | D142: Office only - minimal emissions | J142: Supplier Scope 1 & 2 - Capital Spend | O142: Process adaption required to enable reporting
B143: Chicago | D143: Showroom only - minimal emissions | J143: Supplier Scope 1 & 2 - Energy Provider | O143: Process adaption required to enable reporting
B144: San Fran | D144: Office only - minimal emissions | J144: Supplier Scope 1 & 2 - Transportation Provider | O144: Process adaption required to enable reporting
B145: Australia | D145: Office only - minimal emissions | J145: Supplier Scope 1 & 2 - Waste Provider | O145: Process adaption required to enable reporting
B146: Shanghai | D146: Office only - minimal emissions | J146: Supplier Scope 1 & 2 - Leased Asset Provider | O146: Process adaption required to enable reporting
J147: Employee Commuting | O147: Process adaption required to enable reporting
B148: Exclusions - site specific | J148: Customer Scope 1 & 2 - Transport | O148: Process adaption required to enable reporting
B149: Site | D149: Scope | E149: Justification | J149: Customer Scope 1 & 2 - Energy | O149: Process adaption required to enable reporting
B150: Mirfield - Stationary | E150: No stationary combustion at location | J150: Customer Scope 1 & 2 - Product Use | O150: Products sold do not inherently emit GHGs
B151: Nottingham - Refrigeration | E151: No refrigeration at location | J151: Customer Scope 1 & 2 - Leased Asset | O151: No onward leasing at any entity or location
B152: Nottingham - Fire Suppression | E152: No fire suppression at location | J152: Customer Scope 1 & 2 - Franchise | O152: No franchises at any entity or location
B153: Birkby - Mobile | E153: No leased or owned vehicles at location
B154: Birkby - Refrigeration | E154: No refrigeration at location
B155: Birkby - Fire Suppression | E155: No fire suppression at location
B156: Lithuania - Fire Suppression | E156: No fire suppression at location
B157: Grand Rapids - Fire Suppression | E157: No fire suppression at location
B161: Streamlined Energy & Carbon Reporting (SECR - UK Only)
B163: Camira Fabrics Limited is required to report under the Streamlined Energy Carbon Reporting (SECR) framework under the Companies (Directors' Report) and Limited Liability Partnerships (Energy and Carbon Report) Regulations 2018. The SECR reporting year is the same as the Company Financial year 1 January to 31 December 2021. This is the second period under which Camira Fabrics Limited is required to report under the SECR framework. In accordance with the guidance, Camira Fabrics Limited is required to report the UK energy usage and associated Greenhouse Gas (GHG) emissions that relate to: • Activities for which Camira Fabrics Limited is responsible involving the combustion of gas, the consumption of fuel for the purposes of transport, and fugitive emissions (scope 1); • The purchase of electricity by Camira Fabrics Limited for its own use (scope 2); and • Business travel in rental or employee-owned vehicles financed by Camira Fabrics Limited (scope 3). Camira Fabrics Limited is required to report at least one intensity ratio. For these purposes the ratio has been considered as total scope 1, 2 & 3 emissions per £1m of turnover.
B174: Energy & Carbon Data
F176: Camira Fabrics Limited
D177: Scopes | F177: kWh | H177: tCO2e
B178: Scope 1 | D178: Stationary Combustion | F178: =SUM('1.1'!O6+'1.1'!O9+'1.1'!O12) -> 5664752.87 | H178: =SUM('1.1'!Z7+'1.1'!Z10+'1.1'!Z13) -> 1037.612783
D179: Mobile Sources | F179: =SUM('1.2'!O6:O7+'1.2'!O10+'1.2'!O13) -> 41436.58876 | H179: =SUM('1.2'!Z8+'1.2'!Z11+'1.2'!Z14) -> 11.09805923
D180: Refrigeration Equipment | F180: =SUM('1.3'!O6+'1.3'!O9) -> 0 | H180: =SUM('1.3'!Z6+'1.3'!Z9) -> 0
D181: Fire Suppression | F181: =SUM('1.4'!O6+'1.4'!O9) -> 0 | H181: =SUM('1.4'!Z6+'1.4'!Z9) -> 0
D182: Purchased Gases
B183: Scope 2 | D183: Purchased Electricity | F183: =SUM('2.1'!O6+'2.1'!O9+'2.1'!O12:O13) -> 8827547 | H183: =SUM('2.1'!Z7+'2.1'!Z10+'2.1'!Z14) -> 960.4539467
D184: Purchased Steam
B185: Scope 3 | D185: Supplier Scope 1 & 2 - Goods & Services
D186: Supplier Scope 1 & 2 - Capital Spend
D187: Supplier Scope 1 & 2 - Energy Provider
D188: Supplier Scope 1 & 2 - Transportation Provider
D189: Supplier Scope 1 & 2 - Waste Provider
D190: Supplier Scope 1 & 2 - Leased Asset Provider
D191: Employee Business Travel | F191: =SUM('3.6'!O6:O7+'3.6'!O10:O11+'3.6'!O14) -> 4584 | H191: =SUM('3.6'!Z8+'3.6'!Z12+'3.6'!Z15) -> 1.24894176
D192: Employee Commuting
D193: Customer Scope 1 & 2 - Transport
D194: Customer Scope 1 & 2 - Energy
D195: Customer Scope 1 & 2 - Product Use
D196: Customer Scope 1 & 2 - Product Waste
D197: Customer Scope 1 & 2 - Leased Asset
D198: Customer Scope 1 & 2 - Franchise
D199: Customer Scope 1 & 2 - Investment
B200: Total Scope 1 tCO2e - Location | F200: =SUM(F178:G182) -> 5706189.459 | H200: =SUM(H178:I182) -> 1048.710842
B201: Total Scope 2 tCO2e - Location | F201: =SUM(F183:G184) -> 8827547 | H201: =SUM(H183:I184) -> 960.4539467
B202: Total Scope 3 tCO2e - Location | F202: =SUM(F185:G199) -> 4584 | H202: =SUM(H185:I199) -> 1.24894176
B203: Total tCO2e - Location | F203: =SUM(F178:G199) -> 14538320.46 | H203: =SUM(H178:I199) -> 2010.413731
B205: Intensity Ratio 2 - Turnover (tCO2e/£1m) | F205: 2020 | G205: 38.22 | H205: 2021 | I205: =SUM(H203/SUM('GHG SoA'!M8:M10/1000000)) -> 34.99780187
B208: The methodology used is calculated in accordance with the Greenhouse Gas (GHG) Protocol and Environmental Reporting Guidelines, including streamlined energy and carbon reporting guidance. The emission Conversion Factors applied are based on those provided by the Department for Business, Energy & Industrial Strategy (BEIS) for 2021. This second reporting period for Camira Fabrics Limited continued to coincide with the global COVID-19 pandemic. As a result the reporting period sets a baseline against data that doesn't represent business as usual. Despite the ongoing pandemic, an 8.42% reduction in tCO2e per £1m turnover was achieved. It is noted that this reduction is a result of gradual return to business as usual, and not due to the implementation of energy efficiency measures. The Board of Camira Fabrics Limited recognises the urgency of the climate crisis and the importance of sustainable development. It has therefore established its five-year strategy with sustainability at its core. In support of its sustainable development ambition, Camira Fabrics Limited has committed to full scope GHG emission reporting, and to leading the way in zero-carbon operations through the setting of science-based emission reduction targets.

Sheet 1.1
B2: Greenhouse Gas Emission Analysis - Stationary
B4: UK - DBEIS/DEFRA
B5: Reporting year | C5: Entity | D5: Location | E5: Scope | F5: Sub-scope | G5: Source Pseudonym | H5: Emission Source | I5: Emission Pseudonym | J5: Unit Required | K5: Data Raw | L5: Unit Reported | M5: Concatenate Units | N5: Unit Conversion | O5: Data Corrected | P5: Unit Corrected | Q5: CO2 | R5: CH4 | S5: Spare1 | T5: N2O | U5: Spare2 | V5: Spare3 | W5: Spare4 | X5: Spare5 | Y5: Spare6 | Z5: tCO2e Emission Equivalent | AB5: Workbook links
B6: 2021 | C6: Camira Fabrics Limited | D6: Mirfield | E6: ="Scope_1" -> Scope_1 | F6: ="Stationary" -> Stationary | G6: =LOOKUP(Table146135136[[#This Row],[Sub-scope]],Table357841[Source],Table357841[Pseudonym]) -> StationaryUK | I6: =LOOKUP(Table146135136[[#This Row],[Emission Source]],Table125292[[Emission ]],Table125292[Pseudonym]) ->  | J6: =LOOKUP(Table146135136[[#This Row],[Emission Source]],Table44300[Fuel Type],Table44300[Unit]) ->  | M6: =CONCATENATE(Table146135136[[#This Row],[Unit Reported]],Table146135136[[#This Row],[Unit Required]]) ->  | N6: =LOOKUP(Table146135136[[#This Row],[Concatenate Units]],Table43[Concatenate],Table43[Multiply By]) ->  | O6: =IFERROR(Table146135136[[#This Row],[Data Raw]]*Table146135136[[#This Row],[Unit Conversion]],0) -> 0 | P6: =IFERROR(Table146135136[[#This Row],[Unit Required]],"") ->  | Q6: =LOOKUP(Table146135136[[#This Row],[Emission Source]],Table44300[Fuel Type],Table44300[CO2 Factor (kg / Unit)]) ->  | R6: =LOOKUP(Table146135136[[#This Row],[Emission Source]],Table44300[Fuel Type],Table44300[CH4 Factor (g / unit)]) ->  | T6: =LOOKUP(Table146135136[[#This Row],[Emission Source]],Table44300[Fuel Type],Table44300[N2O Factor (g / unit)]) ->  | Z6: =IFERROR((Table146135136[[#This Row],[CO2]]+Table146135136[[#This Row],[CH4]]+Table146135136[[#This Row],[N2O]])*Table146135136[[#This Row],[Data Corrected]]/1000,0) -> 0
Z7: =SUM(Table146135136[tCO2e Emission Equivalent]) -> 0 | AC7: GHG Reporting Process
B8: Reporting year | C8: Entity | D8: Location | E8: Scope | F8: Sub-scope | G8: Source Pseudonym | H8: Emission Source | I8: Emission Pseudonym | J8: Unit Required | K8: Data Raw | L8: Unit Reported | M8: Concatenate Units | N8: Unit Conversion | O8: Data Corrected | P8: Unit Corrected | Q8: CO2 | R8: CH4 | S8: Spare1 | T8: N2O | U8: Spare2 | V8: Spare3 | W8: Spare4 | X8: Spare5 | Y8: Spare6 | Z8: tCO2e Emission Equivalent
B9: 2021 | C9: Camira Fabrics Limited | D9: Meltham | E9: ="Scope_1" -> Scope_1 | F9: ="Stationary" -> Stationary | G9: =LOOKUP(Table146135136302[[#This Row],[Sub-scope]],Table357841[Source],Table357841[Pseudonym]) -> StationaryUK | H9: Natural Gas | I9: =LOOKUP(Table146135136302[[#This Row],[Emission Source]],Table125292[[Emission ]],Table125292[Pseudonym]) -> StatUK | J9: =LOOKUP(Table146135136302[[#This Row],[Emission Source]],Table44300[Fuel Type],Table44300[Unit]) -> kWh | K9: 5645845.87 | L9: kWh | M9: =CONCATENATE(Table146135136302[[#This Row],[Unit Reported]],Table146135136302[[#This Row],[Unit Required]]) -> kWhkWh | N9: =LOOKUP(Table146135136302[[#This Row],[Concatenate Units]],Table43[Concatenate],Table43[Multiply By]) -> 1 | O9: =IFERROR(Table146135136302[[#This Row],[Data Raw]]*Table146135136302[[#This Row],[Unit Conversion]],0) -> 5645845.87 | P9: =IFERROR(Table146135136302[[#This Row],[Unit Required]],"") -> kWh | Q9: =LOOKUP(Table146135136302[[#This Row],[Emission Source]],Table44300[Fuel Type],Table44300[CO2 Factor (kg / Unit)]) -> 0.18282 | R9: =LOOKUP(Table146135136302[[#This Row],[Emission Source]],Table44300[Fuel Type],Table44300[CH4 Factor (g / unit)]) -> 0.00025 | T9: =LOOKUP(Table146135136302[[#This Row],[Emission Source]],Table44300[Fuel Type],Table44300[N2O Factor (g / unit)]) -> 0.0001 | Z9: =IFERROR((Table146135136302[[#This Row],[CO2]]+Table146135136302[[#This Row],[CH4]]+Table146135136302[[#This Row],[N2O]])*Table146135136302[[#This Row],[Data Corrected]]/1000,0) -> 1034.149588
Z10: =SUM(Table146135136302[tCO2e Emission Equivalent]) -> 1034.149588 | AC10: GHG Questionnaire
B11: Reporting year | C11: Entity | D11: Location | E11: Scope | F11: Sub-scope | G11: Source Pseudonym | H11: Emission Source | I11: Emission Pseudonym | J11: Unit Required | K11: Data Raw | L11: Unit Reported | M11: Concatenate Units | N11: Unit Conversion | O11: Data Corrected | P11: Unit Corrected | Q11: CO2 | R11: CH4 | S11: Spare1 | T11: N2O | U11: Spare2 | V11: Spare3 | W11: Spare4 | X11: Spare5 | Y11: Spare6 | Z11: tCO2e Emission Equivalent
B12: 2021 | C12: Camira Fabrics Limited | D12: Nottingham | E12: ="Scope_1" -> Scope_1 | F12: ="Stationary" -> Stationary | G12: =LOOKUP(Table146135136302303[[#This Row],[Sub-scope]],Table357841[Source],Table357841[Pseudonym]) -> StationaryUK | H12: Natural Gas | I12: =LOOKUP(Table146135136302303[[#This Row],[Emission Source]],Table125292[[Emission ]],Table125292[Pseudonym]) -> StatUK | J12: =LOOKUP(Table146135136302303[[#This Row],[Emission Source]],Table44300[Fuel Type],Table44300[Unit]) -> kWh | K12: 18907 | L12: kWh | M12: =CONCATENATE(Table146135136302303[[#This Row],[Unit Reported]],Table146135136302303[[#This Row],[Unit Required]]) -> kWhkWh | N12: =LOOKUP(Table146135136302303[[#This Row],[Concatenate Units]],Table43[Concatenate],Table43[Multiply By]) -> 1 | O12: =IFERROR(Table146135136302303[[#This Row],[Data Raw]]*Table146135136302303[[#This Row],[Unit Conversion]],0) -> 18907 | P12: =IFERROR(Table146135136302303[[#This Row],[Unit Required]],"") -> kWh | Q12: =LOOKUP(Table146135136302303[[#This Row],[Emission Source]],Table44300[Fuel Type],Table44300[CO2 Factor (kg / Unit)]) -> 0.18282 | R12: =LOOKUP(Table146135136302303[[#This Row],[Emission Source]],Table44300[Fuel Type],Table44300[CH4 Factor (g / unit)]) -> 0.00025 | T12: =LOOKUP(Table146135136302303[[#This Row],[Emission Source]],Table44300[Fuel Type],Table44300[N2O Factor (g / unit)]) -> 0.0001 | Z12: =IFERROR((Table146135136302303[[#This Row],[CO2]]+Table146135136302303[[#This Row],[CH4]]+Table146135136302303[[#This Row],[N2O]])*Table146135136302303[[#This Row],[Data Corrected]]/1000,0) -> 3.46319519
Z13: =SUM(Table146135136302303[tCO2e Emission Equivalent]) -> 3.46319519 | AC13: GHG Statement of Applicability
B14: Reporting year | C14: Entity | D14: Location | E14: Scope | F14: Sub-scope | G14: Source Pseudonym | H14: Emission Source | I14: Emission Pseudonym | J14: Unit Required | K14: Data Raw | L14: Unit Reported | M14: Concatenate Units | N14: Unit Conversion | O14: Data Corrected | P14: Unit Corrected | Q14: CO2 | R14: CH4 | S14: Spare1 | T14: N2O | U14: Spare2 | V14: Spare3 | W14: Spare4 | X14: Spare5 | Y14: Spare6 | Z14: tCO2e Emission Equivalent
B15: 2021 | C15: Camira Yarns Limited | D15: Birkby | E15: ="Scope_1" -> Scope_1 | F15: ="Stationary" -> Stationary | G15: =LOOKUP(Table146135136302303304[[#This Row],[Sub-scope]],Table357841[Source],Table357841[Pseudonym]) -> StationaryUK | H15: Natural Gas | I15: =LOOKUP(Table146135136302303304[[#This Row],[Emission Source]],Table125292[[Emission ]],Table125292[Pseudonym]) -> StatUK | J15: =LOOKUP(Table146135136302303304[[#This Row],[Emission Source]],Table44300[Fuel Type],Table44300[Unit]) -> kWh | K15: 1067629 | L15: kWh | M15: =CONCATENATE(Table146135136302303304[[#This Row],[Unit Reported]],Table146135136302303304[[#This Row],[Unit Required]]) -> kWhkWh | N15: =LOOKUP(Table146135136302303304[[#This Row],[Concatenate Units]],Table43[Concatenate],Table43[Multiply By]) -> 1 | O15: =IFERROR(Table146135136302303304[[#This Row],[Data Raw]]*Table146135136302303304[[#This Row],[Unit Conversion]],0) -> 1067629 | P15: =IFERROR(Table146135136302303304[[#This Row],[Unit Required]],"") -> kWh | Q15: =LOOKUP(Table146135136302303304[[#This Row],[Emission Source]],Table44300[Fuel Type],Table44300[CO2 Factor (kg / Unit)]) -> 0.18282 | R15: =LOOKUP(Table146135136302303304[[#This Row],[Emission Source]],Table44300[Fuel Type],Table44300[CH4 Factor (g / unit)]) -> 0.00025 | T15: =LOOKUP(Table146135136302303304[[#This Row],[Emission Source]],Table44300[Fuel Type],Table44300[N2O Factor (g / unit)]) -> 0.0001 | Z15: =IFERROR((Table146135136302303304[[#This Row],[CO2]]+Table146135136302303304[[#This Row],[CH4]]+Table146135136302303304[[#This Row],[N2O]])*Table146135136302303304[[#This Row],[Data Corrected]]/1000,0) -> 195.5576039
Z16: =SUM(Table146135136302303304[tCO2e Emission Equivalent]) -> 195.5576039 | AC16: GHG Summary Report
B17: Reporting year | C17: Entity | D17: Location | E17: Scope | F17: Sub-scope | G17: Source Pseudonym | H17: Emission Source | I17: Emission Pseudonym | J17: Unit Required | K17: Data Raw | L17: Unit Reported | M17: Concatenate Units | N17: Unit Conversion | O17: Data Corrected | P17: Unit Corrected | Q17: CO2 | R17: CH4 | S17: Spare1 | T17: N2O | U17: Spare2 | V17: Spare3 | W17: Spare4 | X17: Spare5 | Y17: Spare6 | Z17: tCO2e Emission Equivalent
B18: 2021 | C18: Holmfirth Dyers Limited | D18: Holmfirth | E18: ="Scope_1" -> Scope_1 | F18: ="Stationary" -> Stationary | G18: =LOOKUP(Table146135136302303304305[[#This Row],[Sub-scope]],Table357841[Source],Table357841[Pseudonym]) -> StationaryUK | H18: Natural Gas | I18: =LOOKUP(Table146135136302303304305[[#This Row],[Emission Source]],Table125292[[Emission ]],Table125292[Pseudonym]) -> StatUK | J18: =LOOKUP(Table146135136302303304305[[#This Row],[Emission Source]],Table44300[Fuel Type],Table44300[Unit]) -> kWh | K18: 15191441 | L18: kWh | M18: =CONCATENATE(Table146135136302303304305[[#This Row],[Unit Reported]],Table146135136302303304305[[#This Row],[Unit Required]]) -> kWhkWh | N18: =LOOKUP(Table146135136302303304305[[#This Row],[Concatenate Units]],Table43[Concatenate],Table43[Multiply By]) -> 1 | O18: =IFERROR(Table146135136302303304305[[#This Row],[Data Raw]]*Table146135136302303304305[[#This Row],[Unit Conversion]],0) -> 15191441 | P18: =IFERROR(Table146135136302303304305[[#This Row],[Unit Required]],"") -> kWh | Q18: =LOOKUP(Table146135136302303304305[[#This Row],[Emission Source]],Table44300[Fuel Type],Table44300[CO2 Factor (kg / Unit)]) -> 0.18282 | R18: =LOOKUP(Table146135136302303304305[[#This Row],[Emission Source]],Table44300[Fuel Type],Table44300[CH4 Factor (g / unit)]) -> 0.00025 | T18: =LOOKUP(Table146135136302303304305[[#This Row],[Emission Source]],Table44300[Fuel Type],Table44300[N2O Factor (g / unit)]) -> 0.0001 | Z18: =IFERROR((Table146135136302303304305[[#This Row],[CO2]]+Table146135136302303304305[[#This Row],[CH4]]+Table146135136302303304305[[#This Row],[N2O]])*Table146135136302303304305[[#This Row],[Data Corrected]]/1000,0) -> 2782.616248
Z19: =SUM(Table146135136302303304305[tCO2e Emission Equivalent]) -> 2782.616248
B20: EUR
B21: Reporting year | C21: Entity | D21: Location | E21: Scope | F21: Sub-scope | G21: Source Pseudonym | H21: Emission Source | I21: Emission Pseudonym | J21: Unit Required | K21: Data Raw | L21: Unit Reported | M21: Concatenate Units | N21: Unit Conversion | O21: Data Corrected | P21: Unit Corrected | Q21: CO2 | R21: CH4 | S21: Spare1 | T21: N2O | U21: Spare2 | V21: Spare3 | W21: Spare4 | X21: Spare5 | Y21: Spare6 | Z21: tCO2e Emission Equivalent | AB21: Scope Emissions
B22: 2021 | C22: UAB Camira Fabrics | D22: Lithuania | E22: ="Scope_1" -> Scope_1 | F22: ="Stationary" -> Stationary | G22: =LOOKUP(Table146135136302303304305306[[#This Row],[Sub-scope]],Table357841[Source],Table357841[Pseudonym]) -> StationaryUK | H22: Natural Gas | I22: =LOOKUP(Table146135136302303304305306[[#This Row],[Emission Source]],Table125292[[Emission ]],Table125292[Pseudonym]) -> StatUK | J22: =LOOKUP(Table146135136302303304305306[[#This Row],[Emission Source]],Table44300[Fuel Type],Table44300[Unit]) -> kWh | K22: 210236 | L22: kWh | M22: =CONCATENATE(Table146135136302303304305306[[#This Row],[Unit Reported]],Table146135136302303304305306[[#This Row],[Unit Required]]) -> kWhkWh | N22: =LOOKUP(Table146135136302303304305306[[#This Row],[Concatenate Units]],Table43[Concatenate],Table43[Multiply By]) -> 1 | O22: =IFERROR(Table146135136302303304305306[[#This Row],[Data Raw]]*Table146135136302303304305306[[#This Row],[Unit Conversion]],0) -> 210236 | P22: =IFERROR(Table146135136302303304305306[[#This Row],[Unit Required]],"") -> kWh | Q22: =LOOKUP(Table146135136302303304305306[[#This Row],[Emission Source]],Table44300[Fuel Type],Table44300[CO2 Factor (kg / Unit)]) -> 0.18282 | R22: =LOOKUP(Table146135136302303304305306[[#This Row],[Emission Source]],Table44300[Fuel Type],Table44300[CH4 Factor (g / unit)]) -> 0.00025 | T22: =LOOKUP(Table146135136302303304305306[[#This Row],[Emission Source]],Table44300[Fuel Type],Table44300[N2O Factor (g / unit)]) -> 0.0001 | Z22: =IFERROR((Table146135136302303304305306[[#This Row],[CO2]]+Table146135136302303304305306[[#This Row],[CH4]]+Table146135136302303304305306[[#This Row],[N2O]])*Table146135136302303304305306[[#This Row],[Data Corrected]]/1000,0) -> 38.50892812
B23: 2021 | C23: UAB Camira Fabrics | D23: Lithuania | E23: ="Scope_1" -> Scope_1 | F23: ="Stationary" -> Stationary | G23: =LOOKUP(Table146135136302303304305306[[#This Row],[Sub-scope]],Table357841[Source],Table357841[Pseudonym]) -> StationaryUK | H23: LPG | I23: =LOOKUP(Table146135136302303304305306[[#This Row],[Emission Source]],Table125292[[Emission ]],Table125292[Pseudonym]) -> StatUK | J23: =LOOKUP(Table146135136302303304305306[[#This Row],[Emission Source]],Table44300[Fuel Type],Table44300[Unit]) -> kWh | K23: 1.572 | L23: m3 | M23: =CONCATENATE(Table146135136302303304305306[[#This Row],[Unit Reported]],Table146135136302303304305306[[#This Row],[Unit Required]]) -> m3kWh | N23: =LOOKUP(Table146135136302303304305306[[#This Row],[Concatenate Units]],Table43[Concatenate],Table43[Multiply By]) -> 0.001194 | O23: =IFERROR(Table146135136302303304305306[[#This Row],[Data Raw]]*Table146135136302303304305306[[#This Row],[Unit Conversion]],0) -> 0.001876968 | P23: =IFERROR(Table146135136302303304305306[[#This Row],[Unit Required]],"") -> kWh | Q23: =LOOKUP(Table146135136302303304305306[[#This Row],[Emission Source]],Table44300[Fuel Type],Table44300[CO2 Factor (kg / Unit)]) -> 0.21419 | R23: =LOOKUP(Table146135136302303304305306[[#This Row],[Emission Source]],Table44300[Fuel Type],Table44300[CH4 Factor (g / unit)]) -> 0.00017 | T23: =LOOKUP(Table146135136302303304305306[[#This Row],[Emission Source]],Table44300[Fuel Type],Table44300[N2O Factor (g / unit)]) -> 0.00013 | Z23: =IFERROR((Table146135136302303304305306[[#This Row],[CO2]]+Table146135136302303304305306[[#This Row],[CH4]]+Table146135136302303304305306[[#This Row],[N2O]])*Table146135136302303304305306[[#This Row],[Data Corrected]]/1000,0) -> 4.025908663e-07 | AB23: tCO2e | AC23: =Z7+Z10+Z13+Z16+Z19+Z24+Z28 -> 4057.249222
Z24: =SUM(Table146135136302303304305306[tCO2e Emission Equivalent]) -> 38.50892852
B25: US - EPA
B26: Reporting year | C26: Entity | D26: Location | E26: Scope | F26: Sub-scope | G26: Source Pseudonym | H26: Emission Source | I26: Emission Pseudonym | J26: Unit Required | K26: Data Raw | L26: Unit Reported | M26: Concatenate Units | N26: Unit Conversion | O26: Data Corrected | P26: Unit Corrected | Q26: CO2 | R26: CH4 | S26: CH4 Corrected | T26: N2O | U26: N2O Corrected | V26: GWP | W26: Recycled | X26: Landfill | Y26: Combusted | Z26: tCO2e Emission Equivalent
B27: 2021 | C27: Camira Group, Inc | D27: Grand Rapids | E27: ="Scope_1" -> Scope_1 | F27: ="Stationary" -> Stationary | G27: =LOOKUP(Table146135[[#This Row],[Sub-scope]],Table3578[Source],Table3578[Pseudonym]) -> StationaryUS | H27: Natural Gas | I27: =LOOKUP(Table146135[[#This Row],[Emission Source]],Table125[[Emission ]],Table125[Pseudonym]) -> NaturalGasUS | J27: =LOOKUP(Table146135[[#This Row],[Emission Source]],Table44[Fuel Type],Table44[Unit]) -> scf | K27: 542 | L27: ccf | M27: =CONCATENATE(Table146135[[#This Row],[Unit Reported]],Table146135[[#This Row],[Unit Required]]) -> ccfscf | N27: =LOOKUP(Table146135[[#This Row],[Concatenate Units]],Table43[Concatenate],Table43[Multiply By]) -> 100 | O27: =IFERROR(Table146135[[#This Row],[Data Raw]]*Table146135[[#This Row],[Unit Conversion]],0) -> 54200 | P27: =IFERROR(Table146135[[#This Row],[Unit Required]],"") -> scf | Q27: =LOOKUP(Table146135[[#This Row],[Emission Source]],Table44[Fuel Type],Table44[CO2 Factor (kg / Unit)]) -> 0.05444 | R27: =LOOKUP(Table146135[[#This Row],[Emission Source]],Table44[Fuel Type],Table44[CH4 Factor (g / unit)]) -> 0.00103 | S27: =(Table146135[[#This Row],[CH4]]/1000)*25 -> 2.575e-05 | T27: =LOOKUP(Table146135[[#This Row],[Emission Source]],Table44[Fuel Type],Table44[N2O Factor (g / unit)]) -> 0.0001 | U27: =(Table146135[[#This Row],[N2O]]/1000)*298 -> 2.98e-05 | Z27: =IFERROR(((Table146135[[#This Row],[CO2]]+Table146135[[#This Row],[CH4 Corrected]]+Table146135[[#This Row],[N2O Corrected]])*Table146135[[#This Row],[Data Corrected]])/1000,0) -> 2.95365881
Z28: =SUM(Table146135[tCO2e Emission Equivalent]) -> 2.95365881

Sheet 1.2
B2: Greenhouse Gas Emission Analysis - Mobile
B4: UK - DBEIS/DEFRA
B5: Reporting year | C5: Entity | D5: Location | E5: Scope | F5: Sub-scope | G5: Source Pseudonym | H5: Emission Source | I5: Emission Pseudonym | J5: Unit Required | K5: Data Raw | L5: Unit Reported | M5: Concatenate Units | N5: Unit Conversion (SECR) | O5: Data Corrected | P5: Unit Corrected | Q5: CO2 | R5: CH4 | S5: Spare1 | T5: N2O | U5: Spare2 | V5: Spare3 | W5: Spare4 | X5: Spare5 | Y5: Spare6 | Z5: tCO2e Emission Equivalent | AB5: Workbook links
B6: 2021 | C6: Camira Fabrics Limited | D6: Mirfield | E6: ="Scope_1" -> Scope_1 | F6: Mobile Road Vehicle | G6: =LOOKUP(Table146135136143[[#This Row],[Sub-scope]],Table357841[Source],Table357841[Pseudonym]) -> MobileRVUK | H6: Diesel Car - Average | I6: =LOOKUP(Table146135136143[[#This Row],[Emission Source]],Table125292[[Emission ]],Table125292[Pseudonym]) -> MobRVUK | J6: =LOOKUP(Table146135136143[[#This Row],[Emission Source]],Table44300[Fuel Type],Table44300[Unit]) -> kWh | K6: 33156 | L6: mile | M6: =CONCATENATE(Table146135136143[[#This Row],[Unit Reported]],Table146135136143[[#This Row],[Unit Required]]) -> milekWh | N6: =LOOKUP(Table146135136143[[#This Row],[Emission Source]],Table44300[Fuel Type],Table44300[SECR]) -> 1.08115 | O6: =IFERROR(Table146135136143[[#This Row],[Data Raw]]*Table146135136143[[#This Row],[Unit Conversion (SECR)]],0) -> 35846.6094 | P6: =IFERROR(Table146135136143[[#This Row],[Unit Required]],"") -> kWh | Q6: =LOOKUP(Table146135136143[[#This Row],[Emission Source]],Table44300[Fuel Type],Table44300[CO2 Factor (kg / Unit)]) -> 0.26804 | R6: =LOOKUP(Table146135136143[[#This Row],[Emission Source]],Table44300[Fuel Type],Table44300[CH4 Factor (g / unit)]) -> 1e-05 | T6: =LOOKUP(Table146135136143[[#This Row],[Emission Source]],Table44300[Fuel Type],Table44300[N2O Factor (g / unit)]) -> 0.00303 | V6: =(LOOKUP(Table146135136143[[#This Row],[Emission Source]],Table44[Fuel Type],Table44[GWP])) -> 0 | W6: =Table146135136143[[#This Row],[Data Corrected]]*(LOOKUP(Table146135136143[[#This Row],[Emission Source]],Table44[Fuel Type],Table44[Recycled CO2 Factor])) -> 0 | X6: =Table146135136143[[#This Row],[Data Corrected]]*(LOOKUP(Table146135136143[[#This Row],[Emission Source]],Table44[Fuel Type],Table44[Landfill CO2 Factor])) -> 0 | Y6: =Table146135136143[[#This Row],[Data Corrected]]*(LOOKUP(Table146135136143[[#This Row],[Emission Source]],Table44[Fuel Type],Table44[Combusted CO2 Factor])) -> 0 | Z6: =IFERROR(((Table146135136143[[#This Row],[CO2]]+Table146135136143[[#This Row],[Spare1]]+Table146135136143[[#This Row],[Spare2]]+Table146135136143[[#This Row],[Spare3]]+Table146135136143[[#This Row],[Spare4]]+Table146135136143[[#This Row],[Spare5]]+Table146135136143[[#This Row],[Spare6]])*Table146135136143[[#This Row],[Data Corrected]])/1000,0) -> 9.608325184
B7: 2021 | C7: Camira Fabrics Limited | D7: Mirfield | E7: ="Scope_1" -> Scope_1 | F7: Mobile Road Vehicle | G7: =LOOKUP(Table146135136143[[#This Row],[Sub-scope]],Table357841[Source],Table357841[Pseudonym]) -> MobileRVUK | H7: Petrol Car - Average | I7: =LOOKUP(Table146135136143[[#This Row],[Emission Source]],Table125292[[Emission ]],Table125292[Pseudonym]) -> MobRVUK | J7: =LOOKUP(Table146135136143[[#This Row],[Emission Source]],Table44300[Fuel Type],Table44300[Unit]) -> kWh | K7: 4370 | L7: mile | M7: =CONCATENATE(Table146135136143[[#This Row],[Unit Reported]],Table146135136143[[#This Row],[Unit Required]]) -> milekWh | N7: =LOOKUP(Table146135136143[[#This Row],[Emission Source]],Table44300[Fuel Type],Table44300[SECR]) -> 1.16071 | O7: =IFERROR(Table146135136143[[#This Row],[Data Raw]]*Table146135136143[[#This Row],[Unit Conversion (SECR)]],0) -> 5072.3027 | P7: =IFERROR(Table146135136143[[#This Row],[Unit Required]],"") -> kWh | Q7: =LOOKUP(Table146135136143[[#This Row],[Emission Source]],Table44300[Fuel Type],Table44300[CO2 Factor (kg / Unit)]) -> 0.27944 | R7: =LOOKUP(Table146135136143[[#This Row],[Emission Source]],Table44300[Fuel Type],Table44300[CH4 Factor (g / unit)]) -> 0.00051 | T7: =LOOKUP(Table146135136143[[#This Row],[Emission Source]],Table44300[Fuel Type],Table44300[N2O Factor (g / unit)]) -> 0.00058 | V7: =(LOOKUP(Table146135136143[[#This Row],[Emission Source]],Table44[Fuel Type],Table44[GWP])) -> 0 | W7: =Table146135136143[[#This Row],[Data Corrected]]*(LOOKUP(Table146135136143[[#This Row],[Emission Source]],Table44[Fuel Type],Table44[Recycled CO2 Factor])) -> 0 | X7: =Table146135136143[[#This Row],[Data Corrected]]*(LOOKUP(Table146135136143[[#This Row],[Emission Source]],Table44[Fuel Type],Table44[Landfill CO2 Factor])) -> 0 | Y7: =Table146135136143[[#This Row],[Data Corrected]]*(LOOKUP(Table146135136143[[#This Row],[Emission Source]],Table44[Fuel Type],Table44[Combusted CO2 Factor])) -> 0 | Z7: =IFERROR(((Table146135136143[[#This Row],[CO2]]+Table146135136143[[#This Row],[Spare1]]+Table146135136143[[#This Row],[Spare2]]+Table146135136143[[#This Row],[Spare3]]+Table146135136143[[#This Row],[Spare4]]+Table146135136143[[#This Row],[Spare5]]+Table146135136143[[#This Row],[Spare6]])*Table146135136143[[#This Row],[Data Corrected]])/1000,0) -> 1.417404266 | AC7: GHG Reporting Process
Z8: =SUM(Table146135136143[tCO2e Emission Equivalent]) -> 11.02572945
B9: Reporting year | C9: Entity | D9: Location | E9: Scope | F9: Sub-scope | G9: Source Pseudonym | H9: Emission Source | I9: Emission Pseudonym | J9: Unit Required | K9: Data Raw | L9: Unit Reported | M9: Concatenate Units | N9: Unit Conversion (SECR) | O9: Data Corrected | P9: Unit Corrected | Q9: CO2 | R9: CH4 | S9: Spare1 | T9: N2O | U9: Spare2 | V9: Spare3 | W9: Spare4 | X9: Spare5 | Y9: Spare6 | Z9: tCO2e Emission Equivalent
B10: 2021 | C10: Camira Fabrics Limited | D10: Meltham | E10: ="Scope_1" -> Scope_1 | F10: Mobile Road Vehicle | G10: =LOOKUP(Table146135136143307[[#This Row],[Sub-scope]],Table357841[Source],Table357841[Pseudonym]) -> MobileRVUK | I10: =LOOKUP(Table146135136143307[[#This Row],[Emission Source]],Table125292[[Emission ]],Table125292[Pseudonym]) ->  | J10: =LOOKUP(Table146135136143307[[#This Row],[Emission Source]],Table44300[Fuel Type],Table44300[Unit]) ->  | M10: =CONCATENATE(Table146135136143307[[#This Row],[Unit Reported]],Table146135136143307[[#This Row],[Unit Required]]) ->  | N10: =LOOKUP(Table146135136143307[[#This Row],[Emission Source]],Table44300[Fuel Type],Table44300[SECR]) ->  | O10: =IFERROR(Table146135136143307[[#This Row],[Data Raw]]*Table146135136143307[[#This Row],[Unit Conversion (SECR)]],0) -> 0 | P10: =IFERROR(Table146135136143307[[#This Row],[Unit Required]],"") ->  | Q10: =LOOKUP(Table146135136143307[[#This Row],[Emission Source]],Table44300[Fuel Type],Table44300[CO2 Factor (kg / Unit)]) ->  | R10: =LOOKUP(Table146135136143307[[#This Row],[Emission Source]],Table44300[Fuel Type],Table44300[CH4 Factor (g / unit)]) ->  | T10: =LOOKUP(Table146135136143307[[#This Row],[Emission Source]],Table44300[Fuel Type],Table44300[N2O Factor (g / unit)]) ->  | V10: =(LOOKUP(Table146135136143307[[#This Row],[Emission Source]],Table44[Fuel Type],Table44[GWP])) ->  | W10: =Table146135136143307[[#This Row],[Data Corrected]]*(LOOKUP(Table146135136143307[[#This Row],[Emission Source]],Table44[Fuel Type],Table44[Recycled CO2 Factor])) ->  | X10: =Table146135136143307[[#This Row],[Data Corrected]]*(LOOKUP(Table146135136143307[[#This Row],[Emission Source]],Table44[Fuel Type],Table44[Landfill CO2 Factor])) ->  | Y10: =Table146135136143307[[#This Row],[Data Corrected]]*(LOOKUP(Table146135136143307[[#This Row],[Emission Source]],Table44[Fuel Type],Table44[Combusted CO2 Factor])) ->  | Z10: =IFERROR(((Table146135136143307[[#This Row],[CO2]]+Table146135136143307[[#This Row],[Spare1]]+Table146135136143307[[#This Row],[Spare2]]+Table146135136143307[[#This Row],[Spare3]]+Table146135136143307[[#This Row],[Spare4]]+Table146135136143307[[#This Row],[Spare5]]+Table146135136143307[[#This Row],[Spare6]])*Table146135136143307[[#This Row],[Data Corrected]])/1000,0) -> 0 | AC10: GHG Questionnaire
Z11: =SUM(Table146135136143307[tCO2e Emission Equivalent]) -> 0
B12: Reporting year | C12: Entity | D12: Location | E12: Scope | F12: Sub-scope | G12: Source Pseudonym | H12: Emission Source | I12: Emission Pseudonym | J12: Unit Required | K12: Data Raw | L12: Unit Reported | M12: Concatenate Units | N12: Unit Conversion (SECR) | O12: Data Corrected | P12: Unit Corrected | Q12: CO2 | R12: CH4 | S12: Spare1 | T12: N2O | U12: Spare2 | V12: Spare3 | W12: Spare4 | X12: Spare5 | Y12: Spare6 | Z12: tCO2e Emission Equivalent
B13: 2021 | C13: Camira Fabrics Limited | D13: Nottingham | E13: ="Scope_1" -> Scope_1 | F13: Mobile Road Vehicle | G13: =LOOKUP(Table146135136143308[[#This Row],[Sub-scope]],Table357841[Source],Table357841[Pseudonym]) -> MobileRVUK | H13: Petrol Car - Average | I13: =LOOKUP(Table146135136143308[[#This Row],[Emission Source]],Table125292[[Emission ]],Table125292[Pseudonym]) -> MobRVUK | J13: =LOOKUP(Table146135136143308[[#This Row],[Emission Source]],Table44300[Fuel Type],Table44300[Unit]) -> kWh | K13: 223 | L13: mile | M13: =CONCATENATE(Table146135136143308[[#This Row],[Unit Reported]],Table146135136143308[[#This Row],[Unit Required]]) -> milekWh | N13: =LOOKUP(Table146135136143308[[#This Row],[Emission Source]],Table44300[Fuel Type],Table44300[SECR]) -> 1.16071 | O13: =IFERROR(Table146135136143308[[#This Row],[Data Raw]]*Table146135136143308[[#This Row],[Unit Conversion (SECR)]],0) -> 258.83833 | P13: =IFERROR(Table146135136143308[[#This Row],[Unit Required]],"") -> kWh | Q13: =LOOKUP(Table146135136143308[[#This Row],[Emission Source]],Table44300[Fuel Type],Table44300[CO2 Factor (kg / Unit)]) -> 0.27944 | R13: =LOOKUP(Table146135136143308[[#This Row],[Emission Source]],Table44300[Fuel Type],Table44300[CH4 Factor (g / unit)]) -> 0.00051 | T13: =LOOKUP(Table146135136143308[[#This Row],[Emission Source]],Table44300[Fuel Type],Table44300[N2O Factor (g / unit)]) -> 0.00058 | V13: =(LOOKUP(Table146135136143308[[#This Row],[Emission Source]],Table44[Fuel Type],Table44[GWP])) -> 0 | W13: =Table146135136143308[[#This Row],[Data Corrected]]*(LOOKUP(Table146135136143308[[#This Row],[Emission Source]],Table44[Fuel Type],Table44[Recycled CO2 Factor])) -> 0 | X13: =Table146135136143308[[#This Row],[Data Corrected]]*(LOOKUP(Table146135136143308[[#This Row],[Emission Source]],Table44[Fuel Type],Table44[Landfill CO2 Factor])) -> 0 | Y13: =Table146135136143308[[#This Row],[Data Corrected]]*(LOOKUP(Table146135136143308[[#This Row],[Emission Source]],Table44[Fuel Type],Table44[Combusted CO2 Factor])) -> 0 | Z13: =IFERROR(((Table146135136143308[[#This Row],[CO2]]+Table146135136143308[[#This Row],[Spare1]]+Table146135136143308[[#This Row],[Spare2]]+Table146135136143308[[#This Row],[Spare3]]+Table146135136143308[[#This Row],[Spare4]]+Table146135136143308[[#This Row],[Spare5]]+Table146135136143308[[#This Row],[Spare6]])*Table146135136143308[[#This Row],[Data Corrected]])/1000,0) -> 0.07232978294 | AC13: GHG Statement of Applicability
Z14: =SUM(Table146135136143308[tCO2e Emission Equivalent]) -> 0.07232978294
B15: Reporting year | C15: Entity | D15: Location | E15: Scope | F15: Sub-scope | G15: Source Pseudonym | H15: Emission Source | I15: Emission Pseudonym | J15: Unit Required | K15: Data Raw | L15: Unit Reported | M15: Concatenate Units | N15: Unit Conversion (SECR) | O15: Data Corrected | P15: Unit Corrected | Q15: CO2 | R15: CH4 | S15: Spare1 | T15: N2O | U15: Spare2 | V15: Spare3 | W15: Spare4 | X15: Spare5 | Y15: Spare6 | Z15: tCO2e Emission Equivalent
B16: 2021 | C16: Camira Yarns Limited | D16: Birkby | E16: ="Scope_1" -> Scope_1 | G16: =LOOKUP(Table146135136143309[[#This Row],[Sub-scope]],Table357841[Source],Table357841[Pseudonym]) ->  | I16: =LOOKUP(Table146135136143309[[#This Row],[Emission Source]],Table125292[[Emission ]],Table125292[Pseudonym]) ->  | J16: =LOOKUP(Table146135136143309[[#This Row],[Emission Source]],Table44300[Fuel Type],Table44300[Unit]) ->  | M16: =CONCATENATE(Table146135136143309[[#This Row],[Unit Reported]],Table146135136143309[[#This Row],[Unit Required]]) ->  | N16: =LOOKUP(Table146135136143309[[#This Row],[Emission Source]],Table44300[Fuel Type],Table44300[SECR]) ->  | O16: =IFERROR(Table146135136143309[[#This Row],[Data Raw]]*Table146135136143309[[#This Row],[Unit Conversion (SECR)]],0) -> 0 | P16: =IFERROR(Table146135136143309[[#This Row],[Unit Required]],"") ->  | Q16: =LOOKUP(Table146135136143309[[#This Row],[Emission Source]],Table44300[Fuel Type],Table44300[CO2 Factor (kg / Unit)]) ->  | R16: =LOOKUP(Table146135136143309[[#This Row],[Emission Source]],Table44300[Fuel Type],Table44300[CH4 Factor (g / unit)]) ->  | T16: =LOOKUP(Table146135136143309[[#This Row],[Emission Source]],Table44300[Fuel Type],Table44300[N2O Factor (g / unit)]) ->  | V16: =(LOOKUP(Table146135136143309[[#This Row],[Emission Source]],Table44[Fuel Type],Table44[GWP])) ->  | W16: =Table146135136143309[[#This Row],[Data Corrected]]*(LOOKUP(Table146135136143309[[#This Row],[Emission Source]],Table44[Fuel Type],Table44[Recycled CO2 Factor])) ->  | X16: =Table146135136143309[[#This Row],[Data Corrected]]*(LOOKUP(Table146135136143309[[#This Row],[Emission Source]],Table44[Fuel Type],Table44[Landfill CO2 Factor])) ->  | Y16: =Table146135136143309[[#This Row],[Data Corrected]]*(LOOKUP(Table146135136143309[[#This Row],[Emission Source]],Table44[Fuel Type],Table44[Combusted CO2 Factor])) ->  | Z16: =IFERROR(((Table146135136143309[[#This Row],[CO2]]+Table146135136143309[[#This Row],[Spare1]]+Table146135136143309[[#This Row],[Spare2]]+Table146135136143309[[#This Row],[Spare3]]+Table146135136143309[[#This Row],[Spare4]]+Table146135136143309[[#This Row],[Spare5]]+Table146135136143309[[#This Row],[Spare6]])*Table146135136143309[[#This Row],[Data Corrected]])/1000,0) -> 0 | AC16: GHG Summary Report
Z17: =SUM(Table146135136143309[tCO2e Emission Equivalent]) -> 0
B18: Reporting year | C18: Entity | D18: Location | E18: Scope | F18: Sub-scope | G18: Source Pseudonym | H18: Emission Source | I18: Emission Pseudonym | J18: Unit Required | K18: Data Raw | L18: Unit Reported | M18: Concatenate Units | N18: Unit Conversion (SECR) | O18: Data Corrected | P18: Unit Corrected | Q18: CO2 | R18: CH4 | S18: Spare1 | T18: N2O | U18: Spare2 | V18: Spare3 | W18: Spare4 | X18: Spare5 | Y18: Spare6 | Z18: tCO2e Emission Equivalent
B19: 2021 | C19: Holmfirth Dyers Limited | D19: Holmfirth | E19: ="Scope_1" -> Scope_1 | F19: Mobile Road Vehicle | G19: =LOOKUP(Table146135136143310[[#This Row],[Sub-scope]],Table357841[Source],Table357841[Pseudonym]) -> MobileRVUK | H19: Diesel Van - Average | I19: =LOOKUP(Table146135136143310[[#This Row],[Emission Source]],Table125292[[Emission ]],Table125292[Pseudonym]) -> MobRVUK | J19: =LOOKUP(Table146135136143310[[#This Row],[Emission Source]],Table44300[Fuel Type],Table44300[Unit]) -> kWh | K19: 13000 | L19: mile | M19: =CONCATENATE(Table146135136143310[[#This Row],[Unit Reported]],Table146135136143310[[#This Row],[Unit Required]]) -> milekWh | N19: =LOOKUP(Table146135136143310[[#This Row],[Emission Source]],Table44300[Fuel Type],Table44300[SECR]) -> 1.55339 | O19: =IFERROR(Table146135136143310[[#This Row],[Data Raw]]*Table146135136143310[[#This Row],[Unit Conversion (SECR)]],0) -> 20194.07 | P19: =IFERROR(Table146135136143310[[#This Row],[Unit Required]],"") -> kWh | Q19: =LOOKUP(Table146135136143310[[#This Row],[Emission Source]],Table44300[Fuel Type],Table44300[CO2 Factor (kg / Unit)]) -> 0.38511 | R19: =LOOKUP(Table146135136143310[[#This Row],[Emission Source]],Table44300[Fuel Type],Table44300[CH4 Factor (g / unit)]) -> 1e-05 | T19: =LOOKUP(Table146135136143310[[#This Row],[Emission Source]],Table44300[Fuel Type],Table44300[N2O Factor (g / unit)]) -> 0.003 | V19: =(LOOKUP(Table146135136143310[[#This Row],[Emission Source]],Table44[Fuel Type],Table44[GWP])) -> 0 | W19: =Table146135136143310[[#This Row],[Data Corrected]]*(LOOKUP(Table146135136143310[[#This Row],[Emission Source]],Table44[Fuel Type],Table44[Recycled CO2 Factor])) -> 0 | X19: =Table146135136143310[[#This Row],[Data Corrected]]*(LOOKUP(Table146135136143310[[#This Row],[Emission Source]],Table44[Fuel Type],Table44[Landfill CO2 Factor])) -> 0 | Y19: =Table146135136143310[[#This Row],[Data Corrected]]*(LOOKUP(Table146135136143310[[#This Row],[Emission Source]],Table44[Fuel Type],Table44[Combusted CO2 Factor])) -> 0 | Z19: =IFERROR(((Table146135136143310[[#This Row],[CO2]]+Table146135136143310[[#This Row],[Spare1]]+Table146135136143310[[#This Row],[Spare2]]+Table146135136143310[[#This Row],[Spare3]]+Table146135136143310[[#This Row],[Spare4]]+Table146135136143310[[#This Row],[Spare5]]+Table146135136143310[[#This Row],[Spare6]])*Table146135136143310[[#This Row],[Data Corrected]])/1000,0) -> 7.776938298
B20: 2021 | C20: Holmfirth Dyers Limited | D20: Holmfirth | E20: ="Scope_1" -> Scope_1 | F20: Mobile Road Vehicle | G20: =LOOKUP(Table146135136143310[[#This Row],[Sub-scope]],Table357841[Source],Table357841[Pseudonym]) -> MobileRVUK | H20: Diesel HGV - Rigid - Average Load | I20: =LOOKUP(Table146135136143310[[#This Row],[Emission Source]],Table125292[[Emission ]],Table125292[Pseudonym]) -> MobRVUK | J20: =LOOKUP(Table146135136143310[[#This Row],[Emission Source]],Table44300[Fuel Type],Table44300[Unit]) -> kWh | K20: 13100 | L20: mile | M20: =CONCATENATE(Table146135136143310[[#This Row],[Unit Reported]],Table146135136143310[[#This Row],[Unit Required]]) -> milekWh | N20: =LOOKUP(Table146135136143310[[#This Row],[Emission Source]],Table44300[Fuel Type],Table44300[SECR]) -> 5.13181 | O20: =IFERROR(Table146135136143310[[#This Row],[Data Raw]]*Table146135136143310[[#This Row],[Unit Conversion (SECR)]],0) -> 67226.711 | P20: =IFERROR(Table146135136143310[[#This Row],[Unit Required]],"") -> kWh | Q20: =LOOKUP(Table146135136143310[[#This Row],[Emission Source]],Table44300[Fuel Type],Table44300[CO2 Factor (kg / Unit)]) -> 1.27604 | R20: =LOOKUP(Table146135136143310[[#This Row],[Emission Source]],Table44300[Fuel Type],Table44300[CH4 Factor (g / unit)]) -> 0.00027 | T20: =LOOKUP(Table146135136143310[[#This Row],[Emission Source]],Table44300[Fuel Type],Table44300[N2O Factor (g / unit)]) -> 0.01607 | V20: =(LOOKUP(Table146135136143310[[#This Row],[Emission Source]],Table44[Fuel Type],Table44[GWP])) -> 0 | W20: =Table146135136143310[[#This Row],[Data Corrected]]*(LOOKUP(Table146135136143310[[#This Row],[Emission Source]],Table44[Fuel Type],Table44[Recycled CO2 Factor])) -> 0 | X20: =Table146135136143310[[#This Row],[Data Corrected]]*(LOOKUP(Table146135136143310[[#This Row],[Emission Source]],Table44[Fuel Type],Table44[Landfill CO2 Factor])) -> 0 | Y20: =Table146135136143310[[#This Row],[Data Corrected]]*(LOOKUP(Table146135136143310[[#This Row],[Emission Source]],Table44[Fuel Type],Table44[Combusted CO2 Factor])) -> 0 | Z20: =IFERROR(((Table146135136143310[[#This Row],[CO2]]+Table146135136143310[[#This Row],[Spare1]]+Table146135136143310[[#This Row],[Spare2]]+Table146135136143310[[#This Row],[Spare3]]+Table146135136143310[[#This Row],[Spare4]]+Table146135136143310[[#This Row],[Spare5]]+Table146135136143310[[#This Row],[Spare6]])*Table146135136143310[[#This Row],[Data Corrected]])/1000,0) -> 85.7839723
Z21: =SUM(Table146135136143310[tCO2e Emission Equivalent]) -> 93.5609106 | AB21: Scope Emissions
B22: EUR
B23: Reporting year | C23: Entity | D23: Location | E23: Scope | F23: Sub-scope | G23: Source Pseudonym | H23: Emission Source | I23: Emission Pseudonym | J23: Unit Required | K23: Data Raw | L23: Unit Reported | M23: Concatenate Units | N23: Unit Conversion (SECR) | O23: Data Corrected | P23: Unit Corrected | Q23: CO2 | R23: CH4 | S23: Spare1 | T23: N2O | U23: Spare2 | V23: Spare3 | W23: Spare4 | X23: Spare5 | Y23: Spare6 | Z23: tCO2e Emission Equivalent | AB23: tCO2e | AC23: =Z8+Z11+Z14+Z17+Z21+Z26+Z33 -> 115.704527
B24: 2021 | C24: UAB Camira Fabrics | D24: Lithuania | E24: ="Scope_1" -> Scope_1 | F24: Mobile Road Vehicle | G24: =LOOKUP(Table146135136143311[[#This Row],[Sub-scope]],Table357841[Source],Table357841[Pseudonym]) -> MobileRVUK | H24: Diesel Car - Average | I24: =LOOKUP(Table146135136143311[[#This Row],[Emission Source]],Table125292[[Emission ]],Table125292[Pseudonym]) -> MobRVUK | J24: =LOOKUP(Table146135136143311[[#This Row],[Emission Source]],Table44300[Fuel Type],Table44300[Unit]) -> kWh | K24: 1641 | L24: mile | M24: =CONCATENATE(Table146135136143311[[#This Row],[Unit Reported]],Table146135136143311[[#This Row],[Unit Required]]) -> milekWh | N24: =LOOKUP(Table146135136143311[[#This Row],[Emission Source]],Table44300[Fuel Type],Table44300[SECR]) -> 1.08115 | O24: =IFERROR(Table146135136143311[[#This Row],[Data Raw]]*Table146135136143311[[#This Row],[Unit Conversion (SECR)]],0) -> 1774.16715 | P24: =IFERROR(Table146135136143311[[#This Row],[Unit Required]],"") -> kWh | Q24: =LOOKUP(Table146135136143311[[#This Row],[Emission Source]],Table44300[Fuel Type],Table44300[CO2 Factor (kg / Unit)]) -> 0.26804 | R24: =LOOKUP(Table146135136143311[[#This Row],[Emission Source]],Table44300[Fuel Type],Table44300[CH4 Factor (g / unit)]) -> 1e-05 | T24: =LOOKUP(Table146135136143311[[#This Row],[Emission Source]],Table44300[Fuel Type],Table44300[N2O Factor (g / unit)]) -> 0.00303 | V24: =(LOOKUP(Table146135136143311[[#This Row],[Emission Source]],Table44[Fuel Type],Table44[GWP])) -> 0 | W24: =Table146135136143311[[#This Row],[Data Corrected]]*(LOOKUP(Table146135136143311[[#This Row],[Emission Source]],Table44[Fuel Type],Table44[Recycled CO2 Factor])) -> 0 | X24: =Table146135136143311[[#This Row],[Data Corrected]]*(LOOKUP(Table146135136143311[[#This Row],[Emission Source]],Table44[Fuel Type],Table44[Landfill CO2 Factor])) -> 0 | Y24: =Table146135136143311[[#This Row],[Data Corrected]]*(LOOKUP(Table146135136143311[[#This Row],[Emission Source]],Table44[Fuel Type],Table44[Combusted CO2 Factor])) -> 0 | Z24: =IFERROR(((Table146135136143311[[#This Row],[CO2]]+Table146135136143311[[#This Row],[Spare1]]+Table146135136143311[[#This Row],[Spare2]]+Table146135136143311[[#This Row],[Spare3]]+Table146135136143311[[#This Row],[Spare4]]+Table146135136143311[[#This Row],[Spare5]]+Table146135136143311[[#This Row],[Spare6]])*Table146135136143311[[#This Row],[Data Corrected]])/1000,0) -> 0.4755477629
B25: 2021 | C25: UAB Camira Fabrics | D25: Lithuania | E25: ="Scope_1" -> Scope_1 | F25: Mobile Road Vehicle | G25: =LOOKUP(Table146135136143311[[#This Row],[Sub-scope]],Table357841[Source],Table357841[Pseudonym]) -> MobileRVUK | H25: Petrol Car - Average | I25: =LOOKUP(Table146135136143311[[#This Row],[Emission Source]],Table125292[[Emission ]],Table125292[Pseudonym]) -> MobRVUK | J25: =LOOKUP(Table146135136143311[[#This Row],[Emission Source]],Table44300[Fuel Type],Table44300[Unit]) -> kWh | K25: 796 | L25: mile | M25: =CONCATENATE(Table146135136143311[[#This Row],[Unit Reported]],Table146135136143311[[#This Row],[Unit Required]]) -> milekWh | N25: =LOOKUP(Table146135136143311[[#This Row],[Emission Source]],Table44300[Fuel Type],Table44300[SECR]) -> 1.16071 | O25: =IFERROR(Table146135136143311[[#This Row],[Data Raw]]*Table146135136143311[[#This Row],[Unit Conversion (SECR)]],0) -> 923.92516 | P25: =IFERROR(Table146135136143311[[#This Row],[Unit Required]],"") -> kWh | Q25: =LOOKUP(Table146135136143311[[#This Row],[Emission Source]],Table44300[Fuel Type],Table44300[CO2 Factor (kg / Unit)]) -> 0.27944 | R25: =LOOKUP(Table146135136143311[[#This Row],[Emission Source]],Table44300[Fuel Type],Table44300[CH4 Factor (g / unit)]) -> 0.00051 | T25: =LOOKUP(Table146135136143311[[#This Row],[Emission Source]],Table44300[Fuel Type],Table44300[N2O Factor (g / unit)]) -> 0.00058 | V25: =(LOOKUP(Table146135136143311[[#This Row],[Emission Source]],Table44[Fuel Type],Table44[GWP])) -> 0 | W25: =Table146135136143311[[#This Row],[Data Corrected]]*(LOOKUP(Table146135136143311[[#This Row],[Emission Source]],Table44[Fuel Type],Table44[Recycled CO2 Factor])) -> 0 | X25: =Table146135136143311[[#This Row],[Data Corrected]]*(LOOKUP(Table146135136143311[[#This Row],[Emission Source]],Table44[Fuel Type],Table44[Landfill CO2 Factor])) -> 0 | Y25: =Table146135136143311[[#This Row],[Data Corrected]]*(LOOKUP(Table146135136143311[[#This Row],[Emission Source]],Table44[Fuel Type],Table44[Combusted CO2 Factor])) -> 0 | Z25: =IFERROR(((Table146135136143311[[#This Row],[CO2]]+Table146135136143311[[#This Row],[Spare1]]+Table146135136143311[[#This Row],[Spare2]]+Table146135136143311[[#This Row],[Spare3]]+Table146135136143311[[#This Row],[Spare4]]+Table146135136143311[[#This Row],[Spare5]]+Table146135136143311[[#This Row],[Spare6]])*Table146135136143311[[#This Row],[Data Corrected]])/1000,0) -> 0.2581816467
Z26: =SUM(Table146135136143311[tCO2e Emission Equivalent]) -> 0.7337294096
B27: US - EPA
B28: Reporting year | C28: Entity | D28: Location | E28: Scope | F28: Sub-scope | G28: Source Pseudonym | H28: Emission Source | I28: Emission Pseudonym | J28: Unit Required | K28: Data Raw | L28: Unit Reported | M28: Concatenate Units | N28: Unit Conversion | O28: Data Corrected | P28: Unit Corrected | Q28: CO2 | R28: CH4 | S28: CH4 Corrected | T28: N2O | U28: N2O Corrected | V28: GWP | W28: Recycled | X28: Landfill | Y28: Combusted | Z28: tCO2e Emission Equivalent
B29: 2021 | C29: Camira Group, Inc | D29: Grand Rapids | E29: ="Scope_1" -> Scope_1 | F29: Mobile Vehicle Fuel | G29: =LOOKUP(Table146135142[[#This Row],[Sub-scope]],Table3578[Source],Table3578[Pseudonym]) -> MobileVFUS | H29: Petrol | I29: =LOOKUP(Table146135142[[#This Row],[Emission Source]],Table125[[Emission ]],Table125[Pseudonym]) -> MobileVehicleFuelUS | J29: =LOOKUP(Table146135142[[#This Row],[Emission Source]],Table44[Fuel Type],Table44[Unit]) -> gallon | K29: 14500 | L29: mile | M29: =CONCATENATE(Table146135142[[#This Row],[Unit Reported]],Table146135142[[#This Row],[Unit Required]]) -> milegallon | N29: =LOOKUP(Table146135142[[#This Row],[Concatenate Units]],Table43[Concatenate],Table43[Multiply By]) -> 0.04149377593 | O29: =IFERROR(Table146135142[[#This Row],[Data Raw]]*Table146135142[[#This Row],[Unit Conversion]],0) -> 601.659751 | P29: =IFERROR(Table146135142[[#This Row],[Unit Required]],"") -> gallon | Q29: =LOOKUP(Table146135142[[#This Row],[Emission Source]],Table44[Fuel Type],Table44[CO2 Factor (kg / Unit)]) -> 8.78 | R29: =LOOKUP(Table146135142[[#This Row],[Emission Source]],Table44[Fuel Type],Table44[CH4 Factor (g / unit)]) -> 0 | S29: =(Table146135142[[#This Row],[CH4]]/1000)*25 -> 0 | T29: =LOOKUP(Table146135142[[#This Row],[Emission Source]],Table44[Fuel Type],Table44[N2O Factor (g / unit)]) -> 0 | U29: =(Table146135142[[#This Row],[N2O]]/1000)*298 -> 0 | V29: =(LOOKUP(Table146135142[[#This Row],[Emission Source]],Table44[Fuel Type],Table44[GWP])) -> 0 | W29: =Table146135142[[#This Row],[Data Corrected]]*(LOOKUP(Table146135142[[#This Row],[Emission Source]],Table44[Fuel Type],Table44[Recycled CO2 Factor])) -> 0 | X29: =Table146135142[[#This Row],[Data Corrected]]*(LOOKUP(Table146135142[[#This Row],[Emission Source]],Table44[Fuel Type],Table44[Landfill CO2 Factor])) -> 0 | Y29: =Table146135142[[#This Row],[Data Corrected]]*(LOOKUP(Table146135142[[#This Row],[Emission Source]],Table44[Fuel Type],Table44[Combusted CO2 Factor])) -> 0 | Z29: =IFERROR(((Table146135142[[#This Row],[CO2]]+Table146135142[[#This Row],[CH4 Corrected]]+Table146135142[[#This Row],[N2O Corrected]]+Table146135142[[#This Row],[GWP]]+Table146135142[[#This Row],[Recycled]]+Table146135142[[#This Row],[Landfill]]+Table146135142[[#This Row],[Combusted]])*Table146135142[[#This Row],[Data Corrected]])/1000,0) -> 5.282572614
B30: 2021 | C30: Camira Group, Inc | D30: Grand Rapids | E30: ="Scope_1" -> Scope_1 | F30: Mobile Road Vehicle | G30: =LOOKUP(Table146135142[[#This Row],[Sub-scope]],Table3578[Source],Table3578[Pseudonym]) -> MobileRVUS | H30: Petrol Car 2018 | I30: =LOOKUP(Table146135142[[#This Row],[Emission Source]],Table125[[Emission ]],Table125[Pseudonym]) -> MobileRoadVehicleUS | J30: =LOOKUP(Table146135142[[#This Row],[Emission Source]],Table44[Fuel Type],Table44[Unit]) -> mile | K30: 14500 | L30: mile | M30: =CONCATENATE(Table146135142[[#This Row],[Unit Reported]],Table146135142[[#This Row],[Unit Required]]) -> milemile | N30: =LOOKUP(Table146135142[[#This Row],[Concatenate Units]],Table43[Concatenate],Table43[Multiply By]) -> 1 | O30: =IFERROR(Table146135142[[#This Row],[Data Raw]]*Table146135142[[#This Row],[Unit Conversion]],0) -> 14500 | P30: =IFERROR(Table146135142[[#This Row],[Unit Required]],"") -> mile | Q30: =LOOKUP(Table146135142[[#This Row],[Emission Source]],Table44[Fuel Type],Table44[CO2 Factor (kg / Unit)]) -> 0 | R30: =LOOKUP(Table146135142[[#This Row],[Emission Source]],Table44[Fuel Type],Table44[CH4 Factor (g / unit)]) -> 0.0052 | S30: =(Table146135142[[#This Row],[CH4]]/1000)*25 -> 0.00013 | T30: =LOOKUP(Table146135142[[#This Row],[Emission Source]],Table44[Fuel Type],Table44[N2O Factor (g / unit)]) -> 0.0016 | U30: =(Table146135142[[#This Row],[N2O]]/1000)*298 -> 0.0004768 | V30: =(LOOKUP(Table146135142[[#This Row],[Emission Source]],Table44[Fuel Type],Table44[GWP])) -> 0 | W30: =Table146135142[[#This Row],[Data Corrected]]*(LOOKUP(Table146135142[[#This Row],[Emission Source]],Table44[Fuel Type],Table44[Recycled CO2 Factor])) -> 0 | X30: =Table146135142[[#This Row],[Data Corrected]]*(LOOKUP(Table146135142[[#This Row],[Emission Source]],Table44[Fuel Type],Table44[Landfill CO2 Factor])) -> 0 | Y30: =Table146135142[[#This Row],[Data Corrected]]*(LOOKUP(Table146135142[[#This Row],[Emission Source]],Table44[Fuel Type],Table44[Combusted CO2 Factor])) -> 0 | Z30: =IFERROR(((Table146135142[[#This Row],[CO2]]+Table146135142[[#This Row],[CH4 Corrected]]+Table146135142[[#This Row],[N2O Corrected]]+Table146135142[[#This Row],[GWP]]+Table146135142[[#This Row],[Recycled]]+Table146135142[[#This Row],[Landfill]]+Table146135142[[#This Row],[Combusted]])*Table146135142[[#This Row],[Data Corrected]])/1000,0) -> 0.0087986
B31: 2021 | C31: Camira Group, Inc | D31: Grand Rapids | E31: ="Scope_1" -> Scope_1 | F31: Mobile Vehicle Fuel | G31: =LOOKUP(Table146135142[[#This Row],[Sub-scope]],Table3578[Source],Table3578[Pseudonym]) -> MobileVFUS | H31: Petrol | I31: =LOOKUP(Table146135142[[#This Row],[Emission Source]],Table125[[Emission ]],Table125[Pseudonym]) -> MobileVehicleFuelUS | J31: =LOOKUP(Table146135142[[#This Row],[Emission Source]],Table44[Fuel Type],Table44[Unit]) -> gallon | K31: 13756 | L31: mile | M31: =CONCATENATE(Table146135142[[#This Row],[Unit Reported]],Table146135142[[#This Row],[Unit Required]]) -> milegallon | N31: =LOOKUP(Table146135142[[#This Row],[Concatenate Units]],Table43[Concatenate],Table43[Multiply By]) -> 0.04149377593 | O31: =IFERROR(Table146135142[[#This Row],[Data Raw]]*Table146135142[[#This Row],[Unit Conversion]],0) -> 570.7883817 | P31: =IFERROR(Table146135142[[#This Row],[Unit Required]],"") -> gallon | Q31: =LOOKUP(Table146135142[[#This Row],[Emission Source]],Table44[Fuel Type],Table44[CO2 Factor (kg / Unit)]) -> 8.78 | R31: =LOOKUP(Table146135142[[#This Row],[Emission Source]],Table44[Fuel Type],Table44[CH4 Factor (g / unit)]) -> 0 | S31: =(Table146135142[[#This Row],[CH4]]/1000)*25 -> 0 | T31: =LOOKUP(Table146135142[[#This Row],[Emission Source]],Table44[Fuel Type],Table44[N2O Factor (g / unit)]) -> 0 | U31: =(Table146135142[[#This Row],[N2O]]/1000)*298 -> 0 | V31: =(LOOKUP(Table146135142[[#This Row],[Emission Source]],Table44[Fuel Type],Table44[GWP])) -> 0 | W31: =Table146135142[[#This Row],[Data Corrected]]*(LOOKUP(Table146135142[[#This Row],[Emission Source]],Table44[Fuel Type],Table44[Recycled CO2 Factor])) -> 0 | X31: =Table146135142[[#This Row],[Data Corrected]]*(LOOKUP(Table146135142[[#This Row],[Emission Source]],Table44[Fuel Type],Table44[Landfill CO2 Factor])) -> 0 | Y31: =Table146135142[[#This Row],[Data Corrected]]*(LOOKUP(Table146135142[[#This Row],[Emission Source]],Table44[Fuel Type],Table44[Combusted CO2 Factor])) -> 0 | Z31: =IFERROR(((Table146135142[[#This Row],[CO2]]+Table146135142[[#This Row],[CH4 Corrected]]+Table146135142[[#This Row],[N2O Corrected]]+Table146135142[[#This Row],[GWP]]+Table146135142[[#This Row],[Recycled]]+Table146135142[[#This Row],[Landfill]]+Table146135142[[#This Row],[Combusted]])*Table146135142[[#This Row],[Data Corrected]])/1000,0) -> 5.011521992
B32: 2021 | C32: Camira Group, Inc | D32: Grand Rapids | E32: ="Scope_1" -> Scope_1 | F32: Mobile Road Vehicle | G32: =LOOKUP(Table146135142[[#This Row],[Sub-scope]],Table3578[Source],Table3578[Pseudonym]) -> MobileRVUS | H32: Petrol Van 2018 | I32: =LOOKUP(Table146135142[[#This Row],[Emission Source]],Table125[[Emission ]],Table125[Pseudonym]) -> MobileRoadVehicleUS | J32: =LOOKUP(Table146135142[[#This Row],[Emission Source]],Table44[Fuel Type],Table44[Unit]) -> mile | K32: 13756 | L32: mile | M32: =CONCATENATE(Table146135142[[#This Row],[Unit Reported]],Table146135142[[#This Row],[Unit Required]]) -> milemile | N32: =LOOKUP(Table146135142[[#This Row],[Concatenate Units]],Table43[Concatenate],Table43[Multiply By]) -> 1 | O32: =IFERROR(Table146135142[[#This Row],[Data Raw]]*Table146135142[[#This Row],[Unit Conversion]],0) -> 13756 | P32: =IFERROR(Table146135142[[#This Row],[Unit Required]],"") -> mile | Q32: =LOOKUP(Table146135142[[#This Row],[Emission Source]],Table44[Fuel Type],Table44[CO2 Factor (kg / Unit)]) -> 0 | R32: =LOOKUP(Table146135142[[#This Row],[Emission Source]],Table44[Fuel Type],Table44[CH4 Factor (g / unit)]) -> 0.0081 | S32: =(Table146135142[[#This Row],[CH4]]/1000)*25 -> 0.0002025 | T32: =LOOKUP(Table146135142[[#This Row],[Emission Source]],Table44[Fuel Type],Table44[N2O Factor (g / unit)]) -> 0.0015 | U32: =(Table146135142[[#This Row],[N2O]]/1000)*298 -> 0.000447 | V32: =(LOOKUP(Table146135142[[#This Row],[Emission Source]],Table44[Fuel Type],Table44[GWP])) -> 0 | W32: =Table146135142[[#This Row],[Data Corrected]]*(LOOKUP(Table146135142[[#This Row],[Emission Source]],Table44[Fuel Type],Table44[Recycled CO2 Factor])) -> 0 | X32: =Table146135142[[#This Row],[Data Corrected]]*(LOOKUP(Table146135142[[#This Row],[Emission Source]],Table44[Fuel Type],Table44[Landfill CO2 Factor])) -> 0 | Y32: =Table146135142[[#This Row],[Data Corrected]]*(LOOKUP(Table146135142[[#This Row],[Emission Source]],Table44[Fuel Type],Table44[Combusted CO2 Factor])) -> 0 | Z32: =IFERROR(((Table146135142[[#This Row],[CO2]]+Table146135142[[#This Row],[CH4 Corrected]]+Table146135142[[#This Row],[N2O Corrected]]+Table146135142[[#This Row],[GWP]]+Table146135142[[#This Row],[Recycled]]+Table146135142[[#This Row],[Landfill]]+Table146135142[[#This Row],[Combusted]])*Table146135142[[#This Row],[Data Corrected]])/1000,0) -> 0.008934522
Z33: =SUM(Table146135142[tCO2e Emission Equivalent]) -> 10.31182773

Sheet 1.3
B2: Greenhouse Gas Emission Analysis - Refrigeration Equipment
B4: UK - DBEIS/DEFRA
B5: Reporting year | C5: Entity | D5: Location | E5: Scope | F5: Sub-scope | G5: Source Pseudonym | H5: Emission Source | I5: Emission Pseudonym | J5: Unit Required | K5: Data Raw | L5: Unit Reported | M5: Concatenate Units | N5: Unit Conversion | O5: Data Corrected | P5: Unit Corrected | Q5: Spare1 | R5: Spare2 | S5: Spare3 | T5: Spare4 | U5: Spare5 | V5: GWP | W5: kg_lb | X5: Spare6 | Y5: Spare7 | Z5: tCO2e Emission Equivalent | AB5: Workbook links
B6: 2021 | C6: Camira Fabrics Limited | D6: Mirfield | E6: ="Scope_1" -> Scope_1 | F6: ="Fugitive" -> Fugitive | G6: =LOOKUP(Table146135136143150[[#This Row],[Sub-scope]],Table357841[Source],Table357841[Pseudonym]) -> FugitiveUK | I6: =LOOKUP(Table146135136143150[[#This Row],[Emission Source]],Table125292[[Emission ]],Table125292[Pseudonym]) ->  | J6: =LOOKUP(Table146135136143150[[#This Row],[Emission Source]],Table44300[Fuel Type],Table44300[Unit]) ->  | M6: =CONCATENATE(Table146135136143150[[#This Row],[Unit Reported]],Table146135136143150[[#This Row],[Unit Required]]) ->  | N6: =LOOKUP(Table146135136143150[[#This Row],[Concatenate Units]],Table43299[Concatenate],Table43299[Multiply By]) ->  | O6: =IFERROR(Table146135136143150[[#This Row],[Data Raw]]*Table146135136143150[[#This Row],[Unit Conversion]],0) -> 0 | P6: =IFERROR(Table146135136143150[[#This Row],[Unit Required]],"") ->  | V6: =(LOOKUP(Table146135136143150[[#This Row],[Emission Source]],Table44300[Fuel Type],Table44300[GWP])) ->  | W6: =Table146135136143150[[#This Row],[Data Corrected]]*(LOOKUP(Table146135136143150[[#This Row],[Emission Source]],Table44[Fuel Type],Table44[Recycled CO2 Factor])) ->  | X6: =Table146135136143150[[#This Row],[Data Corrected]]*(LOOKUP(Table146135136143150[[#This Row],[Emission Source]],Table44[Fuel Type],Table44[Landfill CO2 Factor])) ->  | Y6: =Table146135136143150[[#This Row],[Data Corrected]]*(LOOKUP(Table146135136143150[[#This Row],[Emission Source]],Table44[Fuel Type],Table44[Combusted CO2 Factor])) ->  | Z6: =IFERROR(((Table146135136143150[[#This Row],[Spare1]]+Table146135136143150[[#This Row],[Spare3]]+Table146135136143150[[#This Row],[Spare5]]+Table146135136143150[[#This Row],[GWP]]+Table146135136143150[[#This Row],[kg_lb]]+Table146135136143150[[#This Row],[Spare6]]+Table146135136143150[[#This Row],[Spare7]])*Table146135136143150[[#This Row],[Data Corrected]])/1000,0) -> 0
Z7: =SUM(Table146135136143150[tCO2e Emission Equivalent]) -> 0 | AC7: GHG Reporting Process
B8: Reporting year | C8: Entity | D8: Location | E8: Scope | F8: Sub-scope | G8: Source Pseudonym | H8: Emission Source | I8: Emission Pseudonym | J8: Unit Required | K8: Data Raw | L8: Unit Reported | M8: Concatenate Units | N8: Unit Conversion | O8: Data Corrected | P8: Unit Corrected | Q8: Spare1 | R8: Spare2 | S8: Spare3 | T8: Spare4 | U8: Spare5 | V8: GWP | W8: kg_lb | X8: Spare6 | Y8: Spare7 | Z8: tCO2e Emission Equivalent
B9: 2021 | C9: Camira Fabrics Limited | D9: Meltham | E9: ="Scope_1" -> Scope_1 | F9: ="Fugitive" -> Fugitive | G9: =LOOKUP(Table146135136143150312[[#This Row],[Sub-scope]],Table357841[Source],Table357841[Pseudonym]) -> FugitiveUK | H9: R407C | I9: =LOOKUP(Table146135136143150312[[#This Row],[Emission Source]],Table125292[[Emission ]],Table125292[Pseudonym]) -> FugUK | J9: =LOOKUP(Table146135136143150312[[#This Row],[Emission Source]],Table44300[Fuel Type],Table44300[Unit]) -> kg | K9: 0 | L9: kg | M9: =CONCATENATE(Table146135136143150312[[#This Row],[Unit Reported]],Table146135136143150312[[#This Row],[Unit Required]]) -> kgkg | N9: =LOOKUP(Table146135136143150312[[#This Row],[Concatenate Units]],Table43299[Concatenate],Table43299[Multiply By]) -> 1 | O9: =IFERROR(Table146135136143150312[[#This Row],[Data Raw]]*Table146135136143150312[[#This Row],[Unit Conversion]],0) -> 0 | P9: =IFERROR(Table146135136143150312[[#This Row],[Unit Required]],"") -> kg | V9: =(LOOKUP(Table146135136143150312[[#This Row],[Emission Source]],Table44300[Fuel Type],Table44300[GWP])) -> 1774 | W9: =Table146135136143150312[[#This Row],[Data Corrected]]*(LOOKUP(Table146135136143150312[[#This Row],[Emission Source]],Table44[Fuel Type],Table44[Recycled CO2 Factor])) -> 0 | X9: =Table146135136143150312[[#This Row],[Data Corrected]]*(LOOKUP(Table146135136143150312[[#This Row],[Emission Source]],Table44[Fuel Type],Table44[Landfill CO2 Factor])) -> 0 | Y9: =Table146135136143150312[[#This Row],[Data Corrected]]*(LOOKUP(Table146135136143150312[[#This Row],[Emission Source]],Table44[Fuel Type],Table44[Combusted CO2 Factor])) -> 0 | Z9: =IFERROR(((Table146135136143150312[[#This Row],[Spare1]]+Table146135136143150312[[#This Row],[Spare3]]+Table146135136143150312[[#This Row],[Spare5]]+Table146135136143150312[[#This Row],[GWP]]+Table146135136143150312[[#This Row],[kg_lb]]+Table146135136143150312[[#This Row],[Spare6]]+Table146135136143150312[[#This Row],[Spare7]])*Table146135136143150312[[#This Row],[Data Corrected]])/1000,0) -> 0
Z10: =SUM(Table146135136143150312[tCO2e Emission Equivalent]) -> 0 | AC10: GHG Questionnaire
B11: Reporting year | C11: Entity | D11: Location | E11: Scope | F11: Sub-scope | G11: Source Pseudonym | H11: Emission Source | I11: Emission Pseudonym | J11: Unit Required | K11: Data Raw | L11: Unit Reported | M11: Concatenate Units | N11: Unit Conversion | O11: Data Corrected | P11: Unit Corrected | Q11: Spare1 | R11: Spare2 | S11: Spare3 | T11: Spare4 | U11: Spare5 | V11: GWP | W11: kg_lb | X11: Spare6 | Y11: Spare7 | Z11: tCO2e Emission Equivalent
B12: 2021 | C12: Camira Fabrics Limited | D12: Nottingham | E12: ="Scope_1" -> Scope_1 | F12: ="Fugitive" -> Fugitive | G12: =LOOKUP(Table146135136143150313[[#This Row],[Sub-scope]],Table357841[Source],Table357841[Pseudonym]) -> FugitiveUK | I12: =LOOKUP(Table146135136143150313[[#This Row],[Emission Source]],Table125292[[Emission ]],Table125292[Pseudonym]) ->  | J12: =LOOKUP(Table146135136143150313[[#This Row],[Emission Source]],Table44300[Fuel Type],Table44300[Unit]) ->  | M12: =CONCATENATE(Table146135136143150313[[#This Row],[Unit Reported]],Table146135136143150313[[#This Row],[Unit Required]]) ->  | N12: =LOOKUP(Table146135136143150313[[#This Row],[Concatenate Units]],Table43299[Concatenate],Table43299[Multiply By]) ->  | O12: =IFERROR(Table146135136143150313[[#This Row],[Data Raw]]*Table146135136143150313[[#This Row],[Unit Conversion]],0) -> 0 | P12: =IFERROR(Table146135136143150313[[#This Row],[Unit Required]],"") ->  | V12: =(LOOKUP(Table146135136143150313[[#This Row],[Emission Source]],Table44300[Fuel Type],Table44300[GWP])) ->  | W12: =Table146135136143150313[[#This Row],[Data Corrected]]*(LOOKUP(Table146135136143150313[[#This Row],[Emission Source]],Table44[Fuel Type],Table44[Recycled CO2 Factor])) ->  | X12: =Table146135136143150313[[#This Row],[Data Corrected]]*(LOOKUP(Table146135136143150313[[#This Row],[Emission Source]],Table44[Fuel Type],Table44[Landfill CO2 Factor])) ->  | Y12: =Table146135136143150313[[#This Row],[Data Corrected]]*(LOOKUP(Table146135136143150313[[#This Row],[Emission Source]],Table44[Fuel Type],Table44[Combusted CO2 Factor])) ->  | Z12: =IFERROR(((Table146135136143150313[[#This Row],[Spare1]]+Table146135136143150313[[#This Row],[Spare3]]+Table146135136143150313[[#This Row],[Spare5]]+Table146135136143150313[[#This Row],[GWP]]+Table146135136143150313[[#This Row],[kg_lb]]+Table146135136143150313[[#This Row],[Spare6]]+Table146135136143150313[[#This Row],[Spare7]])*Table146135136143150313[[#This Row],[Data Corrected]])/1000,0) -> 0
Z13: =SUM(Table146135136143150313[tCO2e Emission Equivalent]) -> 0 | AC13: GHG Statement of Applicability
B14: Reporting year | C14: Entity | D14: Location | E14: Scope | F14: Sub-scope | G14: Source Pseudonym | H14: Emission Source | I14: Emission Pseudonym | J14: Unit Required | K14: Data Raw | L14: Unit Reported | M14: Concatenate Units | N14: Unit Conversion | O14: Data Corrected | P14: Unit Corrected | Q14: Spare1 | R14: Spare2 | S14: Spare3 | T14: Spare4 | U14: Spare5 | V14: GWP | W14: kg_lb | X14: Spare6 | Y14: Spare7 | Z14: tCO2e Emission Equivalent
B15: 2021 | C15: Camira Yarns Limited | D15: Birkby | E15: ="Scope_1" -> Scope_1 | F15: ="Fugitive" -> Fugitive | G15: =LOOKUP(Table146135136143150314[[#This Row],[Sub-scope]],Table357841[Source],Table357841[Pseudonym]) -> FugitiveUK | I15: =LOOKUP(Table146135136143150314[[#This Row],[Emission Source]],Table125292[[Emission ]],Table125292[Pseudonym]) ->  | J15: =LOOKUP(Table146135136143150314[[#This Row],[Emission Source]],Table44300[Fuel Type],Table44300[Unit]) ->  | M15: =CONCATENATE(Table146135136143150314[[#This Row],[Unit Reported]],Table146135136143150314[[#This Row],[Unit Required]]) ->  | N15: =LOOKUP(Table146135136143150314[[#This Row],[Concatenate Units]],Table43299[Concatenate],Table43299[Multiply By]) ->  | O15: =IFERROR(Table146135136143150314[[#This Row],[Data Raw]]*Table146135136143150314[[#This Row],[Unit Conversion]],0) -> 0 | P15: =IFERROR(Table146135136143150314[[#This Row],[Unit Required]],"") ->  | V15: =(LOOKUP(Table146135136143150314[[#This Row],[Emission Source]],Table44300[Fuel Type],Table44300[GWP])) ->  | W15: =Table146135136143150314[[#This Row],[Data Corrected]]*(LOOKUP(Table146135136143150314[[#This Row],[Emission Source]],Table44[Fuel Type],Table44[Recycled CO2 Factor])) ->  | X15: =Table146135136143150314[[#This Row],[Data Corrected]]*(LOOKUP(Table146135136143150314[[#This Row],[Emission Source]],Table44[Fuel Type],Table44[Landfill CO2 Factor])) ->  | Y15: =Table146135136143150314[[#This Row],[Data Corrected]]*(LOOKUP(Table146135136143150314[[#This Row],[Emission Source]],Table44[Fuel Type],Table44[Combusted CO2 Factor])) ->  | Z15: =IFERROR(((Table146135136143150314[[#This Row],[Spare1]]+Table146135136143150314[[#This Row],[Spare3]]+Table146135136143150314[[#This Row],[Spare5]]+Table146135136143150314[[#This Row],[GWP]]+Table146135136143150314[[#This Row],[kg_lb]]+Table146135136143150314[[#This Row],[Spare6]]+Table146135136143150314[[#This Row],[Spare7]])*Table146135136143150314[[#This Row],[Data Corrected]])/1000,0) -> 0
Z16: =SUM(Table146135136143150314[tCO2e Emission Equivalent]) -> 0 | AC16: GHG Summary Report
B17: Reporting year | C17: Entity | D17: Location | E17: Scope | F17: Sub-scope | G17: Source Pseudonym | H17: Emission Source | I17: Emission Pseudonym | J17: Unit Required | K17: Data Raw | L17: Unit Reported | M17: Concatenate Units | N17: Unit Conversion | O17: Data Corrected | P17: Unit Corrected | Q17: Spare1 | R17: Spare2 | S17: Spare3 | T17: Spare4 | U17: Spare5 | V17: GWP | W17: kg_lb | X17: Spare6 | Y17: Spare7 | Z17: tCO2e Emission Equivalent
B18: 2021 | C18: Holmfirth Dyers Limited | D18: Holmfirth | E18: ="Scope_1" -> Scope_1 | F18: ="Fugitive" -> Fugitive | G18: =LOOKUP(Table146135136143150315[[#This Row],[Sub-scope]],Table357841[Source],Table357841[Pseudonym]) -> FugitiveUK | H18: R410A | I18: =LOOKUP(Table146135136143150315[[#This Row],[Emission Source]],Table125292[[Emission ]],Table125292[Pseudonym]) -> FugUK | J18: =LOOKUP(Table146135136143150315[[#This Row],[Emission Source]],Table44300[Fuel Type],Table44300[Unit]) -> kg | K18: 2.55 | L18: kg | M18: =CONCATENATE(Table146135136143150315[[#This Row],[Unit Reported]],Table146135136143150315[[#This Row],[Unit Required]]) -> kgkg | N18: =LOOKUP(Table146135136143150315[[#This Row],[Concatenate Units]],Table43299[Concatenate],Table43299[Multiply By]) -> 1 | O18: =IFERROR(Table146135136143150315[[#This Row],[Data Raw]]*Table146135136143150315[[#This Row],[Unit Conversion]],0) -> 2.55 | P18: =IFERROR(Table146135136143150315[[#This Row],[Unit Required]],"") -> kg | V18: =(LOOKUP(Table146135136143150315[[#This Row],[Emission Source]],Table44300[Fuel Type],Table44300[GWP])) -> 2088 | W18: =Table146135136143150315[[#This Row],[Data Corrected]]*(LOOKUP(Table146135136143150315[[#This Row],[Emission Source]],Table44[Fuel Type],Table44[Recycled CO2 Factor])) -> 0 | X18: =Table146135136143150315[[#This Row],[Data Corrected]]*(LOOKUP(Table146135136143150315[[#This Row],[Emission Source]],Table44[Fuel Type],Table44[Landfill CO2 Factor])) -> 0 | Y18: =Table146135136143150315[[#This Row],[Data Corrected]]*(LOOKUP(Table146135136143150315[[#This Row],[Emission Source]],Table44[Fuel Type],Table44[Combusted CO2 Factor])) -> 0 | Z18: =IFERROR(((Table146135136143150315[[#This Row],[Spare1]]+Table146135136143150315[[#This Row],[Spare3]]+Table146135136143150315[[#This Row],[Spare5]]+Table146135136143150315[[#This Row],[GWP]]+Table146135136143150315[[#This Row],[kg_lb]]+Table146135136143150315[[#This Row],[Spare6]]+Table146135136143150315[[#This Row],[Spare7]])*Table146135136143150315[[#This Row],[Data Corrected]])/1000,0) -> 5.3244
Z19: =SUM(Table146135136143150315[tCO2e Emission Equivalent]) -> 5.3244
B20: EUR
B21: Reporting year | C21: Entity | D21: Location | E21: Scope | F21: Sub-scope | G21: Source Pseudonym | H21: Emission Source | I21: Emission Pseudonym | J21: Unit Required | K21: Data Raw | L21: Unit Reported | M21: Concatenate Units | N21: Unit Conversion | O21: Data Corrected | P21: Unit Corrected | Q21: Spare1 | R21: Spare2 | S21: Spare3 | T21: Spare4 | U21: Spare5 | V21: GWP | W21: kg_lb | X21: Spare6 | Y21: Spare7 | Z21: tCO2e Emission Equivalent | AB21: Scope Emissions
B22: 2021 | C22: UAB Camira Fabrics | D22: Lithuania | E22: ="Scope_1" -> Scope_1 | F22: ="Fugitive" -> Fugitive | G22: =LOOKUP(Table146135136143150316[[#This Row],[Sub-scope]],Table357841[Source],Table357841[Pseudonym]) -> FugitiveUK | H22: R410A | I22: =LOOKUP(Table146135136143150316[[#This Row],[Emission Source]],Table125292[[Emission ]],Table125292[Pseudonym]) -> FugUK | J22: =LOOKUP(Table146135136143150316[[#This Row],[Emission Source]],Table44300[Fuel Type],Table44300[Unit]) -> kg | K22: 0 | L22: kg | M22: =CONCATENATE(Table146135136143150316[[#This Row],[Unit Reported]],Table146135136143150316[[#This Row],[Unit Required]]) -> kgkg | N22: =LOOKUP(Table146135136143150316[[#This Row],[Concatenate Units]],Table43299[Concatenate],Table43299[Multiply By]) -> 1 | O22: =IFERROR(Table146135136143150316[[#This Row],[Data Raw]]*Table146135136143150316[[#This Row],[Unit Conversion]],0) -> 0 | P22: =IFERROR(Table146135136143150316[[#This Row],[Unit Required]],"") -> kg | V22: =(LOOKUP(Table146135136143150316[[#This Row],[Emission Source]],Table44300[Fuel Type],Table44300[GWP])) -> 2088 | W22: =Table146135136143150316[[#This Row],[Data Corrected]]*(LOOKUP(Table146135136143150316[[#This Row],[Emission Source]],Table44[Fuel Type],Table44[Recycled CO2 Factor])) -> 0 | X22: =Table146135136143150316[[#This Row],[Data Corrected]]*(LOOKUP(Table146135136143150316[[#This Row],[Emission Source]],Table44[Fuel Type],Table44[Landfill CO2 Factor])) -> 0 | Y22: =Table146135136143150316[[#This Row],[Data Corrected]]*(LOOKUP(Table146135136143150316[[#This Row],[Emission Source]],Table44[Fuel Type],Table44[Combusted CO2 Factor])) -> 0 | Z22: =IFERROR(((Table146135136143150316[[#This Row],[Spare1]]+Table146135136143150316[[#This Row],[Spare3]]+Table146135136143150316[[#This Row],[Spare5]]+Table146135136143150316[[#This Row],[GWP]]+Table146135136143150316[[#This Row],[kg_lb]]+Table146135136143150316[[#This Row],[Spare6]]+Table146135136143150316[[#This Row],[Spare7]])*Table146135136143150316[[#This Row],[Data Corrected]])/1000,0) -> 0
Z23: =SUM(Table146135136143150316[tCO2e Emission Equivalent]) -> 0 | AB23: tCO2e | AC23: =Z7+Z10+Z13+Z16+Z19+Z23+Z27 -> 5.3244
B24: US - EPA
B25: Reporting year | C25: Entity | D25: Location | E25: Scope | F25: Sub-scope | G25: Source Pseudonym | H25: Emission Source | I25: Emission Pseudonym | J25: Unit Required | K25: Data Raw | L25: Unit Reported | M25: Concatenate Units | N25: Unit Conversion | O25: Data Corrected | P25: Unit Corrected | Q25: Spare1 | R25: Spare2 | S25: Spare3 | T25: Spare4 | U25: Spare5 | V25: GWP | W25: kg_lb | X25: Spare6 | Y25: Spare7 | Z25: tCO2e Emission Equivalent
B26: 2021 | C26: Camira Group, Inc | D26: Grand Rapids | E26: ="Scope_1" -> Scope_1 | F26: ="Fugitive" -> Fugitive | G26: =LOOKUP(Table146135142149[[#This Row],[Sub-scope]],Table3578[Source],Table3578[Pseudonym]) -> FugitiveUS | I26: =LOOKUP(Table146135142149[[#This Row],[Emission Source]],Table125[[Emission ]],Table125[Pseudonym]) ->  | J26: =LOOKUP(Table146135142149[[#This Row],[Emission Source]],Table44[Fuel Type],Table44[Unit]) ->  | K26: 0 | M26: =CONCATENATE(Table146135142149[[#This Row],[Unit Reported]],Table146135142149[[#This Row],[Unit Required]]) ->  | N26: =LOOKUP(Table146135142149[[#This Row],[Concatenate Units]],Table43[Concatenate],Table43[Multiply By]) ->  | O26: =IFERROR(Table146135142149[[#This Row],[Data Raw]]*Table146135142149[[#This Row],[Unit Conversion]],0) -> 0 | P26: =IFERROR(Table146135142149[[#This Row],[Unit Required]],"") ->  | V26: =(LOOKUP(Table146135142149[[#This Row],[Emission Source]],Table44[Fuel Type],Table44[GWP])) ->  | W26: ='Conversions - US'!AA5 -> 0.4536 | Z26: =IFERROR((((Table146135142149[[#This Row],[GWP]])*Table146135142149[[#This Row],[Data Corrected]])/1000)*Table146135142149[[#This Row],[kg_lb]],0) -> 0
Z27: =SUM(Table146135142149[tCO2e Emission Equivalent]) -> 0

Sheet 1.4
B2: Greenhouse Gas Emission Analysis - Fire Supression
B4: UK - DBEIS/DEFRA
B5: Reporting year | C5: Entity | D5: Location | E5: Scope | F5: Sub-scope | G5: Source Pseudonym | H5: Emission Source | I5: Emission Pseudonym | J5: Unit Required | K5: Data (Raw) | L5: Unit Reported | M5: Concatenate Units | N5: Unit Conversion | O5: Data (Corrected) | P5: Unit (Corrected) | Q5: Spare1 | R5: Spare2 | S5: Spare3 | T5: Spare4 | U5: Spare5 | V5: GWP | W5: kg_lb | X5: Spare6 | Y5: Spare7 | Z5: tCO2e Emission Equivalent | AB5: Workbook links
B6: 2021 | C6: Camira Fabrics Limited | D6: Mirfield | E6: ="Scope_1" -> Scope_1 | F6: ="Fugitive" -> Fugitive | G6: =LOOKUP(Table146135136143150318[[#This Row],[Sub-scope]],Table357841[Source],Table357841[Pseudonym]) -> FugitiveUK | H6: HFC-227ea | I6: =LOOKUP(Table146135136143150318[[#This Row],[Emission Source]],Table125292[[Emission ]],Table125292[Pseudonym]) -> FugUK | J6: =LOOKUP(Table146135136143150318[[#This Row],[Emission Source]],Table44300[Fuel Type],Table44300[Unit]) -> kg | K6: 0 | L6: kg | M6: =CONCATENATE(Table146135136143150318[[#This Row],[Unit Reported]],Table146135136143150318[[#This Row],[Unit Required]]) -> kgkg | N6: =LOOKUP(Table146135136143150318[[#This Row],[Concatenate Units]],Table43299[Concatenate],Table43299[Multiply By]) -> 1 | O6: =IFERROR(Table146135136143150318[[#This Row],[Data (Raw)]]*Table146135136143150318[[#This Row],[Unit Conversion]],0) -> 0 | P6: =IFERROR(Table146135136143150318[[#This Row],[Unit Required]],"") -> kg | V6: =(LOOKUP(Table146135136143150318[[#This Row],[Emission Source]],Table44300[Fuel Type],Table44300[GWP])) -> 3220 | W6: =Table146135136143150318[[#This Row],[Data (Corrected)]]*(LOOKUP(Table146135136143150318[[#This Row],[Emission Source]],Table44[Fuel Type],Table44[Recycled CO2 Factor])) -> 0 | X6: =Table146135136143150318[[#This Row],[Data (Corrected)]]*(LOOKUP(Table146135136143150318[[#This Row],[Emission Source]],Table44[Fuel Type],Table44[Landfill CO2 Factor])) -> 0 | Y6: =Table146135136143150318[[#This Row],[Data (Corrected)]]*(LOOKUP(Table146135136143150318[[#This Row],[Emission Source]],Table44[Fuel Type],Table44[Combusted CO2 Factor])) -> 0 | Z6: =IFERROR(((Table146135136143150318[[#This Row],[Spare1]]+Table146135136143150318[[#This Row],[Spare3]]+Table146135136143150318[[#This Row],[Spare5]]+Table146135136143150318[[#This Row],[GWP]]+Table146135136143150318[[#This Row],[kg_lb]]+Table146135136143150318[[#This Row],[Spare6]]+Table146135136143150318[[#This Row],[Spare7]])*Table146135136143150318[[#This Row],[Data (Corrected)]])/1000,0) -> 0
Z7: =SUM(Table146135136143150318[tCO2e Emission Equivalent]) -> 0 | AC7: GHG Reporting Process
B8: Reporting year | C8: Entity | D8: Location | E8: Scope | F8: Sub-scope | G8: Source Pseudonym | H8: Emission Source | I8: Emission Pseudonym | J8: Unit Required | K8: Data (Raw) | L8: Unit Reported | M8: Concatenate Units | N8: Unit Conversion | O8: Data (Corrected) | P8: Unit (Corrected) | Q8: Spare1 | R8: Spare2 | S8: Spare3 | T8: Spare4 | U8: Spare5 | V8: GWP | W8: kg_lb | X8: Spare6 | Y8: Spare7 | Z8: tCO2e Emission Equivalent
B9: 2021 | C9: Camira Fabrics Limited | D9: Meltham | E9: ="Scope_1" -> Scope_1 | F9: ="Fugitive" -> Fugitive | G9: =LOOKUP(Table146135136143150312319[[#This Row],[Sub-scope]],Table357841[Source],Table357841[Pseudonym]) -> FugitiveUK | H9: HFC-227ea | I9: =LOOKUP(Table146135136143150312319[[#This Row],[Emission Source]],Table125292[[Emission ]],Table125292[Pseudonym]) -> FugUK | J9: =LOOKUP(Table146135136143150312319[[#This Row],[Emission Source]],Table44300[Fuel Type],Table44300[Unit]) -> kg | K9: 0 | L9: kg | M9: =CONCATENATE(Table146135136143150312319[[#This Row],[Unit Reported]],Table146135136143150312319[[#This Row],[Unit Required]]) -> kgkg | N9: =LOOKUP(Table146135136143150312319[[#This Row],[Concatenate Units]],Table43299[Concatenate],Table43299[Multiply By]) -> 1 | O9: =IFERROR(Table146135136143150312319[[#This Row],[Data (Raw)]]*Table146135136143150312319[[#This Row],[Unit Conversion]],0) -> 0 | P9: =IFERROR(Table146135136143150312319[[#This Row],[Unit Required]],"") -> kg | V9: =(LOOKUP(Table146135136143150312319[[#This Row],[Emission Source]],Table44300[Fuel Type],Table44300[GWP])) -> 3220 | W9: =Table146135136143150312319[[#This Row],[Data (Corrected)]]*(LOOKUP(Table146135136143150312319[[#This Row],[Emission Source]],Table44[Fuel Type],Table44[Recycled CO2 Factor])) -> 0 | X9: =Table146135136143150312319[[#This Row],[Data (Corrected)]]*(LOOKUP(Table146135136143150312319[[#This Row],[Emission Source]],Table44[Fuel Type],Table44[Landfill CO2 Factor])) -> 0 | Y9: =Table146135136143150312319[[#This Row],[Data (Corrected)]]*(LOOKUP(Table146135136143150312319[[#This Row],[Emission Source]],Table44[Fuel Type],Table44[Combusted CO2 Factor])) -> 0 | Z9: =IFERROR(((Table146135136143150312319[[#This Row],[Spare1]]+Table146135136143150312319[[#This Row],[Spare3]]+Table146135136143150312319[[#This Row],[Spare5]]+Table146135136143150312319[[#This Row],[GWP]]+Table146135136143150312319[[#This Row],[kg_lb]]+Table146135136143150312319[[#This Row],[Spare6]]+Table146135136143150312319[[#This Row],[Spare7]])*Table146135136143150312319[[#This Row],[Data (Corrected)]])/1000,0) -> 0
Z10: =SUM(Table146135136143150312319[tCO2e Emission Equivalent]) -> 0 | AC10: GHG Questionnaire
B11: Reporting year | C11: Entity | D11: Location | E11: Scope | F11: Sub-scope | G11: Source Pseudonym | H11: Emission Source | I11: Emission Pseudonym | J11: Unit Required | K11: Data (Raw) | L11: Unit Reported | M11: Concatenate Units | N11: Unit Conversion | O11: Data (Corrected) | P11: Unit (Corrected) | Q11: Spare1 | R11: Spare2 | S11: Spare3 | T11: Spare4 | U11: Spare5 | V11: GWP | W11: kg_lb | X11: Spare6 | Y11: Spare7 | Z11: tCO2e Emission Equivalent
B12: 2021 | C12: Camira Fabrics Limited | D12: Nottingham | E12: ="Scope_1" -> Scope_1 | F12: ="Fugitive" -> Fugitive | G12: =LOOKUP(Table146135136143150313320[[#This Row],[Sub-scope]],Table357841[Source],Table357841[Pseudonym]) -> FugitiveUK | I12: =LOOKUP(Table146135136143150313320[[#This Row],[Emission Source]],Table125292[[Emission ]],Table125292[Pseudonym]) ->  | J12: =LOOKUP(Table146135136143150313320[[#This Row],[Emission Source]],Table44300[Fuel Type],Table44300[Unit]) ->  | M12: =CONCATENATE(Table146135136143150313320[[#This Row],[Unit Reported]],Table146135136143150313320[[#This Row],[Unit Required]]) ->  | N12: =LOOKUP(Table146135136143150313320[[#This Row],[Concatenate Units]],Table43299[Concatenate],Table43299[Multiply By]) ->  | O12: =IFERROR(Table146135136143150313320[[#This Row],[Data (Raw)]]*Table146135136143150313320[[#This Row],[Unit Conversion]],0) -> 0 | P12: =IFERROR(Table146135136143150313320[[#This Row],[Unit Required]],"") ->  | V12: =(LOOKUP(Table146135136143150313320[[#This Row],[Emission Source]],Table44300[Fuel Type],Table44300[GWP])) ->  | W12: =Table146135136143150313320[[#This Row],[Data (Corrected)]]*(LOOKUP(Table146135136143150313320[[#This Row],[Emission Source]],Table44[Fuel Type],Table44[Recycled CO2 Factor])) ->  | X12: =Table146135136143150313320[[#This Row],[Data (Corrected)]]*(LOOKUP(Table146135136143150313320[[#This Row],[Emission Source]],Table44[Fuel Type],Table44[Landfill CO2 Factor])) ->  | Y12: =Table146135136143150313320[[#This Row],[Data (Corrected)]]*(LOOKUP(Table146135136143150313320[[#This Row],[Emission Source]],Table44[Fuel Type],Table44[Combusted CO2 Factor])) ->  | Z12: =IFERROR(((Table146135136143150313320[[#This Row],[Spare1]]+Table146135136143150313320[[#This Row],[Spare3]]+Table146135136143150313320[[#This Row],[Spare5]]+Table146135136143150313320[[#This Row],[GWP]]+Table146135136143150313320[[#This Row],[kg_lb]]+Table146135136143150313320[[#This Row],[Spare6]]+Table146135136143150313320[[#This Row],[Spare7]])*Table146135136143150313320[[#This Row],[Data (Corrected)]])/1000,0) -> 0
Z13: =SUM(Table146135136143150313320[tCO2e Emission Equivalent]) -> 0 | AC13: GHG Statement of Applicability
B14: Reporting year | C14: Entity | D14: Location | E14: Scope | F14: Sub-scope | G14: Source Pseudonym | H14: Emission Source | I14: Emission Pseudonym | J14: Unit Required | K14: Data (Raw) | L14: Unit Reported | M14: Concatenate Units | N14: Unit Conversion | O14: Data (Corrected) | P14: Unit (Corrected) | Q14: Spare1 | R14: Spare2 | S14: Spare3 | T14: Spare4 | U14: Spare5 | V14: GWP | W14: kg_lb | X14: Spare6 | Y14: Spare7 | Z14: tCO2e Emission Equivalent
B15: 2021 | C15: Camira Yarns Limited | D15: Birkby | E15: ="Scope_1" -> Scope_1 | F15: ="Fugitive" -> Fugitive | G15: =LOOKUP(Table146135136143150314321[[#This Row],[Sub-scope]],Table357841[Source],Table357841[Pseudonym]) -> FugitiveUK | I15: =LOOKUP(Table146135136143150314321[[#This Row],[Emission Source]],Table125292[[Emission ]],Table125292[Pseudonym]) ->  | J15: =LOOKUP(Table146135136143150314321[[#This Row],[Emission Source]],Table44300[Fuel Type],Table44300[Unit]) ->  | M15: =CONCATENATE(Table146135136143150314321[[#This Row],[Unit Reported]],Table146135136143150314321[[#This Row],[Unit Required]]) ->  | N15: =LOOKUP(Table146135136143150314321[[#This Row],[Concatenate Units]],Table43299[Concatenate],Table43299[Multiply By]) ->  | O15: =IFERROR(Table146135136143150314321[[#This Row],[Data (Raw)]]*Table146135136143150314321[[#This Row],[Unit Conversion]],0) -> 0 | P15: =IFERROR(Table146135136143150314321[[#This Row],[Unit Required]],"") ->  | V15: =(LOOKUP(Table146135136143150314321[[#This Row],[Emission Source]],Table44300[Fuel Type],Table44300[GWP])) ->  | W15: =Table146135136143150314321[[#This Row],[Data (Corrected)]]*(LOOKUP(Table146135136143150314321[[#This Row],[Emission Source]],Table44[Fuel Type],Table44[Recycled CO2 Factor])) ->  | X15: =Table146135136143150314321[[#This Row],[Data (Corrected)]]*(LOOKUP(Table146135136143150314321[[#This Row],[Emission Source]],Table44[Fuel Type],Table44[Landfill CO2 Factor])) ->  | Y15: =Table146135136143150314321[[#This Row],[Data (Corrected)]]*(LOOKUP(Table146135136143150314321[[#This Row],[Emission Source]],Table44[Fuel Type],Table44[Combusted CO2 Factor])) ->  | Z15: =IFERROR(((Table146135136143150314321[[#This Row],[Spare1]]+Table146135136143150314321[[#This Row],[Spare3]]+Table146135136143150314321[[#This Row],[Spare5]]+Table146135136143150314321[[#This Row],[GWP]]+Table146135136143150314321[[#This Row],[kg_lb]]+Table146135136143150314321[[#This Row],[Spare6]]+Table146135136143150314321[[#This Row],[Spare7]])*Table146135136143150314321[[#This Row],[Data (Corrected)]])/1000,0) -> 0
Z16: =SUM(Table146135136143150314321[tCO2e Emission Equivalent]) -> 0 | AC16: GHG Summary Report
B17: Reporting year | C17: Entity | D17: Location | E17: Scope | F17: Sub-scope | G17: Source Pseudonym | H17: Emission Source | I17: Emission Pseudonym | J17: Unit Required | K17: Data (Raw) | L17: Unit Reported | M17: Concatenate Units | N17: Unit Conversion | O17: Data (Corrected) | P17: Unit (Corrected) | Q17: Spare1 | R17: Spare2 | S17: Spare3 | T17: Spare4 | U17: Spare5 | V17: GWP | W17: kg_lb | X17: Spare6 | Y17: Spare7 | Z17: tCO2e Emission Equivalent
B18: 2021 | C18: Holmfirth Dyers Limited | D18: Holmfirth | E18: ="Scope_1" -> Scope_1 | F18: ="Fugitive" -> Fugitive | G18: =LOOKUP(Table146135136143150315322[[#This Row],[Sub-scope]],Table357841[Source],Table357841[Pseudonym]) -> FugitiveUK | I18: =LOOKUP(Table146135136143150315322[[#This Row],[Emission Source]],Table125292[[Emission ]],Table125292[Pseudonym]) ->  | J18: =LOOKUP(Table146135136143150315322[[#This Row],[Emission Source]],Table44300[Fuel Type],Table44300[Unit]) ->  | M18: =CONCATENATE(Table146135136143150315322[[#This Row],[Unit Reported]],Table146135136143150315322[[#This Row],[Unit Required]]) ->  | N18: =LOOKUP(Table146135136143150315322[[#This Row],[Concatenate Units]],Table43299[Concatenate],Table43299[Multiply By]) ->  | O18: =IFERROR(Table146135136143150315322[[#This Row],[Data (Raw)]]*Table146135136143150315322[[#This Row],[Unit Conversion]],0) -> 0 | P18: =IFERROR(Table146135136143150315322[[#This Row],[Unit Required]],"") ->  | V18: =(LOOKUP(Table146135136143150315322[[#This Row],[Emission Source]],Table44300[Fuel Type],Table44300[GWP])) ->  | W18: =Table146135136143150315322[[#This Row],[Data (Corrected)]]*(LOOKUP(Table146135136143150315322[[#This Row],[Emission Source]],Table44[Fuel Type],Table44[Recycled CO2 Factor])) ->  | X18: =Table146135136143150315322[[#This Row],[Data (Corrected)]]*(LOOKUP(Table146135136143150315322[[#This Row],[Emission Source]],Table44[Fuel Type],Table44[Landfill CO2 Factor])) ->  | Y18: =Table146135136143150315322[[#This Row],[Data (Corrected)]]*(LOOKUP(Table146135136143150315322[[#This Row],[Emission Source]],Table44[Fuel Type],Table44[Combusted CO2 Factor])) ->  | Z18: =IFERROR(((Table146135136143150315322[[#This Row],[Spare1]]+Table146135136143150315322[[#This Row],[Spare3]]+Table146135136143150315322[[#This Row],[Spare5]]+Table146135136143150315322[[#This Row],[GWP]]+Table146135136143150315322[[#This Row],[kg_lb]]+Table146135136143150315322[[#This Row],[Spare6]]+Table146135136143150315322[[#This Row],[Spare7]])*Table146135136143150315322[[#This Row],[Data (Corrected)]])/1000,0) -> 0
Z19: =SUM(Table146135136143150315322[tCO2e Emission Equivalent]) -> 0
B20: EUR
B21: Reporting year | C21: Entity | D21: Location | E21: Scope | F21: Sub-scope | G21: Source Pseudonym | H21: Emission Source | I21: Emission Pseudonym | J21: Unit Required | K21: Data (Raw) | L21: Unit Reported | M21: Concatenate Units | N21: Unit Conversion | O21: Data (Corrected) | P21: Unit (Corrected) | Q21: Spare1 | R21: Spare2 | S21: Spare3 | T21: Spare4 | U21: Spare5 | V21: GWP | W21: kg_lb | X21: Spare6 | Y21: Spare7 | Z21: tCO2e Emission Equivalent | AB21: Scope Emissions
B22: 2021 | C22: UAB Camira Fabrics | D22: Lithuania | E22: ="Scope_1" -> Scope_1 | F22: ="Fugitive" -> Fugitive | G22: =LOOKUP(Table146135136143150316323[[#This Row],[Sub-scope]],Table357841[Source],Table357841[Pseudonym]) -> FugitiveUK | I22: =LOOKUP(Table146135136143150316323[[#This Row],[Emission Source]],Table125292[[Emission ]],Table125292[Pseudonym]) ->  | J22: =LOOKUP(Table146135136143150316323[[#This Row],[Emission Source]],Table44300[Fuel Type],Table44300[Unit]) ->  | M22: =CONCATENATE(Table146135136143150316323[[#This Row],[Unit Reported]],Table146135136143150316323[[#This Row],[Unit Required]]) ->  | N22: =LOOKUP(Table146135136143150316323[[#This Row],[Concatenate Units]],Table43299[Concatenate],Table43299[Multiply By]) ->  | O22: =IFERROR(Table146135136143150316323[[#This Row],[Data (Raw)]]*Table146135136143150316323[[#This Row],[Unit Conversion]],0) -> 0 | P22: =IFERROR(Table146135136143150316323[[#This Row],[Unit Required]],"") ->  | V22: =(LOOKUP(Table146135136143150316323[[#This Row],[Emission Source]],Table44300[Fuel Type],Table44300[GWP])) ->  | W22: =Table146135136143150316323[[#This Row],[Data (Corrected)]]*(LOOKUP(Table146135136143150316323[[#This Row],[Emission Source]],Table44[Fuel Type],Table44[Recycled CO2 Factor])) ->  | X22: =Table146135136143150316323[[#This Row],[Data (Corrected)]]*(LOOKUP(Table146135136143150316323[[#This Row],[Emission Source]],Table44[Fuel Type],Table44[Landfill CO2 Factor])) ->  | Y22: =Table146135136143150316323[[#This Row],[Data (Corrected)]]*(LOOKUP(Table146135136143150316323[[#This Row],[Emission Source]],Table44[Fuel Type],Table44[Combusted CO2 Factor])) ->  | Z22: =IFERROR(((Table146135136143150316323[[#This Row],[Spare1]]+Table146135136143150316323[[#This Row],[Spare3]]+Table146135136143150316323[[#This Row],[Spare5]]+Table146135136143150316323[[#This Row],[GWP]]+Table146135136143150316323[[#This Row],[kg_lb]]+Table146135136143150316323[[#This Row],[Spare6]]+Table146135136143150316323[[#This Row],[Spare7]])*Table146135136143150316323[[#This Row],[Data (Corrected)]])/1000,0) -> 0
Z23: =SUM(Table146135136143150316323[tCO2e Emission Equivalent]) -> 0 | AB23: tCO2e | AC23: =Z7+Z10+Z13+Z16+Z19+Z23+Z27 -> 0
B24: US - EPA
B25: Reporting year | C25: Entity | D25: Location | E25: Scope | F25: Sub-scope | G25: Source Pseudonym | H25: Emission Source | I25: Emission Pseudonym | J25: Unit Required | K25: Data (Raw) | L25: Unit Reported | M25: Concatenate Units | N25: Unit Conversion | O25: Data (Corrected) | P25: Unit (Corrected) | Q25: Spare1 | R25: Spare2 | S25: Spare3 | T25: Spare4 | U25: Spare5 | V25: GWP | W25: kg_lb | X25: Spare6 | Y25: Spare7 | Z25: tCO2e Emission Equivalent
B26: 2021 | C26: Camira Group, Inc | D26: Grand Rapids | E26: ="Scope_1" -> Scope_1 | F26: ="Fugitive" -> Fugitive | G26: =LOOKUP(Table146135142149317[[#This Row],[Sub-scope]],Table3578[Source],Table3578[Pseudonym]) -> FugitiveUS | I26: =LOOKUP(Table146135142149317[[#This Row],[Emission Source]],Table125[[Emission ]],Table125[Pseudonym]) ->  | J26: =LOOKUP(Table146135142149317[[#This Row],[Emission Source]],Table44[Fuel Type],Table44[Unit]) ->  | M26: =CONCATENATE(Table146135142149317[[#This Row],[Unit Reported]],Table146135142149317[[#This Row],[Unit Required]]) ->  | N26: =LOOKUP(Table146135142149317[[#This Row],[Concatenate Units]],Table43[Concatenate],Table43[Multiply By]) ->  | O26: =IFERROR(Table146135142149317[[#This Row],[Data (Raw)]]*Table146135142149317[[#This Row],[Unit Conversion]],0) -> 0 | P26: =IFERROR(Table146135142149317[[#This Row],[Unit Required]],"") ->  | V26: =(LOOKUP(Table146135142149317[[#This Row],[Emission Source]],Table44[Fuel Type],Table44[GWP])) ->  | W26: ='Conversions - US'!AA5 -> 0.4536 | Z26: =IFERROR((((Table146135142149317[[#This Row],[GWP]])*Table146135142149317[[#This Row],[Data (Corrected)]])/1000)*Table146135142149317[[#This Row],[kg_lb]],0) -> 0
Z27: =SUM(Table146135142149317[tCO2e Emission Equivalent]) -> 0

Sheet 2.1
B2: Greenhouse Gas Emission Analysis - Purchased Electricity
B4: UK - DBEIS/DEFRA
B5: Reporting year | C5: Entity | D5: Location | E5: Scope | F5: Emission Source | G5: Source Pseudonym | H5: Emission Sub-source | I5: Emission Pseudonym | J5: Unit Required | K5: Data (Raw) | L5: Unit Reported | M5: Concatenate Units | N5: Unit Conversion | O5: Data (Corrected) | P5: Unit (Corrected) | Q5: CO2 | R5: CH4 | S5: Spare1 | T5: N2O | U5: Spare2 | V5: Spare3 | W5: Spare4 | X5: Spare5 | Y5: Spare6 | Z5: tCO2e Emission Equivalent | AB5: Workbook links
B6: 2021 | C6: Camira Fabrics Limited | D6: Mirfield | E6: ="Scope_2" -> Scope_2 | F6: ="Electricity" -> Electricity | G6: =LOOKUP(Table146135136143150157164171[[#This Row],[Emission Source]],Table357841[Source],Table357841[Pseudonym]) -> ElectricityUK | H6: Electricty | I6: =LOOKUP(Table146135136143150157164171[[#This Row],[Emission Sub-source]],Table125292[[Emission ]],Table125292[Pseudonym]) -> ElecUK | J6: =LOOKUP(Table146135136143150157164171[[#This Row],[Emission Sub-source]],Table44300[Fuel Type],Table44300[Unit]) -> kWh | K6: 49394 | L6: kWh | M6: =CONCATENATE(Table146135136143150157164171[[#This Row],[Unit Reported]],Table146135136143150157164171[[#This Row],[Unit Required]]) -> kWhkWh | N6: =LOOKUP(Table146135136143150157164171[[#This Row],[Concatenate Units]],Table43[Concatenate],Table43[Multiply By]) -> 1 | O6: =IFERROR(Table146135136143150157164171[[#This Row],[Data (Raw)]]*Table146135136143150157164171[[#This Row],[Unit Conversion]],0) -> 49394 | P6: =IFERROR(Table146135136143150157164171[[#This Row],[Unit Required]],"") -> kWh | Q6: =LOOKUP(Table146135136143150157164171[[#This Row],[Emission Sub-source]],Table44300[Fuel Type],Table44300[CO2 Factor (kg / Unit)]) -> 0.21016 | R6: =LOOKUP(Table146135136143150157164171[[#This Row],[Emission Sub-source]],Table44300[Fuel Type],Table44300[CH4 Factor (g / unit)]) -> 0.0008 | T6: =LOOKUP(Table146135136143150157164171[[#This Row],[Emission Sub-source]],Table44300[Fuel Type],Table44300[N2O Factor (g / unit)]) -> 0.00137 | Z6: =IFERROR(((Table146135136143150157164171[[#This Row],[CO2]]+Table146135136143150157164171[[#This Row],[CH4]]+Table146135136143150157164171[[#This Row],[N2O]])*Table146135136143150157164171[[#This Row],[Data (Corrected)]])/1000,0) -> 10.48782802
Z7: =SUM(Table146135136143150157164171[tCO2e Emission Equivalent]) -> 10.48782802 | AC7: GHG Reporting Process
B8: Reporting year | C8: Entity | D8: Location | E8: Scope | F8: Emission Source | G8: Source Pseudonym | H8: Emission Sub-source | I8: Emission Pseudonym | J8: Unit Required | K8: Data (Raw) | L8: Unit Reported | M8: Concatenate Units | N8: Unit Conversion | O8: Data (Corrected) | P8: Unit (Corrected) | Q8: CO2 | R8: CH4 | S8: Spare1 | T8: N2O | U8: Spare2 | V8: Spare3 | W8: Spare4 | X8: Spare5 | Y8: Spare6 | Z8: tCO2e Emission Equivalent
B9: 2021 | C9: Camira Fabrics Limited | D9: Meltham | E9: ="Scope_2" -> Scope_2 | F9: ="Electricity" -> Electricity | G9: =LOOKUP(Table146135136143150157164171324[[#This Row],[Emission Source]],Table357841[Source],Table357841[Pseudonym]) -> ElectricityUK | H9: Electricty | I9: =LOOKUP(Table146135136143150157164171324[[#This Row],[Emission Sub-source]],Table125292[[Emission ]],Table125292[Pseudonym]) -> ElecUK | J9: =LOOKUP(Table146135136143150157164171324[[#This Row],[Emission Sub-source]],Table44300[Fuel Type],Table44300[Unit]) -> kWh | K9: 4254751 | L9: kWh | M9: =CONCATENATE(Table146135136143150157164171324[[#This Row],[Unit Reported]],Table146135136143150157164171324[[#This Row],[Unit Required]]) -> kWhkWh | N9: =LOOKUP(Table146135136143150157164171324[[#This Row],[Concatenate Units]],Table43[Concatenate],Table43[Multiply By]) -> 1 | O9: =IFERROR(Table146135136143150157164171324[[#This Row],[Data (Raw)]]*Table146135136143150157164171324[[#This Row],[Unit Conversion]],0) -> 4254751 | P9: =IFERROR(Table146135136143150157164171324[[#This Row],[Unit Required]],"") -> kWh | Q9: =LOOKUP(Table146135136143150157164171324[[#This Row],[Emission Sub-source]],Table44300[Fuel Type],Table44300[CO2 Factor (kg / Unit)]) -> 0.21016 | R9: =LOOKUP(Table146135136143150157164171324[[#This Row],[Emission Sub-source]],Table44300[Fuel Type],Table44300[CH4 Factor (g / unit)]) -> 0.0008 | T9: =LOOKUP(Table146135136143150157164171324[[#This Row],[Emission Sub-source]],Table44300[Fuel Type],Table44300[N2O Factor (g / unit)]) -> 0.00137 | Z9: =IFERROR(((Table146135136143150157164171324[[#This Row],[CO2]]+Table146135136143150157164171324[[#This Row],[CH4]]+Table146135136143150157164171324[[#This Row],[N2O]])*Table146135136143150157164171324[[#This Row],[Data (Corrected)]])/1000,0) -> 903.4112798
Z10: =SUM(Table146135136143150157164171324[tCO2e Emission Equivalent]) -> 903.4112798 | AC10: GHG Questionnaire
B11: Reporting year | C11: Entity | D11: Location | E11: Scope | F11: Emission Source | G11: Source Pseudonym | H11: Emission Sub-source | I11: Emission Pseudonym | J11: Unit Required | K11: Data (Raw) | L11: Unit Reported | M11: Concatenate Units | N11: Unit Conversion | O11: Data (Corrected) | P11: Unit (Corrected) | Q11: CO2 | R11: CH4 | S11: Spare1 | T11: N2O | U11: Spare2 | V11: Spare3 | W11: Spare4 | X11: Spare5 | Y11: Spare6 | Z11: tCO2e Emission Equivalent
B12: 2021 | C12: Camira Fabrics Limited | D12: Nottingham | E12: ="Scope_2" -> Scope_2 | F12: ="Electricity" -> Electricity | G12: =LOOKUP(Table146135136143150157164171325[[#This Row],[Emission Source]],Table357841[Source],Table357841[Pseudonym]) -> ElectricityUK | H12: Electricty | I12: =LOOKUP(Table146135136143150157164171325[[#This Row],[Emission Sub-source]],Table125292[[Emission ]],Table125292[Pseudonym]) -> ElecUK | J12: =LOOKUP(Table146135136143150157164171325[[#This Row],[Emission Sub-source]],Table44300[Fuel Type],Table44300[Unit]) -> kWh | K12: 217317 | L12: kWh | M12: =CONCATENATE(Table146135136143150157164171325[[#This Row],[Unit Reported]],Table146135136143150157164171325[[#This Row],[Unit Required]]) -> kWhkWh | N12: =LOOKUP(Table146135136143150157164171325[[#This Row],[Concatenate Units]],Table43[Concatenate],Table43[Multiply By]) -> 1 | O12: =IFERROR(Table146135136143150157164171325[[#This Row],[Data (Raw)]]*Table146135136143150157164171325[[#This Row],[Unit Conversion]],0) -> 217317 | P12: =IFERROR(Table146135136143150157164171325[[#This Row],[Unit Required]],"") -> kWh | Q12: =LOOKUP(Table146135136143150157164171325[[#This Row],[Emission Sub-source]],Table44300[Fuel Type],Table44300[CO2 Factor (kg / Unit)]) -> 0.21016 | R12: =LOOKUP(Table146135136143150157164171325[[#This Row],[Emission Sub-source]],Table44300[Fuel Type],Table44300[CH4 Factor (g / unit)]) -> 0.0008 | T12: =LOOKUP(Table146135136143150157164171325[[#This Row],[Emission Sub-source]],Table44300[Fuel Type],Table44300[N2O Factor (g / unit)]) -> 0.00137 | Z12: =IFERROR(((Table146135136143150157164171325[[#This Row],[CO2]]+Table146135136143150157164171325[[#This Row],[CH4]]+Table146135136143150157164171325[[#This Row],[N2O]])*Table146135136143150157164171325[[#This Row],[Data (Corrected)]])/1000,0) -> 46.14291861
B13: 2021 | C13: Camira Fabrics Limited | D13: Nottingham | E13: ="Scope_2" -> Scope_2 | F13: ="Electricity" -> Electricity | G13: =LOOKUP(Table146135136143150157164171325[[#This Row],[Emission Source]],Table357841[Source],Table357841[Pseudonym]) -> ElectricityUK | H13: Electricty | I13: =LOOKUP(Table146135136143150157164171325[[#This Row],[Emission Sub-source]],Table125292[[Emission ]],Table125292[Pseudonym]) -> ElecUK | J13: =LOOKUP(Table146135136143150157164171325[[#This Row],[Emission Sub-source]],Table44300[Fuel Type],Table44300[Unit]) -> kWh | K13: 1940 | L13: kWh | M13: =CONCATENATE(Table146135136143150157164171325[[#This Row],[Unit Reported]],Table146135136143150157164171325[[#This Row],[Unit Required]]) -> kWhkWh | N13: =LOOKUP(Table146135136143150157164171325[[#This Row],[Concatenate Units]],Table43[Concatenate],Table43[Multiply By]) -> 1 | O13: =IFERROR(Table146135136143150157164171325[[#This Row],[Data (Raw)]]*Table146135136143150157164171325[[#This Row],[Unit Conversion]],0) -> 1940 | P13: =IFERROR(Table146135136143150157164171325[[#This Row],[Unit Required]],"") -> kWh | Q13: =LOOKUP(Table146135136143150157164171325[[#This Row],[Emission Sub-source]],Table44300[Fuel Type],Table44300[CO2 Factor (kg / Unit)]) -> 0.21016 | R13: =LOOKUP(Table146135136143150157164171325[[#This Row],[Emission Sub-source]],Table44300[Fuel Type],Table44300[CH4 Factor (g / unit)]) -> 0.0008 | T13: =LOOKUP(Table146135136143150157164171325[[#This Row],[Emission Sub-source]],Table44300[Fuel Type],Table44300[N2O Factor (g / unit)]) -> 0.00137 | Z13: =IFERROR(((Table146135136143150157164171325[[#This Row],[CO2]]+Table146135136143150157164171325[[#This Row],[CH4]]+Table146135136143150157164171325[[#This Row],[N2O]])*Table146135136143150157164171325[[#This Row],[Data (Corrected)]])/1000,0) -> 0.4119202 | AC13: GHG Statement of Applicability
Z14: =SUM(Table146135136143150157164171325[tCO2e Emission Equivalent]) -> 46.55483881
B15: Reporting year | C15: Entity | D15: Location | E15: Scope | F15: Emission Source | G15: Source Pseudonym | H15: Emission Sub-source | I15: Emission Pseudonym | J15: Unit Required | K15: Data (Raw) | L15: Unit Reported | M15: Concatenate Units | N15: Unit Conversion | O15: Data (Corrected) | P15: Unit (Corrected) | Q15: CO2 | R15: CH4 | S15: Spare1 | T15: N2O | U15: Spare2 | V15: Spare3 | W15: Spare4 | X15: Spare5 | Y15: Spare6 | Z15: tCO2e Emission Equivalent
B16: 2021 | C16: Camira Yarns Limited | D16: Birkby | E16: ="Scope_2" -> Scope_2 | F16: ="Electricity" -> Electricity | G16: =LOOKUP(Table146135136143150157164171326[[#This Row],[Emission Source]],Table357841[Source],Table357841[Pseudonym]) -> ElectricityUK | H16: Electricty | I16: =LOOKUP(Table146135136143150157164171326[[#This Row],[Emission Sub-source]],Table125292[[Emission ]],Table125292[Pseudonym]) -> ElecUK | J16: =LOOKUP(Table146135136143150157164171326[[#This Row],[Emission Sub-source]],Table44300[Fuel Type],Table44300[Unit]) -> kWh | K16: 2029424 | L16: kWh | M16: =CONCATENATE(Table146135136143150157164171326[[#This Row],[Unit Reported]],Table146135136143150157164171326[[#This Row],[Unit Required]]) -> kWhkWh | N16: =LOOKUP(Table146135136143150157164171326[[#This Row],[Concatenate Units]],Table43[Concatenate],Table43[Multiply By]) -> 1 | O16: =IFERROR(Table146135136143150157164171326[[#This Row],[Data (Raw)]]*Table146135136143150157164171326[[#This Row],[Unit Conversion]],0) -> 2029424 | P16: =IFERROR(Table146135136143150157164171326[[#This Row],[Unit Required]],"") -> kWh | Q16: =LOOKUP(Table146135136143150157164171326[[#This Row],[Emission Sub-source]],Table44300[Fuel Type],Table44300[CO2 Factor (kg / Unit)]) -> 0.21016 | R16: =LOOKUP(Table146135136143150157164171326[[#This Row],[Emission Sub-source]],Table44300[Fuel Type],Table44300[CH4 Factor (g / unit)]) -> 0.0008 | T16: =LOOKUP(Table146135136143150157164171326[[#This Row],[Emission Sub-source]],Table44300[Fuel Type],Table44300[N2O Factor (g / unit)]) -> 0.00137 | Z16: =IFERROR(((Table146135136143150157164171326[[#This Row],[CO2]]+Table146135136143150157164171326[[#This Row],[CH4]]+Table146135136143150157164171326[[#This Row],[N2O]])*Table146135136143150157164171326[[#This Row],[Data (Corrected)]])/1000,0) -> 430.9075979 | AC16: GHG Summary Report
Z17: =SUM(Table146135136143150157164171326[tCO2e Emission Equivalent]) -> 430.9075979
B18: Reporting year | C18: Entity | D18: Location | E18: Scope | F18: Emission Source | G18: Source Pseudonym | H18: Emission Sub-source | I18: Emission Pseudonym | J18: Unit Required | K18: Data (Raw) | L18: Unit Reported | M18: Concatenate Units | N18: Unit Conversion | O18: Data (Corrected) | P18: Unit (Corrected) | Q18: CO2 | R18: CH4 | S18: Spare1 | T18: N2O | U18: Spare2 | V18: Spare3 | W18: Spare4 | X18: Spare5 | Y18: Spare6 | Z18: tCO2e Emission Equivalent
B19: 2021 | C19: Holmfirth Dyers Limited | D19: Holmfirth | E19: ="Scope_2" -> Scope_2 | F19: ="Electricity" -> Electricity | G19: =LOOKUP(Table146135136143150157164171327[[#This Row],[Emission Source]],Table357841[Source],Table357841[Pseudonym]) -> ElectricityUK | H19: Electricty | I19: =LOOKUP(Table146135136143150157164171327[[#This Row],[Emission Sub-source]],Table125292[[Emission ]],Table125292[Pseudonym]) -> ElecUK | J19: =LOOKUP(Table146135136143150157164171327[[#This Row],[Emission Sub-source]],Table44300[Fuel Type],Table44300[Unit]) -> kWh | K19: 1894364 | L19: kWh | M19: =CONCATENATE(Table146135136143150157164171327[[#This Row],[Unit Reported]],Table146135136143150157164171327[[#This Row],[Unit Required]]) -> kWhkWh | N19: =LOOKUP(Table146135136143150157164171327[[#This Row],[Concatenate Units]],Table43[Concatenate],Table43[Multiply By]) -> 1 | O19: =IFERROR(Table146135136143150157164171327[[#This Row],[Data (Raw)]]*Table146135136143150157164171327[[#This Row],[Unit Conversion]],0) -> 1894364 | P19: =IFERROR(Table146135136143150157164171327[[#This Row],[Unit Required]],"") -> kWh | Q19: =LOOKUP(Table146135136143150157164171327[[#This Row],[Emission Sub-source]],Table44300[Fuel Type],Table44300[CO2 Factor (kg / Unit)]) -> 0.21016 | R19: =LOOKUP(Table146135136143150157164171327[[#This Row],[Emission Sub-source]],Table44300[Fuel Type],Table44300[CH4 Factor (g / unit)]) -> 0.0008 | T19: =LOOKUP(Table146135136143150157164171327[[#This Row],[Emission Sub-source]],Table44300[Fuel Type],Table44300[N2O Factor (g / unit)]) -> 0.00137 | Z19: =IFERROR(((Table146135136143150157164171327[[#This Row],[CO2]]+Table146135136143150157164171327[[#This Row],[CH4]]+Table146135136143150157164171327[[#This Row],[N2O]])*Table146135136143150157164171327[[#This Row],[Data (Corrected)]])/1000,0) -> 402.2303081
Z20: =SUM(Table146135136143150157164171327[tCO2e Emission Equivalent]) -> 402.2303081
B21: EUR - ?? | AB21: Scope Emissions
B22: Reporting year | C22: Entity | D22: Location | E22: Scope | F22: Emission Source | G22: Source Pseudonym | H22: Emission Sub-source | I22: Emission Pseudonym | J22: Unit Required | K22: Data (Raw) | L22: Unit Reported | M22: Concatenate Units | N22: Unit Conversion | O22: Data (Corrected) | P22: Unit (Corrected) | Q22: CO2 | R22: CH4 | S22: Spare1 | T22: N2O | U22: Spare2 | V22: Spare3 | W22: Spare4 | X22: Spare5 | Y22: Spare6 | Z22: tCO2e Emission Equivalent
B23: 2021 | C23: UAB Camira Fabrics | D23: Lithuania | E23: ="Scope_2" -> Scope_2 | F23: ="Electricity" -> Electricity | G23: =LOOKUP(Table146135136143150157164171328[[#This Row],[Emission Source]],Table357841[Source],Table357841[Pseudonym]) -> ElectricityUK | H23: Electricty | I23: =LOOKUP(Table146135136143150157164171328[[#This Row],[Emission Sub-source]],Table125292[[Emission ]],Table125292[Pseudonym]) -> ElecUK | J23: =LOOKUP(Table146135136143150157164171328[[#This Row],[Emission Sub-source]],Table44300[Fuel Type],Table44300[Unit]) -> kWh | K23: 1636131 | L23: kWh | M23: =CONCATENATE(Table146135136143150157164171328[[#This Row],[Unit Reported]],Table146135136143150157164171328[[#This Row],[Unit Required]]) -> kWhkWh | N23: =LOOKUP(Table146135136143150157164171328[[#This Row],[Concatenate Units]],Table43[Concatenate],Table43[Multiply By]) -> 1 | O23: =IFERROR(Table146135136143150157164171328[[#This Row],[Data (Raw)]]*Table146135136143150157164171328[[#This Row],[Unit Conversion]],0) -> 1636131 | P23: =IFERROR(Table146135136143150157164171328[[#This Row],[Unit Required]],"") -> kWh | Q23: =LOOKUP(Table146135136143150157164171328[[#This Row],[Emission Sub-source]],Table44300[Fuel Type],Table44300[CO2 Factor (kg / Unit)]) -> 0.21016 | R23: =LOOKUP(Table146135136143150157164171328[[#This Row],[Emission Sub-source]],Table44300[Fuel Type],Table44300[CH4 Factor (g / unit)]) -> 0.0008 | T23: =LOOKUP(Table146135136143150157164171328[[#This Row],[Emission Sub-source]],Table44300[Fuel Type],Table44300[N2O Factor (g / unit)]) -> 0.00137 | Z23: =IFERROR(((Table146135136143150157164171328[[#This Row],[CO2]]+Table146135136143150157164171328[[#This Row],[CH4]]+Table146135136143150157164171328[[#This Row],[N2O]])*Table146135136143150157164171328[[#This Row],[Data (Corrected)]])/1000,0) -> 347.3996952 | AB23: tCO2e | AC23: =Z7+Z10+Z14+Z17+Z20+Z24+Z28 -> 2167.683441
Z24: =SUM(Table146135136143150157164171328[tCO2e Emission Equivalent]) -> 347.3996952
B25: US - EPA
B26: Reporting year | C26: Entity | D26: Location | E26: Scope | F26: Emission Source | G26: Source Pseudonym | H26: Emission Sub-source | I26: Emission Pseudonym | J26: Unit Required | K26: Data (Raw) | L26: Unit Reported | M26: Concatenate Units | N26: Unit Conversion | O26: Data (Corrected) | P26: Unit (Corrected) | Q26: CO2 | R26: CH4 | S26: CH4 Corrected | T26: N2O | U26: N2O Corrected | V26: kg_lb | W26: Electricity correction | X26: Spare1 | Y26: Spare2 | Z26: tCO2e Emission Equivalent
B27: 2021 | C27: Camira Group, Inc | D27: Grand Rapids | E27: ="Scope_2" -> Scope_2 | F27: ="Electricity" -> Electricity | G27: =LOOKUP(Table146135142149156163170[[#This Row],[Emission Source]],Table3578[Source],Table3578[Pseudonym]) -> ElectricityUS | H27: RFCM (RFC Michigan) | I27: =LOOKUP(Table146135142149156163170[[#This Row],[Emission Sub-source]],Table125[[Emission ]],Table125[Pseudonym]) -> ElecUS | J27: =LOOKUP(Table146135142149156163170[[#This Row],[Emission Sub-source]],Table44[Fuel Type],Table44[Unit]) -> kWh | K27: 49478 | L27: kWh | M27: =CONCATENATE(Table146135142149156163170[[#This Row],[Unit Reported]],Table146135142149156163170[[#This Row],[Unit Required]]) -> kWhkWh | N27: =LOOKUP(Table146135142149156163170[[#This Row],[Concatenate Units]],Table43[Concatenate],Table43[Multiply By]) -> 1 | O27: =IFERROR(Table146135142149156163170[[#This Row],[Data (Raw)]]*Table146135142149156163170[[#This Row],[Unit Conversion]],0) -> 49478 | P27: =IFERROR(Table146135142149156163170[[#This Row],[Unit Required]],"") -> kWh | Q27: =LOOKUP(Table146135142149156163170[[#This Row],[Emission Sub-source]],Table44[Fuel Type],Table44[CO2 Factor (kg / Unit)]) -> 1189.3 | R27: =LOOKUP(Table146135142149156163170[[#This Row],[Emission Sub-source]],Table44[Fuel Type],Table44[CH4 Factor (g / unit)]) -> 0.114 | S27: =(Table146135142149156163170[[#This Row],[CH4]]/1000)*25 -> 0.00285 | T27: =LOOKUP(Table146135142149156163170[[#This Row],[Emission Sub-source]],Table44[Fuel Type],Table44[N2O Factor (g / unit)]) -> 0.016 | U27: =(Table146135142149156163170[[#This Row],[N2O]]/1000)*298 -> 0.004768 | V27: ='Conversions - US'!AA4 -> 0.4536 | W27: =((Table146135142149156163170[[#This Row],[CO2]]+Table146135142149156163170[[#This Row],[CH4 Corrected]]+Table146135142149156163170[[#This Row],[N2O Corrected]])*Table146135142149156163170[[#This Row],[Data (Corrected)]])/1000 -> 58844.56232 | Z27: =IFERROR((Table146135142149156163170[[#This Row],[Electricity correction]]*Table146135142149156163170[[#This Row],[kg_lb]])/1000,0) -> 26.69189347
Z28: =SUM(Table146135142149156163170[tCO2e Emission Equivalent]) -> 26.69189347

Sheet 2.2 (hidden)
B2: Greenhouse Gas Emission Analysis - Purchased Steam
B4: UK - DBEIS/DEFRA
B5: Reporting year | C5: Entity | D5: Location | E5: Scope | F5: Emission Source | G5: Source Pseudonym | H5: Emission Sub-source | I5: Emission Pseudonym | J5: Unit Required | K5: Data (Raw) | L5: Unit Reported | M5: Concatenate Units | N5: Unit Conversion | O5: Data (Corrected) | P5: Unit (Corrected) | Q5: CO2 | R5: CH4 | S5: CH4 Corrected | T5: N2O | U5: N2O Corrected | V5: GWP | W5: Recycled | X5: Landfill | Y5: Combusted | Z5: tCO2e Emission Equivalent
B6: 2021 | C6: Camira Fabrics Limited | D6: Mirfield | E6: Scope_1 | F6: Stationary | G6: =LOOKUP(Table146135136143150157164171178[[#This Row],[Emission Source]],Table3578[Source],Table3578[Pseudonym]) -> StationaryUS | H6: Natural Gas | I6: =LOOKUP(Table146135136143150157164171178[[#This Row],[Emission Sub-source]],Table125[[Emission ]],Table125[Pseudonym]) -> NaturalGasUS | J6: =LOOKUP(Table146135136143150157164171178[[#This Row],[Emission Sub-source]],Table44[Fuel Type],Table44[Unit]) -> scf | K6: 100000 | L6: scf | M6: =CONCATENATE(Table146135136143150157164171178[[#This Row],[Unit Reported]],Table146135136143150157164171178[[#This Row],[Unit Required]]) -> scfscf | N6: =LOOKUP(Table146135136143150157164171178[[#This Row],[Concatenate Units]],Table43[Concatenate],Table43[Multiply By]) -> 1 | O6: =Table146135136143150157164171178[[#This Row],[Data (Raw)]]*Table146135136143150157164171178[[#This Row],[Unit Conversion]] -> 100000 | P6: =Table146135136143150157164171178[[#This Row],[Unit Required]] -> scf | Q6: =LOOKUP(Table146135136143150157164171178[[#This Row],[Emission Sub-source]],Table44[Fuel Type],Table44[CO2 Factor (kg / Unit)]) -> 0.05444 | R6: =LOOKUP(Table146135136143150157164171178[[#This Row],[Emission Sub-source]],Table44[Fuel Type],Table44[CH4 Factor (g / unit)]) -> 0.00103 | S6: =(Table146135136143150157164171178[[#This Row],[CH4]]/1000)*25 -> 2.575e-05 | T6: =LOOKUP(Table146135136143150157164171178[[#This Row],[Emission Sub-source]],Table44[Fuel Type],Table44[N2O Factor (g / unit)]) -> 0.0001 | U6: =(Table146135136143150157164171178[[#This Row],[N2O]]/1000)*298 -> 2.98e-05 | V6: =(LOOKUP(Table146135136143150157164171178[[#This Row],[Emission Sub-source]],Table44[Fuel Type],Table44[GWP])) -> 0 | W6: =Table146135136143150157164171178[[#This Row],[Data (Corrected)]]*(LOOKUP(Table146135136143150157164171178[[#This Row],[Emission Sub-source]],Table44[Fuel Type],Table44[Recycled CO2 Factor])) -> 0 | X6: =Table146135136143150157164171178[[#This Row],[Data (Corrected)]]*(LOOKUP(Table146135136143150157164171178[[#This Row],[Emission Sub-source]],Table44[Fuel Type],Table44[Landfill CO2 Factor])) -> 0 | Y6: =Table146135136143150157164171178[[#This Row],[Data (Corrected)]]*(LOOKUP(Table146135136143150157164171178[[#This Row],[Emission Sub-source]],Table44[Fuel Type],Table44[Combusted CO2 Factor])) -> 0 | Z6: =((Table146135136143150157164171178[[#This Row],[CO2]]+Table146135136143150157164171178[[#This Row],[CH4 Corrected]]+Table146135136143150157164171178[[#This Row],[N2O Corrected]]+Table146135136143150157164171178[[#This Row],[GWP]]+Table146135136143150157164171178[[#This Row],[Recycled]]+Table146135136143150157164171178[[#This Row],[Landfill]]+Table146135136143150157164171178[[#This Row],[Combusted]])*Table146135136143150157164171178[[#This Row],[Data (Corrected)]])/1000 -> 5.449555
B8: Reporting year | C8: Entity | D8: Location | E8: Scope | F8: Emission Source | G8: Source Pseudonym | H8: Emission Sub-source | I8: Emission Pseudonym | J8: Unit Required | K8: Data (Raw) | L8: Unit Reported | M8: Concatenate Units | N8: Unit Conversion | O8: Data (Corrected) | P8: Unit (Corrected) | Q8: CO2 | R8: CH4 | S8: CH4 Corrected | T8: N2O | U8: N2O Corrected | V8: GWP | W8: Recycled | X8: Landfill | Y8: Combusted | Z8: tCO2e Emission Equivalent
B9: 2021 | C9: Camira Fabrics Limited | D9: Meltham | E9: Scope_1 | F9: Stationary | G9: =LOOKUP(Table146135136137144151158165172179[[#This Row],[Emission Source]],Table3578[Source],Table3578[Pseudonym]) -> StationaryUS | H9: Natural Gas | I9: =LOOKUP(Table146135136137144151158165172179[[#This Row],[Emission Sub-source]],Table125[[Emission ]],Table125[Pseudonym]) -> NaturalGasUS | J9: =LOOKUP(Table146135136137144151158165172179[[#This Row],[Emission Sub-source]],Table44[Fuel Type],Table44[Unit]) -> scf | K9: 100000 | L9: scf | M9: =CONCATENATE(Table146135136137144151158165172179[[#This Row],[Unit Reported]],Table146135136137144151158165172179[[#This Row],[Unit Required]]) -> scfscf | N9: =LOOKUP(Table146135136137144151158165172179[[#This Row],[Concatenate Units]],Table43[Concatenate],Table43[Multiply By]) -> 1 | O9: =Table146135136137144151158165172179[[#This Row],[Data (Raw)]]*Table146135136137144151158165172179[[#This Row],[Unit Conversion]] -> 100000 | P9: =Table146135136137144151158165172179[[#This Row],[Unit Required]] -> scf | Q9: =LOOKUP(Table146135136137144151158165172179[[#This Row],[Emission Sub-source]],Table44[Fuel Type],Table44[CO2 Factor (kg / Unit)]) -> 0.05444 | R9: =LOOKUP(Table146135136137144151158165172179[[#This Row],[Emission Sub-source]],Table44[Fuel Type],Table44[CH4 Factor (g / unit)]) -> 0.00103 | S9: =(Table146135136137144151158165172179[[#This Row],[CH4]]/1000)*25 -> 2.575e-05 | T9: =LOOKUP(Table146135136137144151158165172179[[#This Row],[Emission Sub-source]],Table44[Fuel Type],Table44[N2O Factor (g / unit)]) -> 0.0001 | U9: =(Table146135136137144151158165172179[[#This Row],[N2O]]/1000)*298 -> 2.98e-05 | V9: =(LOOKUP(Table146135136137144151158165172179[[#This Row],[Emission Sub-source]],Table44[Fuel Type],Table44[GWP])) -> 0 | W9: =Table146135136137144151158165172179[[#This Row],[Data (Corrected)]]*(LOOKUP(Table146135136137144151158165172179[[#This Row],[Emission Sub-source]],Table44[Fuel Type],Table44[Recycled CO2 Factor])) -> 0 | X9: =Table146135136137144151158165172179[[#This Row],[Data (Corrected)]]*(LOOKUP(Table146135136137144151158165172179[[#This Row],[Emission Sub-source]],Table44[Fuel Type],Table44[Landfill CO2 Factor])) -> 0 | Y9: =Table146135136137144151158165172179[[#This Row],[Data (Corrected)]]*(LOOKUP(Table146135136137144151158165172179[[#This Row],[Emission Sub-source]],Table44[Fuel Type],Table44[Combusted CO2 Factor])) -> 0 | Z9: =((Table146135136137144151158165172179[[#This Row],[CO2]]+Table146135136137144151158165172179[[#This Row],[CH4 Corrected]]+Table146135136137144151158165172179[[#This Row],[N2O Corrected]]+Table146135136137144151158165172179[[#This Row],[GWP]]+Table146135136137144151158165172179[[#This Row],[Recycled]]+Table146135136137144151158165172179[[#This Row],[Landfill]]+Table146135136137144151158165172179[[#This Row],[Combusted]])*Table146135136137144151158165172179[[#This Row],[Data (Corrected)]])/1000 -> 5.449555
B11: Reporting year | C11: Entity | D11: Location | E11: Scope | F11: Emission Source | G11: Source Pseudonym | H11: Emission Sub-source | I11: Emission Pseudonym | J11: Unit Required | K11: Data (Raw) | L11: Unit Reported | M11: Concatenate Units | N11: Unit Conversion | O11: Data (Corrected) | P11: Unit (Corrected) | Q11: CO2 | R11: CH4 | S11: CH4 Corrected | T11: N2O | U11: N2O Corrected | V11: GWP | W11: Recycled | X11: Landfill | Y11: Combusted | Z11: tCO2e Emission Equivalent
B12: 2021 | C12: Camira Fabrics Limited | D12: Nottingham | E12: Scope_1 | F12: Stationary | G12: =LOOKUP(Table146135136137138145152159166173180[[#This Row],[Emission Source]],Table3578[Source],Table3578[Pseudonym]) -> StationaryUS | H12: Natural Gas | I12: =LOOKUP(Table146135136137138145152159166173180[[#This Row],[Emission Sub-source]],Table125[[Emission ]],Table125[Pseudonym]) -> NaturalGasUS | J12: =LOOKUP(Table146135136137138145152159166173180[[#This Row],[Emission Sub-source]],Table44[Fuel Type],Table44[Unit]) -> scf | K12: 100000 | L12: scf | M12: =CONCATENATE(Table146135136137138145152159166173180[[#This Row],[Unit Reported]],Table146135136137138145152159166173180[[#This Row],[Unit Required]]) -> scfscf | N12: =LOOKUP(Table146135136137138145152159166173180[[#This Row],[Concatenate Units]],Table43[Concatenate],Table43[Multiply By]) -> 1 | O12: =Table146135136137138145152159166173180[[#This Row],[Data (Raw)]]*Table146135136137138145152159166173180[[#This Row],[Unit Conversion]] -> 100000 | P12: =Table146135136137138145152159166173180[[#This Row],[Unit Required]] -> scf | Q12: =LOOKUP(Table146135136137138145152159166173180[[#This Row],[Emission Sub-source]],Table44[Fuel Type],Table44[CO2 Factor (kg / Unit)]) -> 0.05444 | R12: =LOOKUP(Table146135136137138145152159166173180[[#This Row],[Emission Sub-source]],Table44[Fuel Type],Table44[CH4 Factor (g / unit)]) -> 0.00103 | S12: =(Table146135136137138145152159166173180[[#This Row],[CH4]]/1000)*25 -> 2.575e-05 | T12: =LOOKUP(Table146135136137138145152159166173180[[#This Row],[Emission Sub-source]],Table44[Fuel Type],Table44[N2O Factor (g / unit)]) -> 0.0001 | U12: =(Table146135136137138145152159166173180[[#This Row],[N2O]]/1000)*298 -> 2.98e-05 | V12: =(LOOKUP(Table146135136137138145152159166173180[[#This Row],[Emission Sub-source]],Table44[Fuel Type],Table44[GWP])) -> 0 | W12: =Table146135136137138145152159166173180[[#This Row],[Data (Corrected)]]*(LOOKUP(Table146135136137138145152159166173180[[#This Row],[Emission Sub-source]],Table44[Fuel Type],Table44[Recycled CO2 Factor])) -> 0 | X12: =Table146135136137138145152159166173180[[#This Row],[Data (Corrected)]]*(LOOKUP(Table146135136137138145152159166173180[[#This Row],[Emission Sub-source]],Table44[Fuel Type],Table44[Landfill CO2 Factor])) -> 0 | Y12: =Table146135136137138145152159166173180[[#This Row],[Data (Corrected)]]*(LOOKUP(Table146135136137138145152159166173180[[#This Row],[Emission Sub-source]],Table44[Fuel Type],Table44[Combusted CO2 Factor])) -> 0 | Z12: =((Table146135136137138145152159166173180[[#This Row],[CO2]]+Table146135136137138145152159166173180[[#This Row],[CH4 Corrected]]+Table146135136137138145152159166173180[[#This Row],[N2O Corrected]]+Table146135136137138145152159166173180[[#This Row],[GWP]]+Table146135136137138145152159166173180[[#This Row],[Recycled]]+Table146135136137138145152159166173180[[#This Row],[Landfill]]+Table146135136137138145152159166173180[[#This Row],[Combusted]])*Table146135136137138145152159166173180[[#This Row],[Data (Corrected)]])/1000 -> 5.449555
B14: Reporting year | C14: Entity | D14: Location | E14: Scope | F14: Emission Source | G14: Source Pseudonym | H14: Emission Sub-source | I14: Emission Pseudonym | J14: Unit Required | K14: Data (Raw) | L14: Unit Reported | M14: Concatenate Units | N14: Unit Conversion | O14: Data (Corrected) | P14: Unit (Corrected) | Q14: CO2 | R14: CH4 | S14: CH4 Corrected | T14: N2O | U14: N2O Corrected | V14: GWP | W14: Recycled | X14: Landfill | Y14: Combusted | Z14: tCO2e Emission Equivalent
B15: 2021 | C15: Camira Fabrics Limited | D15: Birkby | E15: Scope_1 | F15: Stationary | G15: =LOOKUP(Table146135136137138139146153160167174181[[#This Row],[Emission Source]],Table3578[Source],Table3578[Pseudonym]) -> StationaryUS | H15: Natural Gas | I15: =LOOKUP(Table146135136137138139146153160167174181[[#This Row],[Emission Sub-source]],Table125[[Emission ]],Table125[Pseudonym]) -> NaturalGasUS | J15: =LOOKUP(Table146135136137138139146153160167174181[[#This Row],[Emission Sub-source]],Table44[Fuel Type],Table44[Unit]) -> scf | K15: 100000 | L15: scf | M15: =CONCATENATE(Table146135136137138139146153160167174181[[#This Row],[Unit Reported]],Table146135136137138139146153160167174181[[#This Row],[Unit Required]]) -> scfscf | N15: =LOOKUP(Table146135136137138139146153160167174181[[#This Row],[Concatenate Units]],Table43[Concatenate],Table43[Multiply By]) -> 1 | O15: =Table146135136137138139146153160167174181[[#This Row],[Data (Raw)]]*Table146135136137138139146153160167174181[[#This Row],[Unit Conversion]] -> 100000 | P15: =Table146135136137138139146153160167174181[[#This Row],[Unit Required]] -> scf | Q15: =LOOKUP(Table146135136137138139146153160167174181[[#This Row],[Emission Sub-source]],Table44[Fuel Type],Table44[CO2 Factor (kg / Unit)]) -> 0.05444 | R15: =LOOKUP(Table146135136137138139146153160167174181[[#This Row],[Emission Sub-source]],Table44[Fuel Type],Table44[CH4 Factor (g / unit)]) -> 0.00103 | S15: =(Table146135136137138139146153160167174181[[#This Row],[CH4]]/1000)*25 -> 2.575e-05 | T15: =LOOKUP(Table146135136137138139146153160167174181[[#This Row],[Emission Sub-source]],Table44[Fuel Type],Table44[N2O Factor (g / unit)]) -> 0.0001 | U15: =(Table146135136137138139146153160167174181[[#This Row],[N2O]]/1000)*298 -> 2.98e-05 | V15: =(LOOKUP(Table146135136137138139146153160167174181[[#This Row],[Emission Sub-source]],Table44[Fuel Type],Table44[GWP])) -> 0 | W15: =Table146135136137138139146153160167174181[[#This Row],[Data (Corrected)]]*(LOOKUP(Table146135136137138139146153160167174181[[#This Row],[Emission Sub-source]],Table44[Fuel Type],Table44[Recycled CO2 Factor])) -> 0 | X15: =Table146135136137138139146153160167174181[[#This Row],[Data (Corrected)]]*(LOOKUP(Table146135136137138139146153160167174181[[#This Row],[Emission Sub-source]],Table44[Fuel Type],Table44[Landfill CO2 Factor])) -> 0 | Y15: =Table146135136137138139146153160167174181[[#This Row],[Data (Corrected)]]*(LOOKUP(Table146135136137138139146153160167174181[[#This Row],[Emission Sub-source]],Table44[Fuel Type],Table44[Combusted CO2 Factor])) -> 0 | Z15: =((Table146135136137138139146153160167174181[[#This Row],[CO2]]+Table146135136137138139146153160167174181[[#This Row],[CH4 Corrected]]+Table146135136137138139146153160167174181[[#This Row],[N2O Corrected]]+Table146135136137138139146153160167174181[[#This Row],[GWP]]+Table146135136137138139146153160167174181[[#This Row],[Recycled]]+Table146135136137138139146153160167174181[[#This Row],[Landfill]]+Table146135136137138139146153160167174181[[#This Row],[Combusted]])*Table146135136137138139146153160167174181[[#This Row],[Data (Corrected)]])/1000 -> 5.449555
B17: Reporting year | C17: Entity | D17: Location | E17: Scope | F17: Emission Source | G17: Source Pseudonym | H17: Emission Sub-source | I17: Emission Pseudonym | J17: Unit Required | K17: Data (Raw) | L17: Unit Reported | M17: Concatenate Units | N17: Unit Conversion | O17: Data (Corrected) | P17: Unit (Corrected) | Q17: CO2 | R17: CH4 | S17: CH4 Corrected | T17: N2O | U17: N2O Corrected | V17: GWP | W17: Recycled | X17: Landfill | Y17: Combusted | Z17: tCO2e Emission Equivalent
B18: 2021 | C18: Camira Fabrics Limited | D18: Holmfirth | E18: Scope_1 | F18: Stationary | G18: =LOOKUP(Table146135136137138140147154161168175182[[#This Row],[Emission Source]],Table3578[Source],Table3578[Pseudonym]) -> StationaryUS | H18: Natural Gas | I18: =LOOKUP(Table146135136137138140147154161168175182[[#This Row],[Emission Sub-source]],Table125[[Emission ]],Table125[Pseudonym]) -> NaturalGasUS | J18: =LOOKUP(Table146135136137138140147154161168175182[[#This Row],[Emission Sub-source]],Table44[Fuel Type],Table44[Unit]) -> scf | K18: 100000 | L18: scf | M18: =CONCATENATE(Table146135136137138140147154161168175182[[#This Row],[Unit Reported]],Table146135136137138140147154161168175182[[#This Row],[Unit Required]]) -> scfscf | N18: =LOOKUP(Table146135136137138140147154161168175182[[#This Row],[Concatenate Units]],Table43[Concatenate],Table43[Multiply By]) -> 1 | O18: =Table146135136137138140147154161168175182[[#This Row],[Data (Raw)]]*Table146135136137138140147154161168175182[[#This Row],[Unit Conversion]] -> 100000 | P18: =Table146135136137138140147154161168175182[[#This Row],[Unit Required]] -> scf | Q18: =LOOKUP(Table146135136137138140147154161168175182[[#This Row],[Emission Sub-source]],Table44[Fuel Type],Table44[CO2 Factor (kg / Unit)]) -> 0.05444 | R18: =LOOKUP(Table146135136137138140147154161168175182[[#This Row],[Emission Sub-source]],Table44[Fuel Type],Table44[CH4 Factor (g / unit)]) -> 0.00103 | S18: =(Table146135136137138140147154161168175182[[#This Row],[CH4]]/1000)*25 -> 2.575e-05 | T18: =LOOKUP(Table146135136137138140147154161168175182[[#This Row],[Emission Sub-source]],Table44[Fuel Type],Table44[N2O Factor (g / unit)]) -> 0.0001 | U18: =(Table146135136137138140147154161168175182[[#This Row],[N2O]]/1000)*298 -> 2.98e-05 | V18: =(LOOKUP(Table146135136137138140147154161168175182[[#This Row],[Emission Sub-source]],Table44[Fuel Type],Table44[GWP])) -> 0 | W18: =Table146135136137138140147154161168175182[[#This Row],[Data (Corrected)]]*(LOOKUP(Table146135136137138140147154161168175182[[#This Row],[Emission Sub-source]],Table44[Fuel Type],Table44[Recycled CO2 Factor])) -> 0 | X18: =Table146135136137138140147154161168175182[[#This Row],[Data (Corrected)]]*(LOOKUP(Table146135136137138140147154161168175182[[#This Row],[Emission Sub-source]],Table44[Fuel Type],Table44[Landfill CO2 Factor])) -> 0 | Y18: =Table146135136137138140147154161168175182[[#This Row],[Data (Corrected)]]*(LOOKUP(Table146135136137138140147154161168175182[[#This Row],[Emission Sub-source]],Table44[Fuel Type],Table44[Combusted CO2 Factor])) -> 0 | Z18: =((Table146135136137138140147154161168175182[[#This Row],[CO2]]+Table146135136137138140147154161168175182[[#This Row],[CH4 Corrected]]+Table146135136137138140147154161168175182[[#This Row],[N2O Corrected]]+Table146135136137138140147154161168175182[[#This Row],[GWP]]+Table146135136137138140147154161168175182[[#This Row],[Recycled]]+Table146135136137138140147154161168175182[[#This Row],[Landfill]]+Table146135136137138140147154161168175182[[#This Row],[Combusted]])*Table146135136137138140147154161168175182[[#This Row],[Data (Corrected)]])/1000 -> 5.449555
B20: EUR - ??
B21: Reporting year | C21: Entity | D21: Location | E21: Scope | F21: Emission Source | G21: Source Pseudonym | H21: Emission Sub-source | I21: Emission Pseudonym | J21: Unit Required | K21: Data (Raw) | L21: Unit Reported | M21: Concatenate Units | N21: Unit Conversion | O21: Data (Corrected) | P21: Unit (Corrected) | Q21: CO2 | R21: CH4 | S21: CH4 Corrected | T21: N2O | U21: N2O Corrected | V21: GWP | W21: Recycled | X21: Landfill | Y21: Combusted | Z21: tCO2e Emission Equivalent
B22: 2021 | C22: UAB Camira Fabrics | D22: Lithuania | E22: Scope_1 | F22: Stationary | G22: =LOOKUP(Table146135136137138140141148155162169176183[[#This Row],[Emission Source]],Table3578[Source],Table3578[Pseudonym]) -> StationaryUS | H22: Natural Gas | I22: =LOOKUP(Table146135136137138140141148155162169176183[[#This Row],[Emission Sub-source]],Table125[[Emission ]],Table125[Pseudonym]) -> NaturalGasUS | J22: =LOOKUP(Table146135136137138140141148155162169176183[[#This Row],[Emission Sub-source]],Table44[Fuel Type],Table44[Unit]) -> scf | K22: 100000 | L22: scf | M22: =CONCATENATE(Table146135136137138140141148155162169176183[[#This Row],[Unit Reported]],Table146135136137138140141148155162169176183[[#This Row],[Unit Required]]) -> scfscf | N22: =LOOKUP(Table146135136137138140141148155162169176183[[#This Row],[Concatenate Units]],Table43[Concatenate],Table43[Multiply By]) -> 1 | O22: =Table146135136137138140141148155162169176183[[#This Row],[Data (Raw)]]*Table146135136137138140141148155162169176183[[#This Row],[Unit Conversion]] -> 100000 | P22: =Table146135136137138140141148155162169176183[[#This Row],[Unit Required]] -> scf | Q22: =LOOKUP(Table146135136137138140141148155162169176183[[#This Row],[Emission Sub-source]],Table44[Fuel Type],Table44[CO2 Factor (kg / Unit)]) -> 0.05444 | R22: =LOOKUP(Table146135136137138140141148155162169176183[[#This Row],[Emission Sub-source]],Table44[Fuel Type],Table44[CH4 Factor (g / unit)]) -> 0.00103 | S22: =(Table146135136137138140141148155162169176183[[#This Row],[CH4]]/1000)*25 -> 2.575e-05 | T22: =LOOKUP(Table146135136137138140141148155162169176183[[#This Row],[Emission Sub-source]],Table44[Fuel Type],Table44[N2O Factor (g / unit)]) -> 0.0001 | U22: =(Table146135136137138140141148155162169176183[[#This Row],[N2O]]/1000)*298 -> 2.98e-05 | V22: =(LOOKUP(Table146135136137138140141148155162169176183[[#This Row],[Emission Sub-source]],Table44[Fuel Type],Table44[GWP])) -> 0 | W22: =Table146135136137138140141148155162169176183[[#This Row],[Data (Corrected)]]*(LOOKUP(Table146135136137138140141148155162169176183[[#This Row],[Emission Sub-source]],Table44[Fuel Type],Table44[Recycled CO2 Factor])) -> 0 | X22: =Table146135136137138140141148155162169176183[[#This Row],[Data (Corrected)]]*(LOOKUP(Table146135136137138140141148155162169176183[[#This Row],[Emission Sub-source]],Table44[Fuel Type],Table44[Landfill CO2 Factor])) -> 0 | Y22: =Table146135136137138140141148155162169176183[[#This Row],[Data (Corrected)]]*(LOOKUP(Table146135136137138140141148155162169176183[[#This Row],[Emission Sub-source]],Table44[Fuel Type],Table44[Combusted CO2 Factor])) -> 0 | Z22: =((Table146135136137138140141148155162169176183[[#This Row],[CO2]]+Table146135136137138140141148155162169176183[[#This Row],[CH4 Corrected]]+Table146135136137138140141148155162169176183[[#This Row],[N2O Corrected]]+Table146135136137138140141148155162169176183[[#This Row],[GWP]]+Table146135136137138140141148155162169176183[[#This Row],[Recycled]]+Table146135136137138140141148155162169176183[[#This Row],[Landfill]]+Table146135136137138140141148155162169176183[[#This Row],[Combusted]])*Table146135136137138140141148155162169176183[[#This Row],[Data (Corrected)]])/1000 -> 5.449555
B24: US - EPA
B25: Reporting year | C25: Entity | D25: Location | E25: Scope | F25: Emission Source | G25: Source Pseudonym | H25: Emission Sub-source | I25: Emission Pseudonym | J25: Unit Required | K25: Data (Raw) | L25: Unit Reported | M25: Concatenate Units | N25: Unit Conversion | O25: Data (Corrected) | P25: Unit (Corrected) | Q25: CO2 | R25: CH4 | S25: CH4 Corrected | T25: N2O | U25: N2O Corrected | V25: GWP | W25: Recycled | X25: Landfill | Y25: Combusted | Z25: tCO2e Emission Equivalent
B26: 2021 | C26: Camira Group, Inc | D26: Grand Rapids | E26: Scope_1 | F26: Stationary | G26: =LOOKUP(Table146135142149156163170177[[#This Row],[Emission Source]],Table3578[Source],Table3578[Pseudonym]) -> StationaryUS | H26: Natural Gas | I26: =LOOKUP(Table146135142149156163170177[[#This Row],[Emission Sub-source]],Table125[[Emission ]],Table125[Pseudonym]) -> NaturalGasUS | J26: =LOOKUP(Table146135142149156163170177[[#This Row],[Emission Sub-source]],Table44[Fuel Type],Table44[Unit]) -> scf | K26: 100000 | L26: scf | M26: =CONCATENATE(Table146135142149156163170177[[#This Row],[Unit Reported]],Table146135142149156163170177[[#This Row],[Unit Required]]) -> scfscf | N26: =LOOKUP(Table146135142149156163170177[[#This Row],[Concatenate Units]],Table43[Concatenate],Table43[Multiply By]) -> 1 | O26: =Table146135142149156163170177[[#This Row],[Data (Raw)]]*Table146135142149156163170177[[#This Row],[Unit Conversion]] -> 100000 | P26: =Table146135142149156163170177[[#This Row],[Unit Required]] -> scf | Q26: =LOOKUP(Table146135142149156163170177[[#This Row],[Emission Sub-source]],Table44[Fuel Type],Table44[CO2 Factor (kg / Unit)]) -> 0.05444 | R26: =LOOKUP(Table146135142149156163170177[[#This Row],[Emission Sub-source]],Table44[Fuel Type],Table44[CH4 Factor (g / unit)]) -> 0.00103 | S26: =(Table146135142149156163170177[[#This Row],[CH4]]/1000)*25 -> 2.575e-05 | T26: =LOOKUP(Table146135142149156163170177[[#This Row],[Emission Sub-source]],Table44[Fuel Type],Table44[N2O Factor (g / unit)]) -> 0.0001 | U26: =(Table146135142149156163170177[[#This Row],[N2O]]/1000)*298 -> 2.98e-05 | V26: =(LOOKUP(Table146135142149156163170177[[#This Row],[Emission Sub-source]],Table44[Fuel Type],Table44[GWP])) -> 0 | W26: =Table146135142149156163170177[[#This Row],[Data (Corrected)]]*(LOOKUP(Table146135142149156163170177[[#This Row],[Emission Sub-source]],Table44[Fuel Type],Table44[Recycled CO2 Factor])) -> 0 | X26: =Table146135142149156163170177[[#This Row],[Data (Corrected)]]*(LOOKUP(Table146135142149156163170177[[#This Row],[Emission Sub-source]],Table44[Fuel Type],Table44[Landfill CO2 Factor])) -> 0 | Y26: =Table146135142149156163170177[[#This Row],[Data (Corrected)]]*(LOOKUP(Table146135142149156163170177[[#This Row],[Emission Sub-source]],Table44[Fuel Type],Table44[Combusted CO2 Factor])) -> 0 | Z26: =((Table146135142149156163170177[[#This Row],[CO2]]+Table146135142149156163170177[[#This Row],[CH4 Corrected]]+Table146135142149156163170177[[#This Row],[N2O Corrected]]+Table146135142149156163170177[[#This Row],[GWP]]+Table146135142149156163170177[[#This Row],[Recycled]]+Table146135142149156163170177[[#This Row],[Landfill]]+Table146135142149156163170177[[#This Row],[Combusted]])*Table146135142149156163170177[[#This Row],[Data (Corrected)]])/1000 -> 5.449555

Sheet 3.1 (hidden)
B2: Greenhouse Gas Emission Analysis - Supplier Scope 1 & 2 - Goods & Services
B4: UK - DBEIS/DEFRA
B5: Reporting year | C5: Entity | D5: Location | E5: Scope | F5: Emission Source | G5: Source Pseudonym | H5: Emission Sub-source | I5: Emission Pseudonym | J5: Unit Required | K5: Data (Raw) | L5: Unit Reported | M5: Concatenate Units | N5: Unit Conversion | O5: Data (Corrected) | P5: Unit (Corrected) | Q5: CO2 | R5: CH4 | S5: CH4 Corrected | T5: N2O | U5: N2O Corrected | V5: GWP | W5: Recycled | X5: Landfill | Y5: Combusted | Z5: tCO2e Emission Equivalent
B6: 2021 | C6: Camira Fabrics Limited | D6: Mirfield | E6: Scope_1 | F6: Stationary | G6: =LOOKUP(Table146135136143150157164171178185[[#This Row],[Emission Source]],Table3578[Source],Table3578[Pseudonym]) -> StationaryUS | H6: Natural Gas | I6: =LOOKUP(Table146135136143150157164171178185[[#This Row],[Emission Sub-source]],Table125[[Emission ]],Table125[Pseudonym]) -> NaturalGasUS | J6: =LOOKUP(Table146135136143150157164171178185[[#This Row],[Emission Sub-source]],Table44[Fuel Type],Table44[Unit]) -> scf | K6: 100000 | L6: scf | M6: =CONCATENATE(Table146135136143150157164171178185[[#This Row],[Unit Reported]],Table146135136143150157164171178185[[#This Row],[Unit Required]]) -> scfscf | N6: =LOOKUP(Table146135136143150157164171178185[[#This Row],[Concatenate Units]],Table43[Concatenate],Table43[Multiply By]) -> 1 | O6: =Table146135136143150157164171178185[[#This Row],[Data (Raw)]]*Table146135136143150157164171178185[[#This Row],[Unit Conversion]] -> 100000 | P6: =Table146135136143150157164171178185[[#This Row],[Unit Required]] -> scf | Q6: =LOOKUP(Table146135136143150157164171178185[[#This Row],[Emission Sub-source]],Table44[Fuel Type],Table44[CO2 Factor (kg / Unit)]) -> 0.05444 | R6: =LOOKUP(Table146135136143150157164171178185[[#This Row],[Emission Sub-source]],Table44[Fuel Type],Table44[CH4 Factor (g / unit)]) -> 0.00103 | S6: =(Table146135136143150157164171178185[[#This Row],[CH4]]/1000)*25 -> 2.575e-05 | T6: =LOOKUP(Table146135136143150157164171178185[[#This Row],[Emission Sub-source]],Table44[Fuel Type],Table44[N2O Factor (g / unit)]) -> 0.0001 | U6: =(Table146135136143150157164171178185[[#This Row],[N2O]]/1000)*298 -> 2.98e-05 | V6: =(LOOKUP(Table146135136143150157164171178185[[#This Row],[Emission Sub-source]],Table44[Fuel Type],Table44[GWP])) -> 0 | W6: =Table146135136143150157164171178185[[#This Row],[Data (Corrected)]]*(LOOKUP(Table146135136143150157164171178185[[#This Row],[Emission Sub-source]],Table44[Fuel Type],Table44[Recycled CO2 Factor])) -> 0 | X6: =Table146135136143150157164171178185[[#This Row],[Data (Corrected)]]*(LOOKUP(Table146135136143150157164171178185[[#This Row],[Emission Sub-source]],Table44[Fuel Type],Table44[Landfill CO2 Factor])) -> 0 | Y6: =Table146135136143150157164171178185[[#This Row],[Data (Corrected)]]*(LOOKUP(Table146135136143150157164171178185[[#This Row],[Emission Sub-source]],Table44[Fuel Type],Table44[Combusted CO2 Factor])) -> 0 | Z6: =((Table146135136143150157164171178185[[#This Row],[CO2]]+Table146135136143150157164171178185[[#This Row],[CH4 Corrected]]+Table146135136143150157164171178185[[#This Row],[N2O Corrected]]+Table146135136143150157164171178185[[#This Row],[GWP]]+Table146135136143150157164171178185[[#This Row],[Recycled]]+Table146135136143150157164171178185[[#This Row],[Landfill]]+Table146135136143150157164171178185[[#This Row],[Combusted]])*Table146135136143150157164171178185[[#This Row],[Data (Corrected)]])/1000 -> 5.449555
B8: Reporting year | C8: Entity | D8: Location | E8: Scope | F8: Emission Source | G8: Source Pseudonym | H8: Emission Sub-source | I8: Emission Pseudonym | J8: Unit Required | K8: Data (Raw) | L8: Unit Reported | M8: Concatenate Units | N8: Unit Conversion | O8: Data (Corrected) | P8: Unit (Corrected) | Q8: CO2 | R8: CH4 | S8: CH4 Corrected | T8: N2O | U8: N2O Corrected | V8: GWP | W8: Recycled | X8: Landfill | Y8: Combusted | Z8: tCO2e Emission Equivalent
B9: 2021 | C9: Camira Fabrics Limited | D9: Meltham | E9: Scope_1 | F9: Stationary | G9: =LOOKUP(Table146135136137144151158165172179186[[#This Row],[Emission Source]],Table3578[Source],Table3578[Pseudonym]) -> StationaryUS | H9: Natural Gas | I9: =LOOKUP(Table146135136137144151158165172179186[[#This Row],[Emission Sub-source]],Table125[[Emission ]],Table125[Pseudonym]) -> NaturalGasUS | J9: =LOOKUP(Table146135136137144151158165172179186[[#This Row],[Emission Sub-source]],Table44[Fuel Type],Table44[Unit]) -> scf | K9: 100000 | L9: scf | M9: =CONCATENATE(Table146135136137144151158165172179186[[#This Row],[Unit Reported]],Table146135136137144151158165172179186[[#This Row],[Unit Required]]) -> scfscf | N9: =LOOKUP(Table146135136137144151158165172179186[[#This Row],[Concatenate Units]],Table43[Concatenate],Table43[Multiply By]) -> 1 | O9: =Table146135136137144151158165172179186[[#This Row],[Data (Raw)]]*Table146135136137144151158165172179186[[#This Row],[Unit Conversion]] -> 100000 | P9: =Table146135136137144151158165172179186[[#This Row],[Unit Required]] -> scf | Q9: =LOOKUP(Table146135136137144151158165172179186[[#This Row],[Emission Sub-source]],Table44[Fuel Type],Table44[CO2 Factor (kg / Unit)]) -> 0.05444 | R9: =LOOKUP(Table146135136137144151158165172179186[[#This Row],[Emission Sub-source]],Table44[Fuel Type],Table44[CH4 Factor (g / unit)]) -> 0.00103 | S9: =(Table146135136137144151158165172179186[[#This Row],[CH4]]/1000)*25 -> 2.575e-05 | T9: =LOOKUP(Table146135136137144151158165172179186[[#This Row],[Emission Sub-source]],Table44[Fuel Type],Table44[N2O Factor (g / unit)]) -> 0.0001 | U9: =(Table146135136137144151158165172179186[[#This Row],[N2O]]/1000)*298 -> 2.98e-05 | V9: =(LOOKUP(Table146135136137144151158165172179186[[#This Row],[Emission Sub-source]],Table44[Fuel Type],Table44[GWP])) -> 0 | W9: =Table146135136137144151158165172179186[[#This Row],[Data (Corrected)]]*(LOOKUP(Table146135136137144151158165172179186[[#This Row],[Emission Sub-source]],Table44[Fuel Type],Table44[Recycled CO2 Factor])) -> 0 | X9: =Table146135136137144151158165172179186[[#This Row],[Data (Corrected)]]*(LOOKUP(Table146135136137144151158165172179186[[#This Row],[Emission Sub-source]],Table44[Fuel Type],Table44[Landfill CO2 Factor])) -> 0 | Y9: =Table146135136137144151158165172179186[[#This Row],[Data (Corrected)]]*(LOOKUP(Table146135136137144151158165172179186[[#This Row],[Emission Sub-source]],Table44[Fuel Type],Table44[Combusted CO2 Factor])) -> 0 | Z9: =((Table146135136137144151158165172179186[[#This Row],[CO2]]+Table146135136137144151158165172179186[[#This Row],[CH4 Corrected]]+Table146135136137144151158165172179186[[#This Row],[N2O Corrected]]+Table146135136137144151158165172179186[[#This Row],[GWP]]+Table146135136137144151158165172179186[[#This Row],[Recycled]]+Table146135136137144151158165172179186[[#This Row],[Landfill]]+Table146135136137144151158165172179186[[#This Row],[Combusted]])*Table146135136137144151158165172179186[[#This Row],[Data (Corrected)]])/1000 -> 5.449555
B11: Reporting year | C11: Entity | D11: Location | E11: Scope | F11: Emission Source | G11: Source Pseudonym | H11: Emission Sub-source | I11: Emission Pseudonym | J11: Unit Required | K11: Data (Raw) | L11: Unit Reported | M11: Concatenate Units | N11: Unit Conversion | O11: Data (Corrected) | P11: Unit (Corrected) | Q11: CO2 | R11: CH4 | S11: CH4 Corrected | T11: N2O | U11: N2O Corrected | V11: GWP | W11: Recycled | X11: Landfill | Y11: Combusted | Z11: tCO2e Emission Equivalent
B12: 2021 | C12: Camira Fabrics Limited | D12: Nottingham | E12: Scope_1 | F12: Stationary | G12: =LOOKUP(Table146135136137138145152159166173180187[[#This Row],[Emission Source]],Table3578[Source],Table3578[Pseudonym]) -> StationaryUS | H12: Natural Gas | I12: =LOOKUP(Table146135136137138145152159166173180187[[#This Row],[Emission Sub-source]],Table125[[Emission ]],Table125[Pseudonym]) -> NaturalGasUS | J12: =LOOKUP(Table146135136137138145152159166173180187[[#This Row],[Emission Sub-source]],Table44[Fuel Type],Table44[Unit]) -> scf | K12: 100000 | L12: scf | M12: =CONCATENATE(Table146135136137138145152159166173180187[[#This Row],[Unit Reported]],Table146135136137138145152159166173180187[[#This Row],[Unit Required]]) -> scfscf | N12: =LOOKUP(Table146135136137138145152159166173180187[[#This Row],[Concatenate Units]],Table43[Concatenate],Table43[Multiply By]) -> 1 | O12: =Table146135136137138145152159166173180187[[#This Row],[Data (Raw)]]*Table146135136137138145152159166173180187[[#This Row],[Unit Conversion]] -> 100000 | P12: =Table146135136137138145152159166173180187[[#This Row],[Unit Required]] -> scf | Q12: =LOOKUP(Table146135136137138145152159166173180187[[#This Row],[Emission Sub-source]],Table44[Fuel Type],Table44[CO2 Factor (kg / Unit)]) -> 0.05444 | R12: =LOOKUP(Table146135136137138145152159166173180187[[#This Row],[Emission Sub-source]],Table44[Fuel Type],Table44[CH4 Factor (g / unit)]) -> 0.00103 | S12: =(Table146135136137138145152159166173180187[[#This Row],[CH4]]/1000)*25 -> 2.575e-05 | T12: =LOOKUP(Table146135136137138145152159166173180187[[#This Row],[Emission Sub-source]],Table44[Fuel Type],Table44[N2O Factor (g / unit)]) -> 0.0001 | U12: =(Table146135136137138145152159166173180187[[#This Row],[N2O]]/1000)*298 -> 2.98e-05 | V12: =(LOOKUP(Table146135136137138145152159166173180187[[#This Row],[Emission Sub-source]],Table44[Fuel Type],Table44[GWP])) -> 0 | W12: =Table146135136137138145152159166173180187[[#This Row],[Data (Corrected)]]*(LOOKUP(Table146135136137138145152159166173180187[[#This Row],[Emission Sub-source]],Table44[Fuel Type],Table44[Recycled CO2 Factor])) -> 0 | X12: =Table146135136137138145152159166173180187[[#This Row],[Data (Corrected)]]*(LOOKUP(Table146135136137138145152159166173180187[[#This Row],[Emission Sub-source]],Table44[Fuel Type],Table44[Landfill CO2 Factor])) -> 0 | Y12: =Table146135136137138145152159166173180187[[#This Row],[Data (Corrected)]]*(LOOKUP(Table146135136137138145152159166173180187[[#This Row],[Emission Sub-source]],Table44[Fuel Type],Table44[Combusted CO2 Factor])) -> 0 | Z12: =((Table146135136137138145152159166173180187[[#This Row],[CO2]]+Table146135136137138145152159166173180187[[#This Row],[CH4 Corrected]]+Table146135136137138145152159166173180187[[#This Row],[N2O Corrected]]+Table146135136137138145152159166173180187[[#This Row],[GWP]]+Table146135136137138145152159166173180187[[#This Row],[Recycled]]+Table146135136137138145152159166173180187[[#This Row],[Landfill]]+Table146135136137138145152159166173180187[[#This Row],[Combusted]])*Table146135136137138145152159166173180187[[#This Row],[Data (Corrected)]])/1000 -> 5.449555
B14: Reporting year | C14: Entity | D14: Location | E14: Scope | F14: Emission Source | G14: Source Pseudonym | H14: Emission Sub-source | I14: Emission Pseudonym | J14: Unit Required | K14: Data (Raw) | L14: Unit Reported | M14: Concatenate Units | N14: Unit Conversion | O14: Data (Corrected) | P14: Unit (Corrected) | Q14: CO2 | R14: CH4 | S14: CH4 Corrected | T14: N2O | U14: N2O Corrected | V14: GWP | W14: Recycled | X14: Landfill | Y14: Combusted | Z14: tCO2e Emission Equivalent
B15: 2021 | C15: Camira Fabrics Limited | D15: Birkby | E15: Scope_1 | F15: Stationary | G15: =LOOKUP(Table146135136137138139146153160167174181188[[#This Row],[Emission Source]],Table3578[Source],Table3578[Pseudonym]) -> StationaryUS | H15: Natural Gas | I15: =LOOKUP(Table146135136137138139146153160167174181188[[#This Row],[Emission Sub-source]],Table125[[Emission ]],Table125[Pseudonym]) -> NaturalGasUS | J15: =LOOKUP(Table146135136137138139146153160167174181188[[#This Row],[Emission Sub-source]],Table44[Fuel Type],Table44[Unit]) -> scf | K15: 100000 | L15: scf | M15: =CONCATENATE(Table146135136137138139146153160167174181188[[#This Row],[Unit Reported]],Table146135136137138139146153160167174181188[[#This Row],[Unit Required]]) -> scfscf | N15: =LOOKUP(Table146135136137138139146153160167174181188[[#This Row],[Concatenate Units]],Table43[Concatenate],Table43[Multiply By]) -> 1 | O15: =Table146135136137138139146153160167174181188[[#This Row],[Data (Raw)]]*Table146135136137138139146153160167174181188[[#This Row],[Unit Conversion]] -> 100000 | P15: =Table146135136137138139146153160167174181188[[#This Row],[Unit Required]] -> scf | Q15: =LOOKUP(Table146135136137138139146153160167174181188[[#This Row],[Emission Sub-source]],Table44[Fuel Type],Table44[CO2 Factor (kg / Unit)]) -> 0.05444 | R15: =LOOKUP(Table146135136137138139146153160167174181188[[#This Row],[Emission Sub-source]],Table44[Fuel Type],Table44[CH4 Factor (g / unit)]) -> 0.00103 | S15: =(Table146135136137138139146153160167174181188[[#This Row],[CH4]]/1000)*25 -> 2.575e-05 | T15: =LOOKUP(Table146135136137138139146153160167174181188[[#This Row],[Emission Sub-source]],Table44[Fuel Type],Table44[N2O Factor (g / unit)]) -> 0.0001 | U15: =(Table146135136137138139146153160167174181188[[#This Row],[N2O]]/1000)*298 -> 2.98e-05 | V15: =(LOOKUP(Table146135136137138139146153160167174181188[[#This Row],[Emission Sub-source]],Table44[Fuel Type],Table44[GWP])) -> 0 | W15: =Table146135136137138139146153160167174181188[[#This Row],[Data (Corrected)]]*(LOOKUP(Table146135136137138139146153160167174181188[[#This Row],[Emission Sub-source]],Table44[Fuel Type],Table44[Recycled CO2 Factor])) -> 0 | X15: =Table146135136137138139146153160167174181188[[#This Row],[Data (Corrected)]]*(LOOKUP(Table146135136137138139146153160167174181188[[#This Row],[Emission Sub-source]],Table44[Fuel Type],Table44[Landfill CO2 Factor])) -> 0 | Y15: =Table146135136137138139146153160167174181188[[#This Row],[Data (Corrected)]]*(LOOKUP(Table146135136137138139146153160167174181188[[#This Row],[Emission Sub-source]],Table44[Fuel Type],Table44[Combusted CO2 Factor])) -> 0 | Z15: =((Table146135136137138139146153160167174181188[[#This Row],[CO2]]+Table146135136137138139146153160167174181188[[#This Row],[CH4 Corrected]]+Table146135136137138139146153160167174181188[[#This Row],[N2O Corrected]]+Table146135136137138139146153160167174181188[[#This Row],[GWP]]+Table146135136137138139146153160167174181188[[#This Row],[Recycled]]+Table146135136137138139146153160167174181188[[#This Row],[Landfill]]+Table146135136137138139146153160167174181188[[#This Row],[Combusted]])*Table146135136137138139146153160167174181188[[#This Row],[Data (Corrected)]])/1000 -> 5.449555
B17: Reporting year | C17: Entity | D17: Location | E17: Scope | F17: Emission Source | G17: Source Pseudonym | H17: Emission Sub-source | I17: Emission Pseudonym | J17: Unit Required | K17: Data (Raw) | L17: Unit Reported | M17: Concatenate Units | N17: Unit Conversion | O17: Data (Corrected) | P17: Unit (Corrected) | Q17: CO2 | R17: CH4 | S17: CH4 Corrected | T17: N2O | U17: N2O Corrected | V17: GWP | W17: Recycled | X17: Landfill | Y17: Combusted | Z17: tCO2e Emission Equivalent
B18: 2021 | C18: Camira Fabrics Limited | D18: Holmfirth | E18: Scope_1 | F18: Stationary | G18: =LOOKUP(Table146135136137138140147154161168175182189[[#This Row],[Emission Source]],Table3578[Source],Table3578[Pseudonym]) -> StationaryUS | H18: Natural Gas | I18: =LOOKUP(Table146135136137138140147154161168175182189[[#This Row],[Emission Sub-source]],Table125[[Emission ]],Table125[Pseudonym]) -> NaturalGasUS | J18: =LOOKUP(Table146135136137138140147154161168175182189[[#This Row],[Emission Sub-source]],Table44[Fuel Type],Table44[Unit]) -> scf | K18: 100000 | L18: scf | M18: =CONCATENATE(Table146135136137138140147154161168175182189[[#This Row],[Unit Reported]],Table146135136137138140147154161168175182189[[#This Row],[Unit Required]]) -> scfscf | N18: =LOOKUP(Table146135136137138140147154161168175182189[[#This Row],[Concatenate Units]],Table43[Concatenate],Table43[Multiply By]) -> 1 | O18: =Table146135136137138140147154161168175182189[[#This Row],[Data (Raw)]]*Table146135136137138140147154161168175182189[[#This Row],[Unit Conversion]] -> 100000 | P18: =Table146135136137138140147154161168175182189[[#This Row],[Unit Required]] -> scf | Q18: =LOOKUP(Table146135136137138140147154161168175182189[[#This Row],[Emission Sub-source]],Table44[Fuel Type],Table44[CO2 Factor (kg / Unit)]) -> 0.05444 | R18: =LOOKUP(Table146135136137138140147154161168175182189[[#This Row],[Emission Sub-source]],Table44[Fuel Type],Table44[CH4 Factor (g / unit)]) -> 0.00103 | S18: =(Table146135136137138140147154161168175182189[[#This Row],[CH4]]/1000)*25 -> 2.575e-05 | T18: =LOOKUP(Table146135136137138140147154161168175182189[[#This Row],[Emission Sub-source]],Table44[Fuel Type],Table44[N2O Factor (g / unit)]) -> 0.0001 | U18: =(Table146135136137138140147154161168175182189[[#This Row],[N2O]]/1000)*298 -> 2.98e-05 | V18: =(LOOKUP(Table146135136137138140147154161168175182189[[#This Row],[Emission Sub-source]],Table44[Fuel Type],Table44[GWP])) -> 0 | W18: =Table146135136137138140147154161168175182189[[#This Row],[Data (Corrected)]]*(LOOKUP(Table146135136137138140147154161168175182189[[#This Row],[Emission Sub-source]],Table44[Fuel Type],Table44[Recycled CO2 Factor])) -> 0 | X18: =Table146135136137138140147154161168175182189[[#This Row],[Data (Corrected)]]*(LOOKUP(Table146135136137138140147154161168175182189[[#This Row],[Emission Sub-source]],Table44[Fuel Type],Table44[Landfill CO2 Factor])) -> 0 | Y18: =Table146135136137138140147154161168175182189[[#This Row],[Data (Corrected)]]*(LOOKUP(Table146135136137138140147154161168175182189[[#This Row],[Emission Sub-source]],Table44[Fuel Type],Table44[Combusted CO2 Factor])) -> 0 | Z18: =((Table146135136137138140147154161168175182189[[#This Row],[CO2]]+Table146135136137138140147154161168175182189[[#This Row],[CH4 Corrected]]+Table146135136137138140147154161168175182189[[#This Row],[N2O Corrected]]+Table146135136137138140147154161168175182189[[#This Row],[GWP]]+Table146135136137138140147154161168175182189[[#This Row],[Recycled]]+Table146135136137138140147154161168175182189[[#This Row],[Landfill]]+Table146135136137138140147154161168175182189[[#This Row],[Combusted]])*Table146135136137138140147154161168175182189[[#This Row],[Data (Corrected)]])/1000 -> 5.449555
B20: EUR - ??
B21: Reporting year | C21: Entity | D21: Location | E21: Scope | F21: Emission Source | G21: Source Pseudonym | H21: Emission Sub-source | I21: Emission Pseudonym | J21: Unit Required | K21: Data (Raw) | L21: Unit Reported | M21: Concatenate Units | N21: Unit Conversion | O21: Data (Corrected) | P21: Unit (Corrected) | Q21: CO2 | R21: CH4 | S21: CH4 Corrected | T21: N2O | U21: N2O Corrected | V21: GWP | W21: Recycled | X21: Landfill | Y21: Combusted | Z21: tCO2e Emission Equivalent
B22: 2021 | C22: UAB Camira Fabrics | D22: Lithuania | E22: Scope_1 | F22: Stationary | G22: =LOOKUP(Table146135136137138140141148155162169176183190[[#This Row],[Emission Source]],Table3578[Source],Table3578[Pseudonym]) -> StationaryUS | H22: Natural Gas | I22: =LOOKUP(Table146135136137138140141148155162169176183190[[#This Row],[Emission Sub-source]],Table125[[Emission ]],Table125[Pseudonym]) -> NaturalGasUS | J22: =LOOKUP(Table146135136137138140141148155162169176183190[[#This Row],[Emission Sub-source]],Table44[Fuel Type],Table44[Unit]) -> scf | K22: 100000 | L22: scf | M22: =CONCATENATE(Table146135136137138140141148155162169176183190[[#This Row],[Unit Reported]],Table146135136137138140141148155162169176183190[[#This Row],[Unit Required]]) -> scfscf | N22: =LOOKUP(Table146135136137138140141148155162169176183190[[#This Row],[Concatenate Units]],Table43[Concatenate],Table43[Multiply By]) -> 1 | O22: =Table146135136137138140141148155162169176183190[[#This Row],[Data (Raw)]]*Table146135136137138140141148155162169176183190[[#This Row],[Unit Conversion]] -> 100000 | P22: =Table146135136137138140141148155162169176183190[[#This Row],[Unit Required]] -> scf | Q22: =LOOKUP(Table146135136137138140141148155162169176183190[[#This Row],[Emission Sub-source]],Table44[Fuel Type],Table44[CO2 Factor (kg / Unit)]) -> 0.05444 | R22: =LOOKUP(Table146135136137138140141148155162169176183190[[#This Row],[Emission Sub-source]],Table44[Fuel Type],Table44[CH4 Factor (g / unit)]) -> 0.00103 | S22: =(Table146135136137138140141148155162169176183190[[#This Row],[CH4]]/1000)*25 -> 2.575e-05 | T22: =LOOKUP(Table146135136137138140141148155162169176183190[[#This Row],[Emission Sub-source]],Table44[Fuel Type],Table44[N2O Factor (g / unit)]) -> 0.0001 | U22: =(Table146135136137138140141148155162169176183190[[#This Row],[N2O]]/1000)*298 -> 2.98e-05 | V22: =(LOOKUP(Table146135136137138140141148155162169176183190[[#This Row],[Emission Sub-source]],Table44[Fuel Type],Table44[GWP])) -> 0 | W22: =Table146135136137138140141148155162169176183190[[#This Row],[Data (Corrected)]]*(LOOKUP(Table146135136137138140141148155162169176183190[[#This Row],[Emission Sub-source]],Table44[Fuel Type],Table44[Recycled CO2 Factor])) -> 0 | X22: =Table146135136137138140141148155162169176183190[[#This Row],[Data (Corrected)]]*(LOOKUP(Table146135136137138140141148155162169176183190[[#This Row],[Emission Sub-source]],Table44[Fuel Type],Table44[Landfill CO2 Factor])) -> 0 | Y22: =Table146135136137138140141148155162169176183190[[#This Row],[Data (Corrected)]]*(LOOKUP(Table146135136137138140141148155162169176183190[[#This Row],[Emission Sub-source]],Table44[Fuel Type],Table44[Combusted CO2 Factor])) -> 0 | Z22: =((Table146135136137138140141148155162169176183190[[#This Row],[CO2]]+Table146135136137138140141148155162169176183190[[#This Row],[CH4 Corrected]]+Table146135136137138140141148155162169176183190[[#This Row],[N2O Corrected]]+Table146135136137138140141148155162169176183190[[#This Row],[GWP]]+Table146135136137138140141148155162169176183190[[#This Row],[Recycled]]+Table146135136137138140141148155162169176183190[[#This Row],[Landfill]]+Table146135136137138140141148155162169176183190[[#This Row],[Combusted]])*Table146135136137138140141148155162169176183190[[#This Row],[Data (Corrected)]])/1000 -> 5.449555
B24: US - EPA
B25: Reporting year | C25: Entity | D25: Location | E25: Scope | F25: Emission Source | G25: Source Pseudonym | H25: Emission Sub-source | I25: Emission Pseudonym | J25: Unit Required | K25: Data (Raw) | L25: Unit Reported | M25: Concatenate Units | N25: Unit Conversion | O25: Data (Corrected) | P25: Unit (Corrected) | Q25: CO2 | R25: CH4 | S25: CH4 Corrected | T25: N2O | U25: N2O Corrected | V25: GWP | W25: Recycled | X25: Landfill | Y25: Combusted | Z25: tCO2e Emission Equivalent
B26: 2021 | C26: Camira Group, Inc | D26: Grand Rapids | E26: Scope_1 | F26: Stationary | G26: =LOOKUP(Table146135142149156163170177184[[#This Row],[Emission Source]],Table3578[Source],Table3578[Pseudonym]) -> StationaryUS | H26: Natural Gas | I26: =LOOKUP(Table146135142149156163170177184[[#This Row],[Emission Sub-source]],Table125[[Emission ]],Table125[Pseudonym]) -> NaturalGasUS | J26: =LOOKUP(Table146135142149156163170177184[[#This Row],[Emission Sub-source]],Table44[Fuel Type],Table44[Unit]) -> scf | K26: 100000 | L26: scf | M26: =CONCATENATE(Table146135142149156163170177184[[#This Row],[Unit Reported]],Table146135142149156163170177184[[#This Row],[Unit Required]]) -> scfscf | N26: =LOOKUP(Table146135142149156163170177184[[#This Row],[Concatenate Units]],Table43[Concatenate],Table43[Multiply By]) -> 1 | O26: =Table146135142149156163170177184[[#This Row],[Data (Raw)]]*Table146135142149156163170177184[[#This Row],[Unit Conversion]] -> 100000 | P26: =Table146135142149156163170177184[[#This Row],[Unit Required]] -> scf | Q26: =LOOKUP(Table146135142149156163170177184[[#This Row],[Emission Sub-source]],Table44[Fuel Type],Table44[CO2 Factor (kg / Unit)]) -> 0.05444 | R26: =LOOKUP(Table146135142149156163170177184[[#This Row],[Emission Sub-source]],Table44[Fuel Type],Table44[CH4 Factor (g / unit)]) -> 0.00103 | S26: =(Table146135142149156163170177184[[#This Row],[CH4]]/1000)*25 -> 2.575e-05 | T26: =LOOKUP(Table146135142149156163170177184[[#This Row],[Emission Sub-source]],Table44[Fuel Type],Table44[N2O Factor (g / unit)]) -> 0.0001 | U26: =(Table146135142149156163170177184[[#This Row],[N2O]]/1000)*298 -> 2.98e-05 | V26: =(LOOKUP(Table146135142149156163170177184[[#This Row],[Emission Sub-source]],Table44[Fuel Type],Table44[GWP])) -> 0 | W26: =Table146135142149156163170177184[[#This Row],[Data (Corrected)]]*(LOOKUP(Table146135142149156163170177184[[#This Row],[Emission Sub-source]],Table44[Fuel Type],Table44[Recycled CO2 Factor])) -> 0 | X26: =Table146135142149156163170177184[[#This Row],[Data (Corrected)]]*(LOOKUP(Table146135142149156163170177184[[#This Row],[Emission Sub-source]],Table44[Fuel Type],Table44[Landfill CO2 Factor])) -> 0 | Y26: =Table146135142149156163170177184[[#This Row],[Data (Corrected)]]*(LOOKUP(Table146135142149156163170177184[[#This Row],[Emission Sub-source]],Table44[Fuel Type],Table44[Combusted CO2 Factor])) -> 0 | Z26: =((Table146135142149156163170177184[[#This Row],[CO2]]+Table146135142149156163170177184[[#This Row],[CH4 Corrected]]+Table146135142149156163170177184[[#This Row],[N2O Corrected]]+Table146135142149156163170177184[[#This Row],[GWP]]+Table146135142149156163170177184[[#This Row],[Recycled]]+Table146135142149156163170177184[[#This Row],[Landfill]]+Table146135142149156163170177184[[#This Row],[Combusted]])*Table146135142149156163170177184[[#This Row],[Data (Corrected)]])/1000 -> 5.449555

Sheet 3.2 (hidden)
B2: Greenhouse Gas Emission Analysis - Supplier Scope 1 & 2 - Capital Spend
B4: UK - DBEIS/DEFRA
B5: Reporting year | C5: Entity | D5: Location | E5: Scope | F5: Emission Source | G5: Source Pseudonym | H5: Emission Sub-source | I5: Emission Pseudonym | J5: Unit Required | K5: Data (Raw) | L5: Unit Reported | M5: Concatenate Units | N5: Unit Conversion | O5: Data (Corrected) | P5: Unit (Corrected) | Q5: CO2 | R5: CH4 | S5: CH4 Corrected | T5: N2O | U5: N2O Corrected | V5: GWP | W5: Recycled | X5: Landfill | Y5: Combusted | Z5: tCO2e Emission Equivalent
B6: 2021 | C6: Camira Fabrics Limited | D6: Mirfield | E6: Scope_1 | F6: Stationary | G6: =LOOKUP(Table146135136143150157164171178185192[[#This Row],[Emission Source]],Table3578[Source],Table3578[Pseudonym]) -> StationaryUS | H6: Natural Gas | I6: =LOOKUP(Table146135136143150157164171178185192[[#This Row],[Emission Sub-source]],Table125[[Emission ]],Table125[Pseudonym]) -> NaturalGasUS | J6: =LOOKUP(Table146135136143150157164171178185192[[#This Row],[Emission Sub-source]],Table44[Fuel Type],Table44[Unit]) -> scf | K6: 100000 | L6: scf | M6: =CONCATENATE(Table146135136143150157164171178185192[[#This Row],[Unit Reported]],Table146135136143150157164171178185192[[#This Row],[Unit Required]]) -> scfscf | N6: =LOOKUP(Table146135136143150157164171178185192[[#This Row],[Concatenate Units]],Table43[Concatenate],Table43[Multiply By]) -> 1 | O6: =Table146135136143150157164171178185192[[#This Row],[Data (Raw)]]*Table146135136143150157164171178185192[[#This Row],[Unit Conversion]] -> 100000 | P6: =Table146135136143150157164171178185192[[#This Row],[Unit Required]] -> scf | Q6: =LOOKUP(Table146135136143150157164171178185192[[#This Row],[Emission Sub-source]],Table44[Fuel Type],Table44[CO2 Factor (kg / Unit)]) -> 0.05444 | R6: =LOOKUP(Table146135136143150157164171178185192[[#This Row],[Emission Sub-source]],Table44[Fuel Type],Table44[CH4 Factor (g / unit)]) -> 0.00103 | S6: =(Table146135136143150157164171178185192[[#This Row],[CH4]]/1000)*25 -> 2.575e-05 | T6: =LOOKUP(Table146135136143150157164171178185192[[#This Row],[Emission Sub-source]],Table44[Fuel Type],Table44[N2O Factor (g / unit)]) -> 0.0001 | U6: =(Table146135136143150157164171178185192[[#This Row],[N2O]]/1000)*298 -> 2.98e-05 | V6: =(LOOKUP(Table146135136143150157164171178185192[[#This Row],[Emission Sub-source]],Table44[Fuel Type],Table44[GWP])) -> 0 | W6: =Table146135136143150157164171178185192[[#This Row],[Data (Corrected)]]*(LOOKUP(Table146135136143150157164171178185192[[#This Row],[Emission Sub-source]],Table44[Fuel Type],Table44[Recycled CO2 Factor])) -> 0 | X6: =Table146135136143150157164171178185192[[#This Row],[Data (Corrected)]]*(LOOKUP(Table146135136143150157164171178185192[[#This Row],[Emission Sub-source]],Table44[Fuel Type],Table44[Landfill CO2 Factor])) -> 0 | Y6: =Table146135136143150157164171178185192[[#This Row],[Data (Corrected)]]*(LOOKUP(Table146135136143150157164171178185192[[#This Row],[Emission Sub-source]],Table44[Fuel Type],Table44[Combusted CO2 Factor])) -> 0 | Z6: =((Table146135136143150157164171178185192[[#This Row],[CO2]]+Table146135136143150157164171178185192[[#This Row],[CH4 Corrected]]+Table146135136143150157164171178185192[[#This Row],[N2O Corrected]]+Table146135136143150157164171178185192[[#This Row],[GWP]]+Table146135136143150157164171178185192[[#This Row],[Recycled]]+Table146135136143150157164171178185192[[#This Row],[Landfill]]+Table146135136143150157164171178185192[[#This Row],[Combusted]])*Table146135136143150157164171178185192[[#This Row],[Data (Corrected)]])/1000 -> 5.449555
B8: Reporting year | C8: Entity | D8: Location | E8: Scope | F8: Emission Source | G8: Source Pseudonym | H8: Emission Sub-source | I8: Emission Pseudonym | J8: Unit Required | K8: Data (Raw) | L8: Unit Reported | M8: Concatenate Units | N8: Unit Conversion | O8: Data (Corrected) | P8: Unit (Corrected) | Q8: CO2 | R8: CH4 | S8: CH4 Corrected | T8: N2O | U8: N2O Corrected | V8: GWP | W8: Recycled | X8: Landfill | Y8: Combusted | Z8: tCO2e Emission Equivalent
B9: 2021 | C9: Camira Fabrics Limited | D9: Meltham | E9: Scope_1 | F9: Stationary | G9: =LOOKUP(Table146135136137144151158165172179186193[[#This Row],[Emission Source]],Table3578[Source],Table3578[Pseudonym]) -> StationaryUS | H9: Natural Gas | I9: =LOOKUP(Table146135136137144151158165172179186193[[#This Row],[Emission Sub-source]],Table125[[Emission ]],Table125[Pseudonym]) -> NaturalGasUS | J9: =LOOKUP(Table146135136137144151158165172179186193[[#This Row],[Emission Sub-source]],Table44[Fuel Type],Table44[Unit]) -> scf | K9: 100000 | L9: scf | M9: =CONCATENATE(Table146135136137144151158165172179186193[[#This Row],[Unit Reported]],Table146135136137144151158165172179186193[[#This Row],[Unit Required]]) -> scfscf | N9: =LOOKUP(Table146135136137144151158165172179186193[[#This Row],[Concatenate Units]],Table43[Concatenate],Table43[Multiply By]) -> 1 | O9: =Table146135136137144151158165172179186193[[#This Row],[Data (Raw)]]*Table146135136137144151158165172179186193[[#This Row],[Unit Conversion]] -> 100000 | P9: =Table146135136137144151158165172179186193[[#This Row],[Unit Required]] -> scf | Q9: =LOOKUP(Table146135136137144151158165172179186193[[#This Row],[Emission Sub-source]],Table44[Fuel Type],Table44[CO2 Factor (kg / Unit)]) -> 0.05444 | R9: =LOOKUP(Table146135136137144151158165172179186193[[#This Row],[Emission Sub-source]],Table44[Fuel Type],Table44[CH4 Factor (g / unit)]) -> 0.00103 | S9: =(Table146135136137144151158165172179186193[[#This Row],[CH4]]/1000)*25 -> 2.575e-05 | T9: =LOOKUP(Table146135136137144151158165172179186193[[#This Row],[Emission Sub-source]],Table44[Fuel Type],Table44[N2O Factor (g / unit)]) -> 0.0001 | U9: =(Table146135136137144151158165172179186193[[#This Row],[N2O]]/1000)*298 -> 2.98e-05 | V9: =(LOOKUP(Table146135136137144151158165172179186193[[#This Row],[Emission Sub-source]],Table44[Fuel Type],Table44[GWP])) -> 0 | W9: =Table146135136137144151158165172179186193[[#This Row],[Data (Corrected)]]*(LOOKUP(Table146135136137144151158165172179186193[[#This Row],[Emission Sub-source]],Table44[Fuel Type],Table44[Recycled CO2 Factor])) -> 0 | X9: =Table146135136137144151158165172179186193[[#This Row],[Data (Corrected)]]*(LOOKUP(Table146135136137144151158165172179186193[[#This Row],[Emission Sub-source]],Table44[Fuel Type],Table44[Landfill CO2 Factor])) -> 0 | Y9: =Table146135136137144151158165172179186193[[#This Row],[Data (Corrected)]]*(LOOKUP(Table146135136137144151158165172179186193[[#This Row],[Emission Sub-source]],Table44[Fuel Type],Table44[Combusted CO2 Factor])) -> 0 | Z9: =((Table146135136137144151158165172179186193[[#This Row],[CO2]]+Table146135136137144151158165172179186193[[#This Row],[CH4 Corrected]]+Table146135136137144151158165172179186193[[#This Row],[N2O Corrected]]+Table146135136137144151158165172179186193[[#This Row],[GWP]]+Table146135136137144151158165172179186193[[#This Row],[Recycled]]+Table146135136137144151158165172179186193[[#This Row],[Landfill]]+Table146135136137144151158165172179186193[[#This Row],[Combusted]])*Table146135136137144151158165172179186193[[#This Row],[Data (Corrected)]])/1000 -> 5.449555
B11: Reporting year | C11: Entity | D11: Location | E11: Scope | F11: Emission Source | G11: Source Pseudonym | H11: Emission Sub-source | I11: Emission Pseudonym | J11: Unit Required | K11: Data (Raw) | L11: Unit Reported | M11: Concatenate Units | N11: Unit Conversion | O11: Data (Corrected) | P11: Unit (Corrected) | Q11: CO2 | R11: CH4 | S11: CH4 Corrected | T11: N2O | U11: N2O Corrected | V11: GWP | W11: Recycled | X11: Landfill | Y11: Combusted | Z11: tCO2e Emission Equivalent
B12: 2021 | C12: Camira Fabrics Limited | D12: Nottingham | E12: Scope_1 | F12: Stationary | G12: =LOOKUP(Table146135136137138145152159166173180187194[[#This Row],[Emission Source]],Table3578[Source],Table3578[Pseudonym]) -> StationaryUS | H12: Natural Gas | I12: =LOOKUP(Table146135136137138145152159166173180187194[[#This Row],[Emission Sub-source]],Table125[[Emission ]],Table125[Pseudonym]) -> NaturalGasUS | J12: =LOOKUP(Table146135136137138145152159166173180187194[[#This Row],[Emission Sub-source]],Table44[Fuel Type],Table44[Unit]) -> scf | K12: 100000 | L12: scf | M12: =CONCATENATE(Table146135136137138145152159166173180187194[[#This Row],[Unit Reported]],Table146135136137138145152159166173180187194[[#This Row],[Unit Required]]) -> scfscf | N12: =LOOKUP(Table146135136137138145152159166173180187194[[#This Row],[Concatenate Units]],Table43[Concatenate],Table43[Multiply By]) -> 1 | O12: =Table146135136137138145152159166173180187194[[#This Row],[Data (Raw)]]*Table146135136137138145152159166173180187194[[#This Row],[Unit Conversion]] -> 100000 | P12: =Table146135136137138145152159166173180187194[[#This Row],[Unit Required]] -> scf | Q12: =LOOKUP(Table146135136137138145152159166173180187194[[#This Row],[Emission Sub-source]],Table44[Fuel Type],Table44[CO2 Factor (kg / Unit)]) -> 0.05444 | R12: =LOOKUP(Table146135136137138145152159166173180187194[[#This Row],[Emission Sub-source]],Table44[Fuel Type],Table44[CH4 Factor (g / unit)]) -> 0.00103 | S12: =(Table146135136137138145152159166173180187194[[#This Row],[CH4]]/1000)*25 -> 2.575e-05 | T12: =LOOKUP(Table146135136137138145152159166173180187194[[#This Row],[Emission Sub-source]],Table44[Fuel Type],Table44[N2O Factor (g / unit)]) -> 0.0001 | U12: =(Table146135136137138145152159166173180187194[[#This Row],[N2O]]/1000)*298 -> 2.98e-05 | V12: =(LOOKUP(Table146135136137138145152159166173180187194[[#This Row],[Emission Sub-source]],Table44[Fuel Type],Table44[GWP])) -> 0 | W12: =Table146135136137138145152159166173180187194[[#This Row],[Data (Corrected)]]*(LOOKUP(Table146135136137138145152159166173180187194[[#This Row],[Emission Sub-source]],Table44[Fuel Type],Table44[Recycled CO2 Factor])) -> 0 | X12: =Table146135136137138145152159166173180187194[[#This Row],[Data (Corrected)]]*(LOOKUP(Table146135136137138145152159166173180187194[[#This Row],[Emission Sub-source]],Table44[Fuel Type],Table44[Landfill CO2 Factor])) -> 0 | Y12: =Table146135136137138145152159166173180187194[[#This Row],[Data (Corrected)]]*(LOOKUP(Table146135136137138145152159166173180187194[[#This Row],[Emission Sub-source]],Table44[Fuel Type],Table44[Combusted CO2 Factor])) -> 0 | Z12: =((Table146135136137138145152159166173180187194[[#This Row],[CO2]]+Table146135136137138145152159166173180187194[[#This Row],[CH4 Corrected]]+Table146135136137138145152159166173180187194[[#This Row],[N2O Corrected]]+Table146135136137138145152159166173180187194[[#This Row],[GWP]]+Table146135136137138145152159166173180187194[[#This Row],[Recycled]]+Table146135136137138145152159166173180187194[[#This Row],[Landfill]]+Table146135136137138145152159166173180187194[[#This Row],[Combusted]])*Table146135136137138145152159166173180187194[[#This Row],[Data (Corrected)]])/1000 -> 5.449555
B14: Reporting year | C14: Entity | D14: Location | E14: Scope | F14: Emission Source | G14: Source Pseudonym | H14: Emission Sub-source | I14: Emission Pseudonym | J14: Unit Required | K14: Data (Raw) | L14: Unit Reported | M14: Concatenate Units | N14: Unit Conversion | O14: Data (Corrected) | P14: Unit (Corrected) | Q14: CO2 | R14: CH4 | S14: CH4 Corrected | T14: N2O | U14: N2O Corrected | V14: GWP | W14: Recycled | X14: Landfill | Y14: Combusted | Z14: tCO2e Emission Equivalent
B15: 2021 | C15: Camira Fabrics Limited | D15: Birkby | E15: Scope_1 | F15: Stationary | G15: =LOOKUP(Table146135136137138139146153160167174181188195[[#This Row],[Emission Source]],Table3578[Source],Table3578[Pseudonym]) -> StationaryUS | H15: Natural Gas | I15: =LOOKUP(Table146135136137138139146153160167174181188195[[#This Row],[Emission Sub-source]],Table125[[Emission ]],Table125[Pseudonym]) -> NaturalGasUS | J15: =LOOKUP(Table146135136137138139146153160167174181188195[[#This Row],[Emission Sub-source]],Table44[Fuel Type],Table44[Unit]) -> scf | K15: 100000 | L15: scf | M15: =CONCATENATE(Table146135136137138139146153160167174181188195[[#This Row],[Unit Reported]],Table146135136137138139146153160167174181188195[[#This Row],[Unit Required]]) -> scfscf | N15: =LOOKUP(Table146135136137138139146153160167174181188195[[#This Row],[Concatenate Units]],Table43[Concatenate],Table43[Multiply By]) -> 1 | O15: =Table146135136137138139146153160167174181188195[[#This Row],[Data (Raw)]]*Table146135136137138139146153160167174181188195[[#This Row],[Unit Conversion]] -> 100000 | P15: =Table146135136137138139146153160167174181188195[[#This Row],[Unit Required]] -> scf | Q15: =LOOKUP(Table146135136137138139146153160167174181188195[[#This Row],[Emission Sub-source]],Table44[Fuel Type],Table44[CO2 Factor (kg / Unit)]) -> 0.05444 | R15: =LOOKUP(Table146135136137138139146153160167174181188195[[#This Row],[Emission Sub-source]],Table44[Fuel Type],Table44[CH4 Factor (g / unit)]) -> 0.00103 | S15: =(Table146135136137138139146153160167174181188195[[#This Row],[CH4]]/1000)*25 -> 2.575e-05 | T15: =LOOKUP(Table146135136137138139146153160167174181188195[[#This Row],[Emission Sub-source]],Table44[Fuel Type],Table44[N2O Factor (g / unit)]) -> 0.0001 | U15: =(Table146135136137138139146153160167174181188195[[#This Row],[N2O]]/1000)*298 -> 2.98e-05 | V15: =(LOOKUP(Table146135136137138139146153160167174181188195[[#This Row],[Emission Sub-source]],Table44[Fuel Type],Table44[GWP])) -> 0 | W15: =Table146135136137138139146153160167174181188195[[#This Row],[Data (Corrected)]]*(LOOKUP(Table146135136137138139146153160167174181188195[[#This Row],[Emission Sub-source]],Table44[Fuel Type],Table44[Recycled CO2 Factor])) -> 0 | X15: =Table146135136137138139146153160167174181188195[[#This Row],[Data (Corrected)]]*(LOOKUP(Table146135136137138139146153160167174181188195[[#This Row],[Emission Sub-source]],Table44[Fuel Type],Table44[Landfill CO2 Factor])) -> 0 | Y15: =Table146135136137138139146153160167174181188195[[#This Row],[Data (Corrected)]]*(LOOKUP(Table146135136137138139146153160167174181188195[[#This Row],[Emission Sub-source]],Table44[Fuel Type],Table44[Combusted CO2 Factor])) -> 0 | Z15: =((Table146135136137138139146153160167174181188195[[#This Row],[CO2]]+Table146135136137138139146153160167174181188195[[#This Row],[CH4 Corrected]]+Table146135136137138139146153160167174181188195[[#This Row],[N2O Corrected]]+Table146135136137138139146153160167174181188195[[#This Row],[GWP]]+Table146135136137138139146153160167174181188195[[#This Row],[Recycled]]+Table146135136137138139146153160167174181188195[[#This Row],[Landfill]]+Table146135136137138139146153160167174181188195[[#This Row],[Combusted]])*Table146135136137138139146153160167174181188195[[#This Row],[Data (Corrected)]])/1000 -> 5.449555
B17: Reporting year | C17: Entity | D17: Location | E17: Scope | F17: Emission Source | G17: Source Pseudonym | H17: Emission Sub-source | I17: Emission Pseudonym | J17: Unit Required | K17: Data (Raw) | L17: Unit Reported | M17: Concatenate Units | N17: Unit Conversion | O17: Data (Corrected) | P17: Unit (Corrected) | Q17: CO2 | R17: CH4 | S17: CH4 Corrected | T17: N2O | U17: N2O Corrected | V17: GWP | W17: Recycled | X17: Landfill | Y17: Combusted | Z17: tCO2e Emission Equivalent
B18: 2021 | C18: Camira Fabrics Limited | D18: Holmfirth | E18: Scope_1 | F18: Stationary | G18: =LOOKUP(Table146135136137138140147154161168175182189196[[#This Row],[Emission Source]],Table3578[Source],Table3578[Pseudonym]) -> StationaryUS | H18: Natural Gas | I18: =LOOKUP(Table146135136137138140147154161168175182189196[[#This Row],[Emission Sub-source]],Table125[[Emission ]],Table125[Pseudonym]) -> NaturalGasUS | J18: =LOOKUP(Table146135136137138140147154161168175182189196[[#This Row],[Emission Sub-source]],Table44[Fuel Type],Table44[Unit]) -> scf | K18: 100000 | L18: scf | M18: =CONCATENATE(Table146135136137138140147154161168175182189196[[#This Row],[Unit Reported]],Table146135136137138140147154161168175182189196[[#This Row],[Unit Required]]) -> scfscf | N18: =LOOKUP(Table146135136137138140147154161168175182189196[[#This Row],[Concatenate Units]],Table43[Concatenate],Table43[Multiply By]) -> 1 | O18: =Table146135136137138140147154161168175182189196[[#This Row],[Data (Raw)]]*Table146135136137138140147154161168175182189196[[#This Row],[Unit Conversion]] -> 100000 | P18: =Table146135136137138140147154161168175182189196[[#This Row],[Unit Required]] -> scf | Q18: =LOOKUP(Table146135136137138140147154161168175182189196[[#This Row],[Emission Sub-source]],Table44[Fuel Type],Table44[CO2 Factor (kg / Unit)]) -> 0.05444 | R18: =LOOKUP(Table146135136137138140147154161168175182189196[[#This Row],[Emission Sub-source]],Table44[Fuel Type],Table44[CH4 Factor (g / unit)]) -> 0.00103 | S18: =(Table146135136137138140147154161168175182189196[[#This Row],[CH4]]/1000)*25 -> 2.575e-05 | T18: =LOOKUP(Table146135136137138140147154161168175182189196[[#This Row],[Emission Sub-source]],Table44[Fuel Type],Table44[N2O Factor (g / unit)]) -> 0.0001 | U18: =(Table146135136137138140147154161168175182189196[[#This Row],[N2O]]/1000)*298 -> 2.98e-05 | V18: =(LOOKUP(Table146135136137138140147154161168175182189196[[#This Row],[Emission Sub-source]],Table44[Fuel Type],Table44[GWP])) -> 0 | W18: =Table146135136137138140147154161168175182189196[[#This Row],[Data (Corrected)]]*(LOOKUP(Table146135136137138140147154161168175182189196[[#This Row],[Emission Sub-source]],Table44[Fuel Type],Table44[Recycled CO2 Factor])) -> 0 | X18: =Table146135136137138140147154161168175182189196[[#This Row],[Data (Corrected)]]*(LOOKUP(Table146135136137138140147154161168175182189196[[#This Row],[Emission Sub-source]],Table44[Fuel Type],Table44[Landfill CO2 Factor])) -> 0 | Y18: =Table146135136137138140147154161168175182189196[[#This Row],[Data (Corrected)]]*(LOOKUP(Table146135136137138140147154161168175182189196[[#This Row],[Emission Sub-source]],Table44[Fuel Type],Table44[Combusted CO2 Factor])) -> 0 | Z18: =((Table146135136137138140147154161168175182189196[[#This Row],[CO2]]+Table146135136137138140147154161168175182189196[[#This Row],[CH4 Corrected]]+Table146135136137138140147154161168175182189196[[#This Row],[N2O Corrected]]+Table146135136137138140147154161168175182189196[[#This Row],[GWP]]+Table146135136137138140147154161168175182189196[[#This Row],[Recycled]]+Table146135136137138140147154161168175182189196[[#This Row],[Landfill]]+Table146135136137138140147154161168175182189196[[#This Row],[Combusted]])*Table146135136137138140147154161168175182189196[[#This Row],[Data (Corrected)]])/1000 -> 5.449555
B20: EUR - ??
B21: Reporting year | C21: Entity | D21: Location | E21: Scope | F21: Emission Source | G21: Source Pseudonym | H21: Emission Sub-source | I21: Emission Pseudonym | J21: Unit Required | K21: Data (Raw) | L21: Unit Reported | M21: Concatenate Units | N21: Unit Conversion | O21: Data (Corrected) | P21: Unit (Corrected) | Q21: CO2 | R21: CH4 | S21: CH4 Corrected | T21: N2O | U21: N2O Corrected | V21: GWP | W21: Recycled | X21: Landfill | Y21: Combusted | Z21: tCO2e Emission Equivalent
B22: 2021 | C22: UAB Camira Fabrics | D22: Lithuania | E22: Scope_1 | F22: Stationary | G22: =LOOKUP(Table146135136137138140141148155162169176183190197[[#This Row],[Emission Source]],Table3578[Source],Table3578[Pseudonym]) -> StationaryUS | H22: Natural Gas | I22: =LOOKUP(Table146135136137138140141148155162169176183190197[[#This Row],[Emission Sub-source]],Table125[[Emission ]],Table125[Pseudonym]) -> NaturalGasUS | J22: =LOOKUP(Table146135136137138140141148155162169176183190197[[#This Row],[Emission Sub-source]],Table44[Fuel Type],Table44[Unit]) -> scf | K22: 100000 | L22: scf | M22: =CONCATENATE(Table146135136137138140141148155162169176183190197[[#This Row],[Unit Reported]],Table146135136137138140141148155162169176183190197[[#This Row],[Unit Required]]) -> scfscf | N22: =LOOKUP(Table146135136137138140141148155162169176183190197[[#This Row],[Concatenate Units]],Table43[Concatenate],Table43[Multiply By]) -> 1 | O22: =Table146135136137138140141148155162169176183190197[[#This Row],[Data (Raw)]]*Table146135136137138140141148155162169176183190197[[#This Row],[Unit Conversion]] -> 100000 | P22: =Table146135136137138140141148155162169176183190197[[#This Row],[Unit Required]] -> scf | Q22: =LOOKUP(Table146135136137138140141148155162169176183190197[[#This Row],[Emission Sub-source]],Table44[Fuel Type],Table44[CO2 Factor (kg / Unit)]) -> 0.05444 | R22: =LOOKUP(Table146135136137138140141148155162169176183190197[[#This Row],[Emission Sub-source]],Table44[Fuel Type],Table44[CH4 Factor (g / unit)]) -> 0.00103 | S22: =(Table146135136137138140141148155162169176183190197[[#This Row],[CH4]]/1000)*25 -> 2.575e-05 | T22: =LOOKUP(Table146135136137138140141148155162169176183190197[[#This Row],[Emission Sub-source]],Table44[Fuel Type],Table44[N2O Factor (g / unit)]) -> 0.0001 | U22: =(Table146135136137138140141148155162169176183190197[[#This Row],[N2O]]/1000)*298 -> 2.98e-05 | V22: =(LOOKUP(Table146135136137138140141148155162169176183190197[[#This Row],[Emission Sub-source]],Table44[Fuel Type],Table44[GWP])) -> 0 | W22: =Table146135136137138140141148155162169176183190197[[#This Row],[Data (Corrected)]]*(LOOKUP(Table146135136137138140141148155162169176183190197[[#This Row],[Emission Sub-source]],Table44[Fuel Type],Table44[Recycled CO2 Factor])) -> 0 | X22: =Table146135136137138140141148155162169176183190197[[#This Row],[Data (Corrected)]]*(LOOKUP(Table146135136137138140141148155162169176183190197[[#This Row],[Emission Sub-source]],Table44[Fuel Type],Table44[Landfill CO2 Factor])) -> 0 | Y22: =Table146135136137138140141148155162169176183190197[[#This Row],[Data (Corrected)]]*(LOOKUP(Table146135136137138140141148155162169176183190197[[#This Row],[Emission Sub-source]],Table44[Fuel Type],Table44[Combusted CO2 Factor])) -> 0 | Z22: =((Table146135136137138140141148155162169176183190197[[#This Row],[CO2]]+Table146135136137138140141148155162169176183190197[[#This Row],[CH4 Corrected]]+Table146135136137138140141148155162169176183190197[[#This Row],[N2O Corrected]]+Table146135136137138140141148155162169176183190197[[#This Row],[GWP]]+Table146135136137138140141148155162169176183190197[[#This Row],[Recycled]]+Table146135136137138140141148155162169176183190197[[#This Row],[Landfill]]+Table146135136137138140141148155162169176183190197[[#This Row],[Combusted]])*Table146135136137138140141148155162169176183190197[[#This Row],[Data (Corrected)]])/1000 -> 5.449555
B24: US - EPA
B25: Reporting year | C25: Entity | D25: Location | E25: Scope | F25: Emission Source | G25: Source Pseudonym | H25: Emission Sub-source | I25: Emission Pseudonym | J25: Unit Required | K25: Data (Raw) | L25: Unit Reported | M25: Concatenate Units | N25: Unit Conversion | O25: Data (Corrected) | P25: Unit (Corrected) | Q25: CO2 | R25: CH4 | S25: CH4 Corrected | T25: N2O | U25: N2O Corrected | V25: GWP | W25: Recycled | X25: Landfill | Y25: Combusted | Z25: tCO2e Emission Equivalent
B26: 2021 | C26: Camira Group, Inc | D26: Grand Rapids | E26: Scope_1 | F26: Stationary | G26: =LOOKUP(Table146135142149156163170177184191[[#This Row],[Emission Source]],Table3578[Source],Table3578[Pseudonym]) -> StationaryUS | H26: Natural Gas | I26: =LOOKUP(Table146135142149156163170177184191[[#This Row],[Emission Sub-source]],Table125[[Emission ]],Table125[Pseudonym]) -> NaturalGasUS | J26: =LOOKUP(Table146135142149156163170177184191[[#This Row],[Emission Sub-source]],Table44[Fuel Type],Table44[Unit]) -> scf | K26: 100000 | L26: scf | M26: =CONCATENATE(Table146135142149156163170177184191[[#This Row],[Unit Reported]],Table146135142149156163170177184191[[#This Row],[Unit Required]]) -> scfscf | N26: =LOOKUP(Table146135142149156163170177184191[[#This Row],[Concatenate Units]],Table43[Concatenate],Table43[Multiply By]) -> 1 | O26: =Table146135142149156163170177184191[[#This Row],[Data (Raw)]]*Table146135142149156163170177184191[[#This Row],[Unit Conversion]] -> 100000 | P26: =Table146135142149156163170177184191[[#This Row],[Unit Required]] -> scf | Q26: =LOOKUP(Table146135142149156163170177184191[[#This Row],[Emission Sub-source]],Table44[Fuel Type],Table44[CO2 Factor (kg / Unit)]) -> 0.05444 | R26: =LOOKUP(Table146135142149156163170177184191[[#This Row],[Emission Sub-source]],Table44[Fuel Type],Table44[CH4 Factor (g / unit)]) -> 0.00103 | S26: =(Table146135142149156163170177184191[[#This Row],[CH4]]/1000)*25 -> 2.575e-05 | T26: =LOOKUP(Table146135142149156163170177184191[[#This Row],[Emission Sub-source]],Table44[Fuel Type],Table44[N2O Factor (g / unit)]) -> 0.0001 | U26: =(Table146135142149156163170177184191[[#This Row],[N2O]]/1000)*298 -> 2.98e-05 | V26: =(LOOKUP(Table146135142149156163170177184191[[#This Row],[Emission Sub-source]],Table44[Fuel Type],Table44[GWP])) -> 0 | W26: =Table146135142149156163170177184191[[#This Row],[Data (Corrected)]]*(LOOKUP(Table146135142149156163170177184191[[#This Row],[Emission Sub-source]],Table44[Fuel Type],Table44[Recycled CO2 Factor])) -> 0 | X26: =Table146135142149156163170177184191[[#This Row],[Data (Corrected)]]*(LOOKUP(Table146135142149156163170177184191[[#This Row],[Emission Sub-source]],Table44[Fuel Type],Table44[Landfill CO2 Factor])) -> 0 | Y26: =Table146135142149156163170177184191[[#This Row],[Data (Corrected)]]*(LOOKUP(Table146135142149156163170177184191[[#This Row],[Emission Sub-source]],Table44[Fuel Type],Table44[Combusted CO2 Factor])) -> 0 | Z26: =((Table146135142149156163170177184191[[#This Row],[CO2]]+Table146135142149156163170177184191[[#This Row],[CH4 Corrected]]+Table146135142149156163170177184191[[#This Row],[N2O Corrected]]+Table146135142149156163170177184191[[#This Row],[GWP]]+Table146135142149156163170177184191[[#This Row],[Recycled]]+Table146135142149156163170177184191[[#This Row],[Landfill]]+Table146135142149156163170177184191[[#This Row],[Combusted]])*Table146135142149156163170177184191[[#This Row],[Data (Corrected)]])/1000 -> 5.449555

Sheet 3.3 (hidden)
B2: Greenhouse Gas Emission Analysis - Supplier Scope 1 & 2 - Energy Provider
B4: UK - DBEIS/DEFRA
B5: Reporting year | C5: Entity | D5: Location | E5: Scope | F5: Emission Source | G5: Source Pseudonym | H5: Emission Sub-source | I5: Emission Pseudonym | J5: Unit Required | K5: Data (Raw) | L5: Unit Reported | M5: Concatenate Units | N5: Unit Conversion | O5: Data (Corrected) | P5: Unit (Corrected) | Q5: CO2 | R5: CH4 | S5: CH4 Corrected | T5: N2O | U5: N2O Corrected | V5: GWP | W5: Recycled | X5: Landfill | Y5: Combusted | Z5: tCO2e Emission Equivalent
B6: 2021 | C6: Camira Fabrics Limited | D6: Mirfield | E6: Scope_1 | F6: Stationary | G6: =LOOKUP(Table146135136143150157164171178185192199[[#This Row],[Emission Source]],Table3578[Source],Table3578[Pseudonym]) -> StationaryUS | H6: Natural Gas | I6: =LOOKUP(Table146135136143150157164171178185192199[[#This Row],[Emission Sub-source]],Table125[[Emission ]],Table125[Pseudonym]) -> NaturalGasUS | J6: =LOOKUP(Table146135136143150157164171178185192199[[#This Row],[Emission Sub-source]],Table44[Fuel Type],Table44[Unit]) -> scf | K6: 100000 | L6: scf | M6: =CONCATENATE(Table146135136143150157164171178185192199[[#This Row],[Unit Reported]],Table146135136143150157164171178185192199[[#This Row],[Unit Required]]) -> scfscf | N6: =LOOKUP(Table146135136143150157164171178185192199[[#This Row],[Concatenate Units]],Table43[Concatenate],Table43[Multiply By]) -> 1 | O6: =Table146135136143150157164171178185192199[[#This Row],[Data (Raw)]]*Table146135136143150157164171178185192199[[#This Row],[Unit Conversion]] -> 100000 | P6: =Table146135136143150157164171178185192199[[#This Row],[Unit Required]] -> scf | Q6: =LOOKUP(Table146135136143150157164171178185192199[[#This Row],[Emission Sub-source]],Table44[Fuel Type],Table44[CO2 Factor (kg / Unit)]) -> 0.05444 | R6: =LOOKUP(Table146135136143150157164171178185192199[[#This Row],[Emission Sub-source]],Table44[Fuel Type],Table44[CH4 Factor (g / unit)]) -> 0.00103 | S6: =(Table146135136143150157164171178185192199[[#This Row],[CH4]]/1000)*25 -> 2.575e-05 | T6: =LOOKUP(Table146135136143150157164171178185192199[[#This Row],[Emission Sub-source]],Table44[Fuel Type],Table44[N2O Factor (g / unit)]) -> 0.0001 | U6: =(Table146135136143150157164171178185192199[[#This Row],[N2O]]/1000)*298 -> 2.98e-05 | V6: =(LOOKUP(Table146135136143150157164171178185192199[[#This Row],[Emission Sub-source]],Table44[Fuel Type],Table44[GWP])) -> 0 | W6: =Table146135136143150157164171178185192199[[#This Row],[Data (Corrected)]]*(LOOKUP(Table146135136143150157164171178185192199[[#This Row],[Emission Sub-source]],Table44[Fuel Type],Table44[Recycled CO2 Factor])) -> 0 | X6: =Table146135136143150157164171178185192199[[#This Row],[Data (Corrected)]]*(LOOKUP(Table146135136143150157164171178185192199[[#This Row],[Emission Sub-source]],Table44[Fuel Type],Table44[Landfill CO2 Factor])) -> 0 | Y6: =Table146135136143150157164171178185192199[[#This Row],[Data (Corrected)]]*(LOOKUP(Table146135136143150157164171178185192199[[#This Row],[Emission Sub-source]],Table44[Fuel Type],Table44[Combusted CO2 Factor])) -> 0 | Z6: =((Table146135136143150157164171178185192199[[#This Row],[CO2]]+Table146135136143150157164171178185192199[[#This Row],[CH4 Corrected]]+Table146135136143150157164171178185192199[[#This Row],[N2O Corrected]]+Table146135136143150157164171178185192199[[#This Row],[GWP]]+Table146135136143150157164171178185192199[[#This Row],[Recycled]]+Table146135136143150157164171178185192199[[#This Row],[Landfill]]+Table146135136143150157164171178185192199[[#This Row],[Combusted]])*Table146135136143150157164171178185192199[[#This Row],[Data (Corrected)]])/1000 -> 5.449555
B8: Reporting year | C8: Entity | D8: Location | E8: Scope | F8: Emission Source | G8: Source Pseudonym | H8: Emission Sub-source | I8: Emission Pseudonym | J8: Unit Required | K8: Data (Raw) | L8: Unit Reported | M8: Concatenate Units | N8: Unit Conversion | O8: Data (Corrected) | P8: Unit (Corrected) | Q8: CO2 | R8: CH4 | S8: CH4 Corrected | T8: N2O | U8: N2O Corrected | V8: GWP | W8: Recycled | X8: Landfill | Y8: Combusted | Z8: tCO2e Emission Equivalent
B9: 2021 | C9: Camira Fabrics Limited | D9: Meltham | E9: Scope_1 | F9: Stationary | G9: =LOOKUP(Table146135136137144151158165172179186193200[[#This Row],[Emission Source]],Table3578[Source],Table3578[Pseudonym]) -> StationaryUS | H9: Natural Gas | I9: =LOOKUP(Table146135136137144151158165172179186193200[[#This Row],[Emission Sub-source]],Table125[[Emission ]],Table125[Pseudonym]) -> NaturalGasUS | J9: =LOOKUP(Table146135136137144151158165172179186193200[[#This Row],[Emission Sub-source]],Table44[Fuel Type],Table44[Unit]) -> scf | K9: 100000 | L9: scf | M9: =CONCATENATE(Table146135136137144151158165172179186193200[[#This Row],[Unit Reported]],Table146135136137144151158165172179186193200[[#This Row],[Unit Required]]) -> scfscf | N9: =LOOKUP(Table146135136137144151158165172179186193200[[#This Row],[Concatenate Units]],Table43[Concatenate],Table43[Multiply By]) -> 1 | O9: =Table146135136137144151158165172179186193200[[#This Row],[Data (Raw)]]*Table146135136137144151158165172179186193200[[#This Row],[Unit Conversion]] -> 100000 | P9: =Table146135136137144151158165172179186193200[[#This Row],[Unit Required]] -> scf | Q9: =LOOKUP(Table146135136137144151158165172179186193200[[#This Row],[Emission Sub-source]],Table44[Fuel Type],Table44[CO2 Factor (kg / Unit)]) -> 0.05444 | R9: =LOOKUP(Table146135136137144151158165172179186193200[[#This Row],[Emission Sub-source]],Table44[Fuel Type],Table44[CH4 Factor (g / unit)]) -> 0.00103 | S9: =(Table146135136137144151158165172179186193200[[#This Row],[CH4]]/1000)*25 -> 2.575e-05 | T9: =LOOKUP(Table146135136137144151158165172179186193200[[#This Row],[Emission Sub-source]],Table44[Fuel Type],Table44[N2O Factor (g / unit)]) -> 0.0001 | U9: =(Table146135136137144151158165172179186193200[[#This Row],[N2O]]/1000)*298 -> 2.98e-05 | V9: =(LOOKUP(Table146135136137144151158165172179186193200[[#This Row],[Emission Sub-source]],Table44[Fuel Type],Table44[GWP])) -> 0 | W9: =Table146135136137144151158165172179186193200[[#This Row],[Data (Corrected)]]*(LOOKUP(Table146135136137144151158165172179186193200[[#This Row],[Emission Sub-source]],Table44[Fuel Type],Table44[Recycled CO2 Factor])) -> 0 | X9: =Table146135136137144151158165172179186193200[[#This Row],[Data (Corrected)]]*(LOOKUP(Table146135136137144151158165172179186193200[[#This Row],[Emission Sub-source]],Table44[Fuel Type],Table44[Landfill CO2 Factor])) -> 0 | Y9: =Table146135136137144151158165172179186193200[[#This Row],[Data (Corrected)]]*(LOOKUP(Table146135136137144151158165172179186193200[[#This Row],[Emission Sub-source]],Table44[Fuel Type],Table44[Combusted CO2 Factor])) -> 0 | Z9: =((Table146135136137144151158165172179186193200[[#This Row],[CO2]]+Table146135136137144151158165172179186193200[[#This Row],[CH4 Corrected]]+Table146135136137144151158165172179186193200[[#This Row],[N2O Corrected]]+Table146135136137144151158165172179186193200[[#This Row],[GWP]]+Table146135136137144151158165172179186193200[[#This Row],[Recycled]]+Table146135136137144151158165172179186193200[[#This Row],[Landfill]]+Table146135136137144151158165172179186193200[[#This Row],[Combusted]])*Table146135136137144151158165172179186193200[[#This Row],[Data (Corrected)]])/1000 -> 5.449555
B11: Reporting year | C11: Entity | D11: Location | E11: Scope | F11: Emission Source | G11: Source Pseudonym | H11: Emission Sub-source | I11: Emission Pseudonym | J11: Unit Required | K11: Data (Raw) | L11: Unit Reported | M11: Concatenate Units | N11: Unit Conversion | O11: Data (Corrected) | P11: Unit (Corrected) | Q11: CO2 | R11: CH4 | S11: CH4 Corrected | T11: N2O | U11: N2O Corrected | V11: GWP | W11: Recycled | X11: Landfill | Y11: Combusted | Z11: tCO2e Emission Equivalent
B12: 2021 | C12: Camira Fabrics Limited | D12: Nottingham | E12: Scope_1 | F12: Stationary | G12: =LOOKUP(Table146135136137138145152159166173180187194201[[#This Row],[Emission Source]],Table3578[Source],Table3578[Pseudonym]) -> StationaryUS | H12: Natural Gas | I12: =LOOKUP(Table146135136137138145152159166173180187194201[[#This Row],[Emission Sub-source]],Table125[[Emission ]],Table125[Pseudonym]) -> NaturalGasUS | J12: =LOOKUP(Table146135136137138145152159166173180187194201[[#This Row],[Emission Sub-source]],Table44[Fuel Type],Table44[Unit]) -> scf | K12: 100000 | L12: scf | M12: =CONCATENATE(Table146135136137138145152159166173180187194201[[#This Row],[Unit Reported]],Table146135136137138145152159166173180187194201[[#This Row],[Unit Required]]) -> scfscf | N12: =LOOKUP(Table146135136137138145152159166173180187194201[[#This Row],[Concatenate Units]],Table43[Concatenate],Table43[Multiply By]) -> 1 | O12: =Table146135136137138145152159166173180187194201[[#This Row],[Data (Raw)]]*Table146135136137138145152159166173180187194201[[#This Row],[Unit Conversion]] -> 100000 | P12: =Table146135136137138145152159166173180187194201[[#This Row],[Unit Required]] -> scf | Q12: =LOOKUP(Table146135136137138145152159166173180187194201[[#This Row],[Emission Sub-source]],Table44[Fuel Type],Table44[CO2 Factor (kg / Unit)]) -> 0.05444 | R12: =LOOKUP(Table146135136137138145152159166173180187194201[[#This Row],[Emission Sub-source]],Table44[Fuel Type],Table44[CH4 Factor (g / unit)]) -> 0.00103 | S12: =(Table146135136137138145152159166173180187194201[[#This Row],[CH4]]/1000)*25 -> 2.575e-05 | T12: =LOOKUP(Table146135136137138145152159166173180187194201[[#This Row],[Emission Sub-source]],Table44[Fuel Type],Table44[N2O Factor (g / unit)]) -> 0.0001 | U12: =(Table146135136137138145152159166173180187194201[[#This Row],[N2O]]/1000)*298 -> 2.98e-05 | V12: =(LOOKUP(Table146135136137138145152159166173180187194201[[#This Row],[Emission Sub-source]],Table44[Fuel Type],Table44[GWP])) -> 0 | W12: =Table146135136137138145152159166173180187194201[[#This Row],[Data (Corrected)]]*(LOOKUP(Table146135136137138145152159166173180187194201[[#This Row],[Emission Sub-source]],Table44[Fuel Type],Table44[Recycled CO2 Factor])) -> 0 | X12: =Table146135136137138145152159166173180187194201[[#This Row],[Data (Corrected)]]*(LOOKUP(Table146135136137138145152159166173180187194201[[#This Row],[Emission Sub-source]],Table44[Fuel Type],Table44[Landfill CO2 Factor])) -> 0 | Y12: =Table146135136137138145152159166173180187194201[[#This Row],[Data (Corrected)]]*(LOOKUP(Table146135136137138145152159166173180187194201[[#This Row],[Emission Sub-source]],Table44[Fuel Type],Table44[Combusted CO2 Factor])) -> 0 | Z12: =((Table146135136137138145152159166173180187194201[[#This Row],[CO2]]+Table146135136137138145152159166173180187194201[[#This Row],[CH4 Corrected]]+Table146135136137138145152159166173180187194201[[#This Row],[N2O Corrected]]+Table146135136137138145152159166173180187194201[[#This Row],[GWP]]+Table146135136137138145152159166173180187194201[[#This Row],[Recycled]]+Table146135136137138145152159166173180187194201[[#This Row],[Landfill]]+Table146135136137138145152159166173180187194201[[#This Row],[Combusted]])*Table146135136137138145152159166173180187194201[[#This Row],[Data (Corrected)]])/1000 -> 5.449555
B14: Reporting year | C14: Entity | D14: Location | E14: Scope | F14: Emission Source | G14: Source Pseudonym | H14: Emission Sub-source | I14: Emission Pseudonym | J14: Unit Required | K14: Data (Raw) | L14: Unit Reported | M14: Concatenate Units | N14: Unit Conversion | O14: Data (Corrected) | P14: Unit (Corrected) | Q14: CO2 | R14: CH4 | S14: CH4 Corrected | T14: N2O | U14: N2O Corrected | V14: GWP | W14: Recycled | X14: Landfill | Y14: Combusted | Z14: tCO2e Emission Equivalent
B15: 2021 | C15: Camira Fabrics Limited | D15: Birkby | E15: Scope_1 | F15: Stationary | G15: =LOOKUP(Table146135136137138139146153160167174181188195202[[#This Row],[Emission Source]],Table3578[Source],Table3578[Pseudonym]) -> StationaryUS | H15: Natural Gas | I15: =LOOKUP(Table146135136137138139146153160167174181188195202[[#This Row],[Emission Sub-source]],Table125[[Emission ]],Table125[Pseudonym]) -> NaturalGasUS | J15: =LOOKUP(Table146135136137138139146153160167174181188195202[[#This Row],[Emission Sub-source]],Table44[Fuel Type],Table44[Unit]) -> scf | K15: 100000 | L15: scf | M15: =CONCATENATE(Table146135136137138139146153160167174181188195202[[#This Row],[Unit Reported]],Table146135136137138139146153160167174181188195202[[#This Row],[Unit Required]]) -> scfscf | N15: =LOOKUP(Table146135136137138139146153160167174181188195202[[#This Row],[Concatenate Units]],Table43[Concatenate],Table43[Multiply By]) -> 1 | O15: =Table146135136137138139146153160167174181188195202[[#This Row],[Data (Raw)]]*Table146135136137138139146153160167174181188195202[[#This Row],[Unit Conversion]] -> 100000 | P15: =Table146135136137138139146153160167174181188195202[[#This Row],[Unit Required]] -> scf | Q15: =LOOKUP(Table146135136137138139146153160167174181188195202[[#This Row],[Emission Sub-source]],Table44[Fuel Type],Table44[CO2 Factor (kg / Unit)]) -> 0.05444 | R15: =LOOKUP(Table146135136137138139146153160167174181188195202[[#This Row],[Emission Sub-source]],Table44[Fuel Type],Table44[CH4 Factor (g / unit)]) -> 0.00103 | S15: =(Table146135136137138139146153160167174181188195202[[#This Row],[CH4]]/1000)*25 -> 2.575e-05 | T15: =LOOKUP(Table146135136137138139146153160167174181188195202[[#This Row],[Emission Sub-source]],Table44[Fuel Type],Table44[N2O Factor (g / unit)]) -> 0.0001 | U15: =(Table146135136137138139146153160167174181188195202[[#This Row],[N2O]]/1000)*298 -> 2.98e-05 | V15: =(LOOKUP(Table146135136137138139146153160167174181188195202[[#This Row],[Emission Sub-source]],Table44[Fuel Type],Table44[GWP])) -> 0 | W15: =Table146135136137138139146153160167174181188195202[[#This Row],[Data (Corrected)]]*(LOOKUP(Table146135136137138139146153160167174181188195202[[#This Row],[Emission Sub-source]],Table44[Fuel Type],Table44[Recycled CO2 Factor])) -> 0 | X15: =Table146135136137138139146153160167174181188195202[[#This Row],[Data (Corrected)]]*(LOOKUP(Table146135136137138139146153160167174181188195202[[#This Row],[Emission Sub-source]],Table44[Fuel Type],Table44[Landfill CO2 Factor])) -> 0 | Y15: =Table146135136137138139146153160167174181188195202[[#This Row],[Data (Corrected)]]*(LOOKUP(Table146135136137138139146153160167174181188195202[[#This Row],[Emission Sub-source]],Table44[Fuel Type],Table44[Combusted CO2 Factor])) -> 0 | Z15: =((Table146135136137138139146153160167174181188195202[[#This Row],[CO2]]+Table146135136137138139146153160167174181188195202[[#This Row],[CH4 Corrected]]+Table146135136137138139146153160167174181188195202[[#This Row],[N2O Corrected]]+Table146135136137138139146153160167174181188195202[[#This Row],[GWP]]+Table146135136137138139146153160167174181188195202[[#This Row],[Recycled]]+Table146135136137138139146153160167174181188195202[[#This Row],[Landfill]]+Table146135136137138139146153160167174181188195202[[#This Row],[Combusted]])*Table146135136137138139146153160167174181188195202[[#This Row],[Data (Corrected)]])/1000 -> 5.449555
B17: Reporting year | C17: Entity | D17: Location | E17: Scope | F17: Emission Source | G17: Source Pseudonym | H17: Emission Sub-source | I17: Emission Pseudonym | J17: Unit Required | K17: Data (Raw) | L17: Unit Reported | M17: Concatenate Units | N17: Unit Conversion | O17: Data (Corrected) | P17: Unit (Corrected) | Q17: CO2 | R17: CH4 | S17: CH4 Corrected | T17: N2O | U17: N2O Corrected | V17: GWP | W17: Recycled | X17: Landfill | Y17: Combusted | Z17: tCO2e Emission Equivalent
B18: 2021 | C18: Camira Fabrics Limited | D18: Holmfirth | E18: Scope_1 | F18: Stationary | G18: =LOOKUP(Table146135136137138140147154161168175182189196203[[#This Row],[Emission Source]],Table3578[Source],Table3578[Pseudonym]) -> StationaryUS | H18: Natural Gas | I18: =LOOKUP(Table146135136137138140147154161168175182189196203[[#This Row],[Emission Sub-source]],Table125[[Emission ]],Table125[Pseudonym]) -> NaturalGasUS | J18: =LOOKUP(Table146135136137138140147154161168175182189196203[[#This Row],[Emission Sub-source]],Table44[Fuel Type],Table44[Unit]) -> scf | K18: 100000 | L18: scf | M18: =CONCATENATE(Table146135136137138140147154161168175182189196203[[#This Row],[Unit Reported]],Table146135136137138140147154161168175182189196203[[#This Row],[Unit Required]]) -> scfscf | N18: =LOOKUP(Table146135136137138140147154161168175182189196203[[#This Row],[Concatenate Units]],Table43[Concatenate],Table43[Multiply By]) -> 1 | O18: =Table146135136137138140147154161168175182189196203[[#This Row],[Data (Raw)]]*Table146135136137138140147154161168175182189196203[[#This Row],[Unit Conversion]] -> 100000 | P18: =Table146135136137138140147154161168175182189196203[[#This Row],[Unit Required]] -> scf | Q18: =LOOKUP(Table146135136137138140147154161168175182189196203[[#This Row],[Emission Sub-source]],Table44[Fuel Type],Table44[CO2 Factor (kg / Unit)]) -> 0.05444 | R18: =LOOKUP(Table146135136137138140147154161168175182189196203[[#This Row],[Emission Sub-source]],Table44[Fuel Type],Table44[CH4 Factor (g / unit)]) -> 0.00103 | S18: =(Table146135136137138140147154161168175182189196203[[#This Row],[CH4]]/1000)*25 -> 2.575e-05 | T18: =LOOKUP(Table146135136137138140147154161168175182189196203[[#This Row],[Emission Sub-source]],Table44[Fuel Type],Table44[N2O Factor (g / unit)]) -> 0.0001 | U18: =(Table146135136137138140147154161168175182189196203[[#This Row],[N2O]]/1000)*298 -> 2.98e-05 | V18: =(LOOKUP(Table146135136137138140147154161168175182189196203[[#This Row],[Emission Sub-source]],Table44[Fuel Type],Table44[GWP])) -> 0 | W18: =Table146135136137138140147154161168175182189196203[[#This Row],[Data (Corrected)]]*(LOOKUP(Table146135136137138140147154161168175182189196203[[#This Row],[Emission Sub-source]],Table44[Fuel Type],Table44[Recycled CO2 Factor])) -> 0 | X18: =Table146135136137138140147154161168175182189196203[[#This Row],[Data (Corrected)]]*(LOOKUP(Table146135136137138140147154161168175182189196203[[#This Row],[Emission Sub-source]],Table44[Fuel Type],Table44[Landfill CO2 Factor])) -> 0 | Y18: =Table146135136137138140147154161168175182189196203[[#This Row],[Data (Corrected)]]*(LOOKUP(Table146135136137138140147154161168175182189196203[[#This Row],[Emission Sub-source]],Table44[Fuel Type],Table44[Combusted CO2 Factor])) -> 0 | Z18: =((Table146135136137138140147154161168175182189196203[[#This Row],[CO2]]+Table146135136137138140147154161168175182189196203[[#This Row],[CH4 Corrected]]+Table146135136137138140147154161168175182189196203[[#This Row],[N2O Corrected]]+Table146135136137138140147154161168175182189196203[[#This Row],[GWP]]+Table146135136137138140147154161168175182189196203[[#This Row],[Recycled]]+Table146135136137138140147154161168175182189196203[[#This Row],[Landfill]]+Table146135136137138140147154161168175182189196203[[#This Row],[Combusted]])*Table146135136137138140147154161168175182189196203[[#This Row],[Data (Corrected)]])/1000 -> 5.449555
B20: EUR - ??
B21: Reporting year | C21: Entity | D21: Location | E21: Scope | F21: Emission Source | G21: Source Pseudonym | H21: Emission Sub-source | I21: Emission Pseudonym | J21: Unit Required | K21: Data (Raw) | L21: Unit Reported | M21: Concatenate Units | N21: Unit Conversion | O21: Data (Corrected) | P21: Unit (Corrected) | Q21: CO2 | R21: CH4 | S21: CH4 Corrected | T21: N2O | U21: N2O Corrected | V21: GWP | W21: Recycled | X21: Landfill | Y21: Combusted | Z21: tCO2e Emission Equivalent
B22: 2021 | C22: UAB Camira Fabrics | D22: Lithuania | E22: Scope_1 | F22: Stationary | G22: =LOOKUP(Table146135136137138140141148155162169176183190197204[[#This Row],[Emission Source]],Table3578[Source],Table3578[Pseudonym]) -> StationaryUS | H22: Natural Gas | I22: =LOOKUP(Table146135136137138140141148155162169176183190197204[[#This Row],[Emission Sub-source]],Table125[[Emission ]],Table125[Pseudonym]) -> NaturalGasUS | J22: =LOOKUP(Table146135136137138140141148155162169176183190197204[[#This Row],[Emission Sub-source]],Table44[Fuel Type],Table44[Unit]) -> scf | K22: 100000 | L22: scf | M22: =CONCATENATE(Table146135136137138140141148155162169176183190197204[[#This Row],[Unit Reported]],Table146135136137138140141148155162169176183190197204[[#This Row],[Unit Required]]) -> scfscf | N22: =LOOKUP(Table146135136137138140141148155162169176183190197204[[#This Row],[Concatenate Units]],Table43[Concatenate],Table43[Multiply By]) -> 1 | O22: =Table146135136137138140141148155162169176183190197204[[#This Row],[Data (Raw)]]*Table146135136137138140141148155162169176183190197204[[#This Row],[Unit Conversion]] -> 100000 | P22: =Table146135136137138140141148155162169176183190197204[[#This Row],[Unit Required]] -> scf | Q22: =LOOKUP(Table146135136137138140141148155162169176183190197204[[#This Row],[Emission Sub-source]],Table44[Fuel Type],Table44[CO2 Factor (kg / Unit)]) -> 0.05444 | R22: =LOOKUP(Table146135136137138140141148155162169176183190197204[[#This Row],[Emission Sub-source]],Table44[Fuel Type],Table44[CH4 Factor (g / unit)]) -> 0.00103 | S22: =(Table146135136137138140141148155162169176183190197204[[#This Row],[CH4]]/1000)*25 -> 2.575e-05 | T22: =LOOKUP(Table146135136137138140141148155162169176183190197204[[#This Row],[Emission Sub-source]],Table44[Fuel Type],Table44[N2O Factor (g / unit)]) -> 0.0001 | U22: =(Table146135136137138140141148155162169176183190197204[[#This Row],[N2O]]/1000)*298 -> 2.98e-05 | V22: =(LOOKUP(Table146135136137138140141148155162169176183190197204[[#This Row],[Emission Sub-source]],Table44[Fuel Type],Table44[GWP])) -> 0 | W22: =Table146135136137138140141148155162169176183190197204[[#This Row],[Data (Corrected)]]*(LOOKUP(Table146135136137138140141148155162169176183190197204[[#This Row],[Emission Sub-source]],Table44[Fuel Type],Table44[Recycled CO2 Factor])) -> 0 | X22: =Table146135136137138140141148155162169176183190197204[[#This Row],[Data (Corrected)]]*(LOOKUP(Table146135136137138140141148155162169176183190197204[[#This Row],[Emission Sub-source]],Table44[Fuel Type],Table44[Landfill CO2 Factor])) -> 0 | Y22: =Table146135136137138140141148155162169176183190197204[[#This Row],[Data (Corrected)]]*(LOOKUP(Table146135136137138140141148155162169176183190197204[[#This Row],[Emission Sub-source]],Table44[Fuel Type],Table44[Combusted CO2 Factor])) -> 0 | Z22: =((Table146135136137138140141148155162169176183190197204[[#This Row],[CO2]]+Table146135136137138140141148155162169176183190197204[[#This Row],[CH4 Corrected]]+Table146135136137138140141148155162169176183190197204[[#This Row],[N2O Corrected]]+Table146135136137138140141148155162169176183190197204[[#This Row],[GWP]]+Table146135136137138140141148155162169176183190197204[[#This Row],[Recycled]]+Table146135136137138140141148155162169176183190197204[[#This Row],[Landfill]]+Table146135136137138140141148155162169176183190197204[[#This Row],[Combusted]])*Table146135136137138140141148155162169176183190197204[[#This Row],[Data (Corrected)]])/1000 -> 5.449555
B24: US - EPA
B25: Reporting year | C25: Entity | D25: Location | E25: Scope | F25: Emission Source | G25: Source Pseudonym | H25: Emission Sub-source | I25: Emission Pseudonym | J25: Unit Required | K25: Data (Raw) | L25: Unit Reported | M25: Concatenate Units | N25: Unit Conversion | O25: Data (Corrected) | P25: Unit (Corrected) | Q25: CO2 | R25: CH4 | S25: CH4 Corrected | T25: N2O | U25: N2O Corrected | V25: GWP | W25: Recycled | X25: Landfill | Y25: Combusted | Z25: tCO2e Emission Equivalent
B26: 2021 | C26: Camira Group, Inc | D26: Grand Rapids | E26: Scope_1 | F26: Stationary | G26: =LOOKUP(Table146135142149156163170177184191198[[#This Row],[Emission Source]],Table3578[Source],Table3578[Pseudonym]) -> StationaryUS | H26: Natural Gas | I26: =LOOKUP(Table146135142149156163170177184191198[[#This Row],[Emission Sub-source]],Table125[[Emission ]],Table125[Pseudonym]) -> NaturalGasUS | J26: =LOOKUP(Table146135142149156163170177184191198[[#This Row],[Emission Sub-source]],Table44[Fuel Type],Table44[Unit]) -> scf | K26: 100000 | L26: scf | M26: =CONCATENATE(Table146135142149156163170177184191198[[#This Row],[Unit Reported]],Table146135142149156163170177184191198[[#This Row],[Unit Required]]) -> scfscf | N26: =LOOKUP(Table146135142149156163170177184191198[[#This Row],[Concatenate Units]],Table43[Concatenate],Table43[Multiply By]) -> 1 | O26: =Table146135142149156163170177184191198[[#This Row],[Data (Raw)]]*Table146135142149156163170177184191198[[#This Row],[Unit Conversion]] -> 100000 | P26: =Table146135142149156163170177184191198[[#This Row],[Unit Required]] -> scf | Q26: =LOOKUP(Table146135142149156163170177184191198[[#This Row],[Emission Sub-source]],Table44[Fuel Type],Table44[CO2 Factor (kg / Unit)]) -> 0.05444 | R26: =LOOKUP(Table146135142149156163170177184191198[[#This Row],[Emission Sub-source]],Table44[Fuel Type],Table44[CH4 Factor (g / unit)]) -> 0.00103 | S26: =(Table146135142149156163170177184191198[[#This Row],[CH4]]/1000)*25 -> 2.575e-05 | T26: =LOOKUP(Table146135142149156163170177184191198[[#This Row],[Emission Sub-source]],Table44[Fuel Type],Table44[N2O Factor (g / unit)]) -> 0.0001 | U26: =(Table146135142149156163170177184191198[[#This Row],[N2O]]/1000)*298 -> 2.98e-05 | V26: =(LOOKUP(Table146135142149156163170177184191198[[#This Row],[Emission Sub-source]],Table44[Fuel Type],Table44[GWP])) -> 0 | W26: =Table146135142149156163170177184191198[[#This Row],[Data (Corrected)]]*(LOOKUP(Table146135142149156163170177184191198[[#This Row],[Emission Sub-source]],Table44[Fuel Type],Table44[Recycled CO2 Factor])) -> 0 | X26: =Table146135142149156163170177184191198[[#This Row],[Data (Corrected)]]*(LOOKUP(Table146135142149156163170177184191198[[#This Row],[Emission Sub-source]],Table44[Fuel Type],Table44[Landfill CO2 Factor])) -> 0 | Y26: =Table146135142149156163170177184191198[[#This Row],[Data (Corrected)]]*(LOOKUP(Table146135142149156163170177184191198[[#This Row],[Emission Sub-source]],Table44[Fuel Type],Table44[Combusted CO2 Factor])) -> 0 | Z26: =((Table146135142149156163170177184191198[[#This Row],[CO2]]+Table146135142149156163170177184191198[[#This Row],[CH4 Corrected]]+Table146135142149156163170177184191198[[#This Row],[N2O Corrected]]+Table146135142149156163170177184191198[[#This Row],[GWP]]+Table146135142149156163170177184191198[[#This Row],[Recycled]]+Table146135142149156163170177184191198[[#This Row],[Landfill]]+Table146135142149156163170177184191198[[#This Row],[Combusted]])*Table146135142149156163170177184191198[[#This Row],[Data (Corrected)]])/1000 -> 5.449555

Sheet 3.4 (hidden)
B2: Greenhouse Gas Emission Analysis - Supplier Scope 1 & 2 - Transportation Provider
B4: UK - DBEIS/DEFRA
B5: Reporting year | C5: Entity | D5: Location | E5: Scope | F5: Emission Source | G5: Source Pseudonym | H5: Emission Sub-source | I5: Emission Pseudonym | J5: Unit Required | K5: Data (Raw) | L5: Unit Reported | M5: Concatenate Units | N5: Unit Conversion | O5: Data (Corrected) | P5: Unit (Corrected) | Q5: CO2 | R5: CH4 | S5: CH4 Corrected | T5: N2O | U5: N2O Corrected | V5: GWP | W5: Recycled | X5: Landfill | Y5: Combusted | Z5: tCO2e Emission Equivalent
B6: 2021 | C6: Camira Fabrics Limited | D6: Mirfield | E6: Scope_1 | F6: Stationary | G6: =LOOKUP(Table146135136143150157164171178185192199206[[#This Row],[Emission Source]],Table3578[Source],Table3578[Pseudonym]) -> StationaryUS | H6: Natural Gas | I6: =LOOKUP(Table146135136143150157164171178185192199206[[#This Row],[Emission Sub-source]],Table125[[Emission ]],Table125[Pseudonym]) -> NaturalGasUS | J6: =LOOKUP(Table146135136143150157164171178185192199206[[#This Row],[Emission Sub-source]],Table44[Fuel Type],Table44[Unit]) -> scf | K6: 100000 | L6: scf | M6: =CONCATENATE(Table146135136143150157164171178185192199206[[#This Row],[Unit Reported]],Table146135136143150157164171178185192199206[[#This Row],[Unit Required]]) -> scfscf | N6: =LOOKUP(Table146135136143150157164171178185192199206[[#This Row],[Concatenate Units]],Table43[Concatenate],Table43[Multiply By]) -> 1 | O6: =Table146135136143150157164171178185192199206[[#This Row],[Data (Raw)]]*Table146135136143150157164171178185192199206[[#This Row],[Unit Conversion]] -> 100000 | P6: =Table146135136143150157164171178185192199206[[#This Row],[Unit Required]] -> scf | Q6: =LOOKUP(Table146135136143150157164171178185192199206[[#This Row],[Emission Sub-source]],Table44[Fuel Type],Table44[CO2 Factor (kg / Unit)]) -> 0.05444 | R6: =LOOKUP(Table146135136143150157164171178185192199206[[#This Row],[Emission Sub-source]],Table44[Fuel Type],Table44[CH4 Factor (g / unit)]) -> 0.00103 | S6: =(Table146135136143150157164171178185192199206[[#This Row],[CH4]]/1000)*25 -> 2.575e-05 | T6: =LOOKUP(Table146135136143150157164171178185192199206[[#This Row],[Emission Sub-source]],Table44[Fuel Type],Table44[N2O Factor (g / unit)]) -> 0.0001 | U6: =(Table146135136143150157164171178185192199206[[#This Row],[N2O]]/1000)*298 -> 2.98e-05 | V6: =(LOOKUP(Table146135136143150157164171178185192199206[[#This Row],[Emission Sub-source]],Table44[Fuel Type],Table44[GWP])) -> 0 | W6: =Table146135136143150157164171178185192199206[[#This Row],[Data (Corrected)]]*(LOOKUP(Table146135136143150157164171178185192199206[[#This Row],[Emission Sub-source]],Table44[Fuel Type],Table44[Recycled CO2 Factor])) -> 0 | X6: =Table146135136143150157164171178185192199206[[#This Row],[Data (Corrected)]]*(LOOKUP(Table146135136143150157164171178185192199206[[#This Row],[Emission Sub-source]],Table44[Fuel Type],Table44[Landfill CO2 Factor])) -> 0 | Y6: =Table146135136143150157164171178185192199206[[#This Row],[Data (Corrected)]]*(LOOKUP(Table146135136143150157164171178185192199206[[#This Row],[Emission Sub-source]],Table44[Fuel Type],Table44[Combusted CO2 Factor])) -> 0 | Z6: =((Table146135136143150157164171178185192199206[[#This Row],[CO2]]+Table146135136143150157164171178185192199206[[#This Row],[CH4 Corrected]]+Table146135136143150157164171178185192199206[[#This Row],[N2O Corrected]]+Table146135136143150157164171178185192199206[[#This Row],[GWP]]+Table146135136143150157164171178185192199206[[#This Row],[Recycled]]+Table146135136143150157164171178185192199206[[#This Row],[Landfill]]+Table146135136143150157164171178185192199206[[#This Row],[Combusted]])*Table146135136143150157164171178185192199206[[#This Row],[Data (Corrected)]])/1000 -> 5.449555
B8: Reporting year | C8: Entity | D8: Location | E8: Scope | F8: Emission Source | G8: Source Pseudonym | H8: Emission Sub-source | I8: Emission Pseudonym | J8: Unit Required | K8: Data (Raw) | L8: Unit Reported | M8: Concatenate Units | N8: Unit Conversion | O8: Data (Corrected) | P8: Unit (Corrected) | Q8: CO2 | R8: CH4 | S8: CH4 Corrected | T8: N2O | U8: N2O Corrected | V8: GWP | W8: Recycled | X8: Landfill | Y8: Combusted | Z8: tCO2e Emission Equivalent
B9: 2021 | C9: Camira Fabrics Limited | D9: Meltham | E9: Scope_1 | F9: Stationary | G9: =LOOKUP(Table146135136137144151158165172179186193200207[[#This Row],[Emission Source]],Table3578[Source],Table3578[Pseudonym]) -> StationaryUS | H9: Natural Gas | I9: =LOOKUP(Table146135136137144151158165172179186193200207[[#This Row],[Emission Sub-source]],Table125[[Emission ]],Table125[Pseudonym]) -> NaturalGasUS | J9: =LOOKUP(Table146135136137144151158165172179186193200207[[#This Row],[Emission Sub-source]],Table44[Fuel Type],Table44[Unit]) -> scf | K9: 100000 | L9: scf | M9: =CONCATENATE(Table146135136137144151158165172179186193200207[[#This Row],[Unit Reported]],Table146135136137144151158165172179186193200207[[#This Row],[Unit Required]]) -> scfscf | N9: =LOOKUP(Table146135136137144151158165172179186193200207[[#This Row],[Concatenate Units]],Table43[Concatenate],Table43[Multiply By]) -> 1 | O9: =Table146135136137144151158165172179186193200207[[#This Row],[Data (Raw)]]*Table146135136137144151158165172179186193200207[[#This Row],[Unit Conversion]] -> 100000 | P9: =Table146135136137144151158165172179186193200207[[#This Row],[Unit Required]] -> scf | Q9: =LOOKUP(Table146135136137144151158165172179186193200207[[#This Row],[Emission Sub-source]],Table44[Fuel Type],Table44[CO2 Factor (kg / Unit)]) -> 0.05444 | R9: =LOOKUP(Table146135136137144151158165172179186193200207[[#This Row],[Emission Sub-source]],Table44[Fuel Type],Table44[CH4 Factor (g / unit)]) -> 0.00103 | S9: =(Table146135136137144151158165172179186193200207[[#This Row],[CH4]]/1000)*25 -> 2.575e-05 | T9: =LOOKUP(Table146135136137144151158165172179186193200207[[#This Row],[Emission Sub-source]],Table44[Fuel Type],Table44[N2O Factor (g / unit)]) -> 0.0001 | U9: =(Table146135136137144151158165172179186193200207[[#This Row],[N2O]]/1000)*298 -> 2.98e-05 | V9: =(LOOKUP(Table146135136137144151158165172179186193200207[[#This Row],[Emission Sub-source]],Table44[Fuel Type],Table44[GWP])) -> 0 | W9: =Table146135136137144151158165172179186193200207[[#This Row],[Data (Corrected)]]*(LOOKUP(Table146135136137144151158165172179186193200207[[#This Row],[Emission Sub-source]],Table44[Fuel Type],Table44[Recycled CO2 Factor])) -> 0 | X9: =Table146135136137144151158165172179186193200207[[#This Row],[Data (Corrected)]]*(LOOKUP(Table146135136137144151158165172179186193200207[[#This Row],[Emission Sub-source]],Table44[Fuel Type],Table44[Landfill CO2 Factor])) -> 0 | Y9: =Table146135136137144151158165172179186193200207[[#This Row],[Data (Corrected)]]*(LOOKUP(Table146135136137144151158165172179186193200207[[#This Row],[Emission Sub-source]],Table44[Fuel Type],Table44[Combusted CO2 Factor])) -> 0 | Z9: =((Table146135136137144151158165172179186193200207[[#This Row],[CO2]]+Table146135136137144151158165172179186193200207[[#This Row],[CH4 Corrected]]+Table146135136137144151158165172179186193200207[[#This Row],[N2O Corrected]]+Table146135136137144151158165172179186193200207[[#This Row],[GWP]]+Table146135136137144151158165172179186193200207[[#This Row],[Recycled]]+Table146135136137144151158165172179186193200207[[#This Row],[Landfill]]+Table146135136137144151158165172179186193200207[[#This Row],[Combusted]])*Table146135136137144151158165172179186193200207[[#This Row],[Data (Corrected)]])/1000 -> 5.449555
B11: Reporting year | C11: Entity | D11: Location | E11: Scope | F11: Emission Source | G11: Source Pseudonym | H11: Emission Sub-source | I11: Emission Pseudonym | J11: Unit Required | K11: Data (Raw) | L11: Unit Reported | M11: Concatenate Units | N11: Unit Conversion | O11: Data (Corrected) | P11: Unit (Corrected) | Q11: CO2 | R11: CH4 | S11: CH4 Corrected | T11: N2O | U11: N2O Corrected | V11: GWP | W11: Recycled | X11: Landfill | Y11: Combusted | Z11: tCO2e Emission Equivalent
B12: 2021 | C12: Camira Fabrics Limited | D12: Nottingham | E12: Scope_1 | F12: Stationary | G12: =LOOKUP(Table146135136137138145152159166173180187194201208[[#This Row],[Emission Source]],Table3578[Source],Table3578[Pseudonym]) -> StationaryUS | H12: Natural Gas | I12: =LOOKUP(Table146135136137138145152159166173180187194201208[[#This Row],[Emission Sub-source]],Table125[[Emission ]],Table125[Pseudonym]) -> NaturalGasUS | J12: =LOOKUP(Table146135136137138145152159166173180187194201208[[#This Row],[Emission Sub-source]],Table44[Fuel Type],Table44[Unit]) -> scf | K12: 100000 | L12: scf | M12: =CONCATENATE(Table146135136137138145152159166173180187194201208[[#This Row],[Unit Reported]],Table146135136137138145152159166173180187194201208[[#This Row],[Unit Required]]) -> scfscf | N12: =LOOKUP(Table146135136137138145152159166173180187194201208[[#This Row],[Concatenate Units]],Table43[Concatenate],Table43[Multiply By]) -> 1 | O12: =Table146135136137138145152159166173180187194201208[[#This Row],[Data (Raw)]]*Table146135136137138145152159166173180187194201208[[#This Row],[Unit Conversion]] -> 100000 | P12: =Table146135136137138145152159166173180187194201208[[#This Row],[Unit Required]] -> scf | Q12: =LOOKUP(Table146135136137138145152159166173180187194201208[[#This Row],[Emission Sub-source]],Table44[Fuel Type],Table44[CO2 Factor (kg / Unit)]) -> 0.05444 | R12: =LOOKUP(Table146135136137138145152159166173180187194201208[[#This Row],[Emission Sub-source]],Table44[Fuel Type],Table44[CH4 Factor (g / unit)]) -> 0.00103 | S12: =(Table146135136137138145152159166173180187194201208[[#This Row],[CH4]]/1000)*25 -> 2.575e-05 | T12: =LOOKUP(Table146135136137138145152159166173180187194201208[[#This Row],[Emission Sub-source]],Table44[Fuel Type],Table44[N2O Factor (g / unit)]) -> 0.0001 | U12: =(Table146135136137138145152159166173180187194201208[[#This Row],[N2O]]/1000)*298 -> 2.98e-05 | V12: =(LOOKUP(Table146135136137138145152159166173180187194201208[[#This Row],[Emission Sub-source]],Table44[Fuel Type],Table44[GWP])) -> 0 | W12: =Table146135136137138145152159166173180187194201208[[#This Row],[Data (Corrected)]]*(LOOKUP(Table146135136137138145152159166173180187194201208[[#This Row],[Emission Sub-source]],Table44[Fuel Type],Table44[Recycled CO2 Factor])) -> 0 | X12: =Table146135136137138145152159166173180187194201208[[#This Row],[Data (Corrected)]]*(LOOKUP(Table146135136137138145152159166173180187194201208[[#This Row],[Emission Sub-source]],Table44[Fuel Type],Table44[Landfill CO2 Factor])) -> 0 | Y12: =Table146135136137138145152159166173180187194201208[[#This Row],[Data (Corrected)]]*(LOOKUP(Table146135136137138145152159166173180187194201208[[#This Row],[Emission Sub-source]],Table44[Fuel Type],Table44[Combusted CO2 Factor])) -> 0 | Z12: =((Table146135136137138145152159166173180187194201208[[#This Row],[CO2]]+Table146135136137138145152159166173180187194201208[[#This Row],[CH4 Corrected]]+Table146135136137138145152159166173180187194201208[[#This Row],[N2O Corrected]]+Table146135136137138145152159166173180187194201208[[#This Row],[GWP]]+Table146135136137138145152159166173180187194201208[[#This Row],[Recycled]]+Table146135136137138145152159166173180187194201208[[#This Row],[Landfill]]+Table146135136137138145152159166173180187194201208[[#This Row],[Combusted]])*Table146135136137138145152159166173180187194201208[[#This Row],[Data (Corrected)]])/1000 -> 5.449555
B14: Reporting year | C14: Entity | D14: Location | E14: Scope | F14: Emission Source | G14: Source Pseudonym | H14: Emission Sub-source | I14: Emission Pseudonym | J14: Unit Required | K14: Data (Raw) | L14: Unit Reported | M14: Concatenate Units | N14: Unit Conversion | O14: Data (Corrected) | P14: Unit (Corrected) | Q14: CO2 | R14: CH4 | S14: CH4 Corrected | T14: N2O | U14: N2O Corrected | V14: GWP | W14: Recycled | X14: Landfill | Y14: Combusted | Z14: tCO2e Emission Equivalent
B15: 2021 | C15: Camira Fabrics Limited | D15: Birkby | E15: Scope_1 | F15: Stationary | G15: =LOOKUP(Table146135136137138139146153160167174181188195202209[[#This Row],[Emission Source]],Table3578[Source],Table3578[Pseudonym]) -> StationaryUS | H15: Natural Gas | I15: =LOOKUP(Table146135136137138139146153160167174181188195202209[[#This Row],[Emission Sub-source]],Table125[[Emission ]],Table125[Pseudonym]) -> NaturalGasUS | J15: =LOOKUP(Table146135136137138139146153160167174181188195202209[[#This Row],[Emission Sub-source]],Table44[Fuel Type],Table44[Unit]) -> scf | K15: 100000 | L15: scf | M15: =CONCATENATE(Table146135136137138139146153160167174181188195202209[[#This Row],[Unit Reported]],Table146135136137138139146153160167174181188195202209[[#This Row],[Unit Required]]) -> scfscf | N15: =LOOKUP(Table146135136137138139146153160167174181188195202209[[#This Row],[Concatenate Units]],Table43[Concatenate],Table43[Multiply By]) -> 1 | O15: =Table146135136137138139146153160167174181188195202209[[#This Row],[Data (Raw)]]*Table146135136137138139146153160167174181188195202209[[#This Row],[Unit Conversion]] -> 100000 | P15: =Table146135136137138139146153160167174181188195202209[[#This Row],[Unit Required]] -> scf | Q15: =LOOKUP(Table146135136137138139146153160167174181188195202209[[#This Row],[Emission Sub-source]],Table44[Fuel Type],Table44[CO2 Factor (kg / Unit)]) -> 0.05444 | R15: =LOOKUP(Table146135136137138139146153160167174181188195202209[[#This Row],[Emission Sub-source]],Table44[Fuel Type],Table44[CH4 Factor (g / unit)]) -> 0.00103 | S15: =(Table146135136137138139146153160167174181188195202209[[#This Row],[CH4]]/1000)*25 -> 2.575e-05 | T15: =LOOKUP(Table146135136137138139146153160167174181188195202209[[#This Row],[Emission Sub-source]],Table44[Fuel Type],Table44[N2O Factor (g / unit)]) -> 0.0001 | U15: =(Table146135136137138139146153160167174181188195202209[[#This Row],[N2O]]/1000)*298 -> 2.98e-05 | V15: =(LOOKUP(Table146135136137138139146153160167174181188195202209[[#This Row],[Emission Sub-source]],Table44[Fuel Type],Table44[GWP])) -> 0 | W15: =Table146135136137138139146153160167174181188195202209[[#This Row],[Data (Corrected)]]*(LOOKUP(Table146135136137138139146153160167174181188195202209[[#This Row],[Emission Sub-source]],Table44[Fuel Type],Table44[Recycled CO2 Factor])) -> 0 | X15: =Table146135136137138139146153160167174181188195202209[[#This Row],[Data (Corrected)]]*(LOOKUP(Table146135136137138139146153160167174181188195202209[[#This Row],[Emission Sub-source]],Table44[Fuel Type],Table44[Landfill CO2 Factor])) -> 0 | Y15: =Table146135136137138139146153160167174181188195202209[[#This Row],[Data (Corrected)]]*(LOOKUP(Table146135136137138139146153160167174181188195202209[[#This Row],[Emission Sub-source]],Table44[Fuel Type],Table44[Combusted CO2 Factor])) -> 0 | Z15: =((Table146135136137138139146153160167174181188195202209[[#This Row],[CO2]]+Table146135136137138139146153160167174181188195202209[[#This Row],[CH4 Corrected]]+Table146135136137138139146153160167174181188195202209[[#This Row],[N2O Corrected]]+Table146135136137138139146153160167174181188195202209[[#This Row],[GWP]]+Table146135136137138139146153160167174181188195202209[[#This Row],[Recycled]]+Table146135136137138139146153160167174181188195202209[[#This Row],[Landfill]]+Table146135136137138139146153160167174181188195202209[[#This Row],[Combusted]])*Table146135136137138139146153160167174181188195202209[[#This Row],[Data (Corrected)]])/1000 -> 5.449555
B17: Reporting year | C17: Entity | D17: Location | E17: Scope | F17: Emission Source | G17: Source Pseudonym | H17: Emission Sub-source | I17: Emission Pseudonym | J17: Unit Required | K17: Data (Raw) | L17: Unit Reported | M17: Concatenate Units | N17: Unit Conversion | O17: Data (Corrected) | P17: Unit (Corrected) | Q17: CO2 | R17: CH4 | S17: CH4 Corrected | T17: N2O | U17: N2O Corrected | V17: GWP | W17: Recycled | X17: Landfill | Y17: Combusted | Z17: tCO2e Emission Equivalent
B18: 2021 | C18: Camira Fabrics Limited | D18: Holmfirth | E18: Scope_1 | F18: Stationary | G18: =LOOKUP(Table146135136137138140147154161168175182189196203210[[#This Row],[Emission Source]],Table3578[Source],Table3578[Pseudonym]) -> StationaryUS | H18: Natural Gas | I18: =LOOKUP(Table146135136137138140147154161168175182189196203210[[#This Row],[Emission Sub-source]],Table125[[Emission ]],Table125[Pseudonym]) -> NaturalGasUS | J18: =LOOKUP(Table146135136137138140147154161168175182189196203210[[#This Row],[Emission Sub-source]],Table44[Fuel Type],Table44[Unit]) -> scf | K18: 100000 | L18: scf | M18: =CONCATENATE(Table146135136137138140147154161168175182189196203210[[#This Row],[Unit Reported]],Table146135136137138140147154161168175182189196203210[[#This Row],[Unit Required]]) -> scfscf | N18: =LOOKUP(Table146135136137138140147154161168175182189196203210[[#This Row],[Concatenate Units]],Table43[Concatenate],Table43[Multiply By]) -> 1 | O18: =Table146135136137138140147154161168175182189196203210[[#This Row],[Data (Raw)]]*Table146135136137138140147154161168175182189196203210[[#This Row],[Unit Conversion]] -> 100000 | P18: =Table146135136137138140147154161168175182189196203210[[#This Row],[Unit Required]] -> scf | Q18: =LOOKUP(Table146135136137138140147154161168175182189196203210[[#This Row],[Emission Sub-source]],Table44[Fuel Type],Table44[CO2 Factor (kg / Unit)]) -> 0.05444 | R18: =LOOKUP(Table146135136137138140147154161168175182189196203210[[#This Row],[Emission Sub-source]],Table44[Fuel Type],Table44[CH4 Factor (g / unit)]) -> 0.00103 | S18: =(Table146135136137138140147154161168175182189196203210[[#This Row],[CH4]]/1000)*25 -> 2.575e-05 | T18: =LOOKUP(Table146135136137138140147154161168175182189196203210[[#This Row],[Emission Sub-source]],Table44[Fuel Type],Table44[N2O Factor (g / unit)]) -> 0.0001 | U18: =(Table146135136137138140147154161168175182189196203210[[#This Row],[N2O]]/1000)*298 -> 2.98e-05 | V18: =(LOOKUP(Table146135136137138140147154161168175182189196203210[[#This Row],[Emission Sub-source]],Table44[Fuel Type],Table44[GWP])) -> 0 | W18: =Table146135136137138140147154161168175182189196203210[[#This Row],[Data (Corrected)]]*(LOOKUP(Table146135136137138140147154161168175182189196203210[[#This Row],[Emission Sub-source]],Table44[Fuel Type],Table44[Recycled CO2 Factor])) -> 0 | X18: =Table146135136137138140147154161168175182189196203210[[#This Row],[Data (Corrected)]]*(LOOKUP(Table146135136137138140147154161168175182189196203210[[#This Row],[Emission Sub-source]],Table44[Fuel Type],Table44[Landfill CO2 Factor])) -> 0 | Y18: =Table146135136137138140147154161168175182189196203210[[#This Row],[Data (Corrected)]]*(LOOKUP(Table146135136137138140147154161168175182189196203210[[#This Row],[Emission Sub-source]],Table44[Fuel Type],Table44[Combusted CO2 Factor])) -> 0 | Z18: =((Table146135136137138140147154161168175182189196203210[[#This Row],[CO2]]+Table146135136137138140147154161168175182189196203210[[#This Row],[CH4 Corrected]]+Table146135136137138140147154161168175182189196203210[[#This Row],[N2O Corrected]]+Table146135136137138140147154161168175182189196203210[[#This Row],[GWP]]+Table146135136137138140147154161168175182189196203210[[#This Row],[Recycled]]+Table146135136137138140147154161168175182189196203210[[#This Row],[Landfill]]+Table146135136137138140147154161168175182189196203210[[#This Row],[Combusted]])*Table146135136137138140147154161168175182189196203210[[#This Row],[Data (Corrected)]])/1000 -> 5.449555
B20: EUR - ??
B21: Reporting year | C21: Entity | D21: Location | E21: Scope | F21: Emission Source | G21: Source Pseudonym | H21: Emission Sub-source | I21: Emission Pseudonym | J21: Unit Required | K21: Data (Raw) | L21: Unit Reported | M21: Concatenate Units | N21: Unit Conversion | O21: Data (Corrected) | P21: Unit (Corrected) | Q21: CO2 | R21: CH4 | S21: CH4 Corrected | T21: N2O | U21: N2O Corrected | V21: GWP | W21: Recycled | X21: Landfill | Y21: Combusted | Z21: tCO2e Emission Equivalent
B22: 2021 | C22: UAB Camira Fabrics | D22: Lithuania | E22: Scope_1 | F22: Stationary | G22: =LOOKUP(Table146135136137138140141148155162169176183190197204211[[#This Row],[Emission Source]],Table3578[Source],Table3578[Pseudonym]) -> StationaryUS | H22: Natural Gas | I22: =LOOKUP(Table146135136137138140141148155162169176183190197204211[[#This Row],[Emission Sub-source]],Table125[[Emission ]],Table125[Pseudonym]) -> NaturalGasUS | J22: =LOOKUP(Table146135136137138140141148155162169176183190197204211[[#This Row],[Emission Sub-source]],Table44[Fuel Type],Table44[Unit]) -> scf | K22: 100000 | L22: scf | M22: =CONCATENATE(Table146135136137138140141148155162169176183190197204211[[#This Row],[Unit Reported]],Table146135136137138140141148155162169176183190197204211[[#This Row],[Unit Required]]) -> scfscf | N22: =LOOKUP(Table146135136137138140141148155162169176183190197204211[[#This Row],[Concatenate Units]],Table43[Concatenate],Table43[Multiply By]) -> 1 | O22: =Table146135136137138140141148155162169176183190197204211[[#This Row],[Data (Raw)]]*Table146135136137138140141148155162169176183190197204211[[#This Row],[Unit Conversion]] -> 100000 | P22: =Table146135136137138140141148155162169176183190197204211[[#This Row],[Unit Required]] -> scf | Q22: =LOOKUP(Table146135136137138140141148155162169176183190197204211[[#This Row],[Emission Sub-source]],Table44[Fuel Type],Table44[CO2 Factor (kg / Unit)]) -> 0.05444 | R22: =LOOKUP(Table146135136137138140141148155162169176183190197204211[[#This Row],[Emission Sub-source]],Table44[Fuel Type],Table44[CH4 Factor (g / unit)]) -> 0.00103 | S22: =(Table146135136137138140141148155162169176183190197204211[[#This Row],[CH4]]/1000)*25 -> 2.575e-05 | T22: =LOOKUP(Table146135136137138140141148155162169176183190197204211[[#This Row],[Emission Sub-source]],Table44[Fuel Type],Table44[N2O Factor (g / unit)]) -> 0.0001 | U22: =(Table146135136137138140141148155162169176183190197204211[[#This Row],[N2O]]/1000)*298 -> 2.98e-05 | V22: =(LOOKUP(Table146135136137138140141148155162169176183190197204211[[#This Row],[Emission Sub-source]],Table44[Fuel Type],Table44[GWP])) -> 0 | W22: =Table146135136137138140141148155162169176183190197204211[[#This Row],[Data (Corrected)]]*(LOOKUP(Table146135136137138140141148155162169176183190197204211[[#This Row],[Emission Sub-source]],Table44[Fuel Type],Table44[Recycled CO2 Factor])) -> 0 | X22: =Table146135136137138140141148155162169176183190197204211[[#This Row],[Data (Corrected)]]*(LOOKUP(Table146135136137138140141148155162169176183190197204211[[#This Row],[Emission Sub-source]],Table44[Fuel Type],Table44[Landfill CO2 Factor])) -> 0 | Y22: =Table146135136137138140141148155162169176183190197204211[[#This Row],[Data (Corrected)]]*(LOOKUP(Table146135136137138140141148155162169176183190197204211[[#This Row],[Emission Sub-source]],Table44[Fuel Type],Table44[Combusted CO2 Factor])) -> 0 | Z22: =((Table146135136137138140141148155162169176183190197204211[[#This Row],[CO2]]+Table146135136137138140141148155162169176183190197204211[[#This Row],[CH4 Corrected]]+Table146135136137138140141148155162169176183190197204211[[#This Row],[N2O Corrected]]+Table146135136137138140141148155162169176183190197204211[[#This Row],[GWP]]+Table146135136137138140141148155162169176183190197204211[[#This Row],[Recycled]]+Table146135136137138140141148155162169176183190197204211[[#This Row],[Landfill]]+Table146135136137138140141148155162169176183190197204211[[#This Row],[Combusted]])*Table146135136137138140141148155162169176183190197204211[[#This Row],[Data (Corrected)]])/1000 -> 5.449555
B24: US - EPA
B25: Reporting year | C25: Entity | D25: Location | E25: Scope | F25: Emission Source | G25: Source Pseudonym | H25: Emission Sub-source | I25: Emission Pseudonym | J25: Unit Required | K25: Data (Raw) | L25: Unit Reported | M25: Concatenate Units | N25: Unit Conversion | O25: Data (Corrected) | P25: Unit (Corrected) | Q25: CO2 | R25: CH4 | S25: CH4 Corrected | T25: N2O | U25: N2O Corrected | V25: GWP | W25: Recycled | X25: Landfill | Y25: Combusted | Z25: tCO2e Emission Equivalent
B26: 2021 | C26: Camira Group, Inc | D26: Grand Rapids | E26: Scope_1 | F26: Stationary | G26: =LOOKUP(Table146135142149156163170177184191198205[[#This Row],[Emission Source]],Table3578[Source],Table3578[Pseudonym]) -> StationaryUS | H26: Natural Gas | I26: =LOOKUP(Table146135142149156163170177184191198205[[#This Row],[Emission Sub-source]],Table125[[Emission ]],Table125[Pseudonym]) -> NaturalGasUS | J26: =LOOKUP(Table146135142149156163170177184191198205[[#This Row],[Emission Sub-source]],Table44[Fuel Type],Table44[Unit]) -> scf | K26: 100000 | L26: scf | M26: =CONCATENATE(Table146135142149156163170177184191198205[[#This Row],[Unit Reported]],Table146135142149156163170177184191198205[[#This Row],[Unit Required]]) -> scfscf | N26: =LOOKUP(Table146135142149156163170177184191198205[[#This Row],[Concatenate Units]],Table43[Concatenate],Table43[Multiply By]) -> 1 | O26: =Table146135142149156163170177184191198205[[#This Row],[Data (Raw)]]*Table146135142149156163170177184191198205[[#This Row],[Unit Conversion]] -> 100000 | P26: =Table146135142149156163170177184191198205[[#This Row],[Unit Required]] -> scf | Q26: =LOOKUP(Table146135142149156163170177184191198205[[#This Row],[Emission Sub-source]],Table44[Fuel Type],Table44[CO2 Factor (kg / Unit)]) -> 0.05444 | R26: =LOOKUP(Table146135142149156163170177184191198205[[#This Row],[Emission Sub-source]],Table44[Fuel Type],Table44[CH4 Factor (g / unit)]) -> 0.00103 | S26: =(Table146135142149156163170177184191198205[[#This Row],[CH4]]/1000)*25 -> 2.575e-05 | T26: =LOOKUP(Table146135142149156163170177184191198205[[#This Row],[Emission Sub-source]],Table44[Fuel Type],Table44[N2O Factor (g / unit)]) -> 0.0001 | U26: =(Table146135142149156163170177184191198205[[#This Row],[N2O]]/1000)*298 -> 2.98e-05 | V26: =(LOOKUP(Table146135142149156163170177184191198205[[#This Row],[Emission Sub-source]],Table44[Fuel Type],Table44[GWP])) -> 0 | W26: =Table146135142149156163170177184191198205[[#This Row],[Data (Corrected)]]*(LOOKUP(Table146135142149156163170177184191198205[[#This Row],[Emission Sub-source]],Table44[Fuel Type],Table44[Recycled CO2 Factor])) -> 0 | X26: =Table146135142149156163170177184191198205[[#This Row],[Data (Corrected)]]*(LOOKUP(Table146135142149156163170177184191198205[[#This Row],[Emission Sub-source]],Table44[Fuel Type],Table44[Landfill CO2 Factor])) -> 0 | Y26: =Table146135142149156163170177184191198205[[#This Row],[Data (Corrected)]]*(LOOKUP(Table146135142149156163170177184191198205[[#This Row],[Emission Sub-source]],Table44[Fuel Type],Table44[Combusted CO2 Factor])) -> 0 | Z26: =((Table146135142149156163170177184191198205[[#This Row],[CO2]]+Table146135142149156163170177184191198205[[#This Row],[CH4 Corrected]]+Table146135142149156163170177184191198205[[#This Row],[N2O Corrected]]+Table146135142149156163170177184191198205[[#This Row],[GWP]]+Table146135142149156163170177184191198205[[#This Row],[Recycled]]+Table146135142149156163170177184191198205[[#This Row],[Landfill]]+Table146135142149156163170177184191198205[[#This Row],[Combusted]])*Table146135142149156163170177184191198205[[#This Row],[Data (Corrected)]])/1000 -> 5.449555

Sheet 3.5 (hidden)
B2: Greenhouse Gas Emission Analysis - Supplier Scope 1 & 2 - Waste Provider
B4: UK - DBEIS/DEFRA
B5: Reporting year | C5: Entity | D5: Location | E5: Scope | F5: Emission Source | G5: Source Pseudonym | H5: Emission Sub-source | I5: Emission Pseudonym | J5: Unit Required | K5: Data (Raw) | L5: Unit Reported | M5: Concatenate Units | N5: Unit Conversion | O5: Data (Corrected) | P5: Unit (Corrected) | Q5: CO2 | R5: CH4 | S5: CH4 Corrected | T5: N2O | U5: N2O Corrected | V5: GWP | W5: Recycled | X5: Landfill | Y5: Combusted | Z5: tCO2e Emission Equivalent
B6: 2021 | C6: Camira Fabrics Limited | D6: Mirfield | E6: Scope_1 | F6: Stationary | G6: =LOOKUP(Table146135136143150157164171178185192199206213[[#This Row],[Emission Source]],Table3578[Source],Table3578[Pseudonym]) -> StationaryUS | H6: Natural Gas | I6: =LOOKUP(Table146135136143150157164171178185192199206213[[#This Row],[Emission Sub-source]],Table125[[Emission ]],Table125[Pseudonym]) -> NaturalGasUS | J6: =LOOKUP(Table146135136143150157164171178185192199206213[[#This Row],[Emission Sub-source]],Table44[Fuel Type],Table44[Unit]) -> scf | K6: 100000 | L6: scf | M6: =CONCATENATE(Table146135136143150157164171178185192199206213[[#This Row],[Unit Reported]],Table146135136143150157164171178185192199206213[[#This Row],[Unit Required]]) -> scfscf | N6: =LOOKUP(Table146135136143150157164171178185192199206213[[#This Row],[Concatenate Units]],Table43[Concatenate],Table43[Multiply By]) -> 1 | O6: =Table146135136143150157164171178185192199206213[[#This Row],[Data (Raw)]]*Table146135136143150157164171178185192199206213[[#This Row],[Unit Conversion]] -> 100000 | P6: =Table146135136143150157164171178185192199206213[[#This Row],[Unit Required]] -> scf | Q6: =LOOKUP(Table146135136143150157164171178185192199206213[[#This Row],[Emission Sub-source]],Table44[Fuel Type],Table44[CO2 Factor (kg / Unit)]) -> 0.05444 | R6: =LOOKUP(Table146135136143150157164171178185192199206213[[#This Row],[Emission Sub-source]],Table44[Fuel Type],Table44[CH4 Factor (g / unit)]) -> 0.00103 | S6: =(Table146135136143150157164171178185192199206213[[#This Row],[CH4]]/1000)*25 -> 2.575e-05 | T6: =LOOKUP(Table146135136143150157164171178185192199206213[[#This Row],[Emission Sub-source]],Table44[Fuel Type],Table44[N2O Factor (g / unit)]) -> 0.0001 | U6: =(Table146135136143150157164171178185192199206213[[#This Row],[N2O]]/1000)*298 -> 2.98e-05 | V6: =(LOOKUP(Table146135136143150157164171178185192199206213[[#This Row],[Emission Sub-source]],Table44[Fuel Type],Table44[GWP])) -> 0 | W6: =Table146135136143150157164171178185192199206213[[#This Row],[Data (Corrected)]]*(LOOKUP(Table146135136143150157164171178185192199206213[[#This Row],[Emission Sub-source]],Table44[Fuel Type],Table44[Recycled CO2 Factor])) -> 0 | X6: =Table146135136143150157164171178185192199206213[[#This Row],[Data (Corrected)]]*(LOOKUP(Table146135136143150157164171178185192199206213[[#This Row],[Emission Sub-source]],Table44[Fuel Type],Table44[Landfill CO2 Factor])) -> 0 | Y6: =Table146135136143150157164171178185192199206213[[#This Row],[Data (Corrected)]]*(LOOKUP(Table146135136143150157164171178185192199206213[[#This Row],[Emission Sub-source]],Table44[Fuel Type],Table44[Combusted CO2 Factor])) -> 0 | Z6: =((Table146135136143150157164171178185192199206213[[#This Row],[CO2]]+Table146135136143150157164171178185192199206213[[#This Row],[CH4 Corrected]]+Table146135136143150157164171178185192199206213[[#This Row],[N2O Corrected]]+Table146135136143150157164171178185192199206213[[#This Row],[GWP]]+Table146135136143150157164171178185192199206213[[#This Row],[Recycled]]+Table146135136143150157164171178185192199206213[[#This Row],[Landfill]]+Table146135136143150157164171178185192199206213[[#This Row],[Combusted]])*Table146135136143150157164171178185192199206213[[#This Row],[Data (Corrected)]])/1000 -> 5.449555
B8: Reporting year | C8: Entity | D8: Location | E8: Scope | F8: Emission Source | G8: Source Pseudonym | H8: Emission Sub-source | I8: Emission Pseudonym | J8: Unit Required | K8: Data (Raw) | L8: Unit Reported | M8: Concatenate Units | N8: Unit Conversion | O8: Data (Corrected) | P8: Unit (Corrected) | Q8: CO2 | R8: CH4 | S8: CH4 Corrected | T8: N2O | U8: N2O Corrected | V8: GWP | W8: Recycled | X8: Landfill | Y8: Combusted | Z8: tCO2e Emission Equivalent
B9: 2021 | C9: Camira Fabrics Limited | D9: Meltham | E9: Scope_1 | F9: Stationary | G9: =LOOKUP(Table146135136137144151158165172179186193200207214[[#This Row],[Emission Source]],Table3578[Source],Table3578[Pseudonym]) -> StationaryUS | H9: Natural Gas | I9: =LOOKUP(Table146135136137144151158165172179186193200207214[[#This Row],[Emission Sub-source]],Table125[[Emission ]],Table125[Pseudonym]) -> NaturalGasUS | J9: =LOOKUP(Table146135136137144151158165172179186193200207214[[#This Row],[Emission Sub-source]],Table44[Fuel Type],Table44[Unit]) -> scf | K9: 100000 | L9: scf | M9: =CONCATENATE(Table146135136137144151158165172179186193200207214[[#This Row],[Unit Reported]],Table146135136137144151158165172179186193200207214[[#This Row],[Unit Required]]) -> scfscf | N9: =LOOKUP(Table146135136137144151158165172179186193200207214[[#This Row],[Concatenate Units]],Table43[Concatenate],Table43[Multiply By]) -> 1 | O9: =Table146135136137144151158165172179186193200207214[[#This Row],[Data (Raw)]]*Table146135136137144151158165172179186193200207214[[#This Row],[Unit Conversion]] -> 100000 | P9: =Table146135136137144151158165172179186193200207214[[#This Row],[Unit Required]] -> scf | Q9: =LOOKUP(Table146135136137144151158165172179186193200207214[[#This Row],[Emission Sub-source]],Table44[Fuel Type],Table44[CO2 Factor (kg / Unit)]) -> 0.05444 | R9: =LOOKUP(Table146135136137144151158165172179186193200207214[[#This Row],[Emission Sub-source]],Table44[Fuel Type],Table44[CH4 Factor (g / unit)]) -> 0.00103 | S9: =(Table146135136137144151158165172179186193200207214[[#This Row],[CH4]]/1000)*25 -> 2.575e-05 | T9: =LOOKUP(Table146135136137144151158165172179186193200207214[[#This Row],[Emission Sub-source]],Table44[Fuel Type],Table44[N2O Factor (g / unit)]) -> 0.0001 | U9: =(Table146135136137144151158165172179186193200207214[[#This Row],[N2O]]/1000)*298 -> 2.98e-05 | V9: =(LOOKUP(Table146135136137144151158165172179186193200207214[[#This Row],[Emission Sub-source]],Table44[Fuel Type],Table44[GWP])) -> 0 | W9: =Table146135136137144151158165172179186193200207214[[#This Row],[Data (Corrected)]]*(LOOKUP(Table146135136137144151158165172179186193200207214[[#This Row],[Emission Sub-source]],Table44[Fuel Type],Table44[Recycled CO2 Factor])) -> 0 | X9: =Table146135136137144151158165172179186193200207214[[#This Row],[Data (Corrected)]]*(LOOKUP(Table146135136137144151158165172179186193200207214[[#This Row],[Emission Sub-source]],Table44[Fuel Type],Table44[Landfill CO2 Factor])) -> 0 | Y9: =Table146135136137144151158165172179186193200207214[[#This Row],[Data (Corrected)]]*(LOOKUP(Table146135136137144151158165172179186193200207214[[#This Row],[Emission Sub-source]],Table44[Fuel Type],Table44[Combusted CO2 Factor])) -> 0 | Z9: =((Table146135136137144151158165172179186193200207214[[#This Row],[CO2]]+Table146135136137144151158165172179186193200207214[[#This Row],[CH4 Corrected]]+Table146135136137144151158165172179186193200207214[[#This Row],[N2O Corrected]]+Table146135136137144151158165172179186193200207214[[#This Row],[GWP]]+Table146135136137144151158165172179186193200207214[[#This Row],[Recycled]]+Table146135136137144151158165172179186193200207214[[#This Row],[Landfill]]+Table146135136137144151158165172179186193200207214[[#This Row],[Combusted]])*Table146135136137144151158165172179186193200207214[[#This Row],[Data (Corrected)]])/1000 -> 5.449555
B11: Reporting year | C11: Entity | D11: Location | E11: Scope | F11: Emission Source | G11: Source Pseudonym | H11: Emission Sub-source | I11: Emission Pseudonym | J11: Unit Required | K11: Data (Raw) | L11: Unit Reported | M11: Concatenate Units | N11: Unit Conversion | O11: Data (Corrected) | P11: Unit (Corrected) | Q11: CO2 | R11: CH4 | S11: CH4 Corrected | T11: N2O | U11: N2O Corrected | V11: GWP | W11: Recycled | X11: Landfill | Y11: Combusted | Z11: tCO2e Emission Equivalent
B12: 2021 | C12: Camira Fabrics Limited | D12: Nottingham | E12: Scope_1 | F12: Stationary | G12: =LOOKUP(Table146135136137138145152159166173180187194201208215[[#This Row],[Emission Source]],Table3578[Source],Table3578[Pseudonym]) -> StationaryUS | H12: Natural Gas | I12: =LOOKUP(Table146135136137138145152159166173180187194201208215[[#This Row],[Emission Sub-source]],Table125[[Emission ]],Table125[Pseudonym]) -> NaturalGasUS | J12: =LOOKUP(Table146135136137138145152159166173180187194201208215[[#This Row],[Emission Sub-source]],Table44[Fuel Type],Table44[Unit]) -> scf | K12: 100000 | L12: scf | M12: =CONCATENATE(Table146135136137138145152159166173180187194201208215[[#This Row],[Unit Reported]],Table146135136137138145152159166173180187194201208215[[#This Row],[Unit Required]]) -> scfscf | N12: =LOOKUP(Table146135136137138145152159166173180187194201208215[[#This Row],[Concatenate Units]],Table43[Concatenate],Table43[Multiply By]) -> 1 | O12: =Table146135136137138145152159166173180187194201208215[[#This Row],[Data (Raw)]]*Table146135136137138145152159166173180187194201208215[[#This Row],[Unit Conversion]] -> 100000 | P12: =Table146135136137138145152159166173180187194201208215[[#This Row],[Unit Required]] -> scf | Q12: =LOOKUP(Table146135136137138145152159166173180187194201208215[[#This Row],[Emission Sub-source]],Table44[Fuel Type],Table44[CO2 Factor (kg / Unit)]) -> 0.05444 | R12: =LOOKUP(Table146135136137138145152159166173180187194201208215[[#This Row],[Emission Sub-source]],Table44[Fuel Type],Table44[CH4 Factor (g / unit)]) -> 0.00103 | S12: =(Table146135136137138145152159166173180187194201208215[[#This Row],[CH4]]/1000)*25 -> 2.575e-05 | T12: =LOOKUP(Table146135136137138145152159166173180187194201208215[[#This Row],[Emission Sub-source]],Table44[Fuel Type],Table44[N2O Factor (g / unit)]) -> 0.0001 | U12: =(Table146135136137138145152159166173180187194201208215[[#This Row],[N2O]]/1000)*298 -> 2.98e-05 | V12: =(LOOKUP(Table146135136137138145152159166173180187194201208215[[#This Row],[Emission Sub-source]],Table44[Fuel Type],Table44[GWP])) -> 0 | W12: =Table146135136137138145152159166173180187194201208215[[#This Row],[Data (Corrected)]]*(LOOKUP(Table146135136137138145152159166173180187194201208215[[#This Row],[Emission Sub-source]],Table44[Fuel Type],Table44[Recycled CO2 Factor])) -> 0 | X12: =Table146135136137138145152159166173180187194201208215[[#This Row],[Data (Corrected)]]*(LOOKUP(Table146135136137138145152159166173180187194201208215[[#This Row],[Emission Sub-source]],Table44[Fuel Type],Table44[Landfill CO2 Factor])) -> 0 | Y12: =Table146135136137138145152159166173180187194201208215[[#This Row],[Data (Corrected)]]*(LOOKUP(Table146135136137138145152159166173180187194201208215[[#This Row],[Emission Sub-source]],Table44[Fuel Type],Table44[Combusted CO2 Factor])) -> 0 | Z12: =((Table146135136137138145152159166173180187194201208215[[#This Row],[CO2]]+Table146135136137138145152159166173180187194201208215[[#This Row],[CH4 Corrected]]+Table146135136137138145152159166173180187194201208215[[#This Row],[N2O Corrected]]+Table146135136137138145152159166173180187194201208215[[#This Row],[GWP]]+Table146135136137138145152159166173180187194201208215[[#This Row],[Recycled]]+Table146135136137138145152159166173180187194201208215[[#This Row],[Landfill]]+Table146135136137138145152159166173180187194201208215[[#This Row],[Combusted]])*Table146135136137138145152159166173180187194201208215[[#This Row],[Data (Corrected)]])/1000 -> 5.449555
B14: Reporting year | C14: Entity | D14: Location | E14: Scope | F14: Emission Source | G14: Source Pseudonym | H14: Emission Sub-source | I14: Emission Pseudonym | J14: Unit Required | K14: Data (Raw) | L14: Unit Reported | M14: Concatenate Units | N14: Unit Conversion | O14: Data (Corrected) | P14: Unit (Corrected) | Q14: CO2 | R14: CH4 | S14: CH4 Corrected | T14: N2O | U14: N2O Corrected | V14: GWP | W14: Recycled | X14: Landfill | Y14: Combusted | Z14: tCO2e Emission Equivalent
B15: 2021 | C15: Camira Fabrics Limited | D15: Birkby | E15: Scope_1 | F15: Stationary | G15: =LOOKUP(Table146135136137138139146153160167174181188195202209216[[#This Row],[Emission Source]],Table3578[Source],Table3578[Pseudonym]) -> StationaryUS | H15: Natural Gas | I15: =LOOKUP(Table146135136137138139146153160167174181188195202209216[[#This Row],[Emission Sub-source]],Table125[[Emission ]],Table125[Pseudonym]) -> NaturalGasUS | J15: =LOOKUP(Table146135136137138139146153160167174181188195202209216[[#This Row],[Emission Sub-source]],Table44[Fuel Type],Table44[Unit]) -> scf | K15: 100000 | L15: scf | M15: =CONCATENATE(Table146135136137138139146153160167174181188195202209216[[#This Row],[Unit Reported]],Table146135136137138139146153160167174181188195202209216[[#This Row],[Unit Required]]) -> scfscf | N15: =LOOKUP(Table146135136137138139146153160167174181188195202209216[[#This Row],[Concatenate Units]],Table43[Concatenate],Table43[Multiply By]) -> 1 | O15: =Table146135136137138139146153160167174181188195202209216[[#This Row],[Data (Raw)]]*Table146135136137138139146153160167174181188195202209216[[#This Row],[Unit Conversion]] -> 100000 | P15: =Table146135136137138139146153160167174181188195202209216[[#This Row],[Unit Required]] -> scf | Q15: =LOOKUP(Table146135136137138139146153160167174181188195202209216[[#This Row],[Emission Sub-source]],Table44[Fuel Type],Table44[CO2 Factor (kg / Unit)]) -> 0.05444 | R15: =LOOKUP(Table146135136137138139146153160167174181188195202209216[[#This Row],[Emission Sub-source]],Table44[Fuel Type],Table44[CH4 Factor (g / unit)]) -> 0.00103 | S15: =(Table146135136137138139146153160167174181188195202209216[[#This Row],[CH4]]/1000)*25 -> 2.575e-05 | T15: =LOOKUP(Table146135136137138139146153160167174181188195202209216[[#This Row],[Emission Sub-source]],Table44[Fuel Type],Table44[N2O Factor (g / unit)]) -> 0.0001 | U15: =(Table146135136137138139146153160167174181188195202209216[[#This Row],[N2O]]/1000)*298 -> 2.98e-05 | V15: =(LOOKUP(Table146135136137138139146153160167174181188195202209216[[#This Row],[Emission Sub-source]],Table44[Fuel Type],Table44[GWP])) -> 0 | W15: =Table146135136137138139146153160167174181188195202209216[[#This Row],[Data (Corrected)]]*(LOOKUP(Table146135136137138139146153160167174181188195202209216[[#This Row],[Emission Sub-source]],Table44[Fuel Type],Table44[Recycled CO2 Factor])) -> 0 | X15: =Table146135136137138139146153160167174181188195202209216[[#This Row],[Data (Corrected)]]*(LOOKUP(Table146135136137138139146153160167174181188195202209216[[#This Row],[Emission Sub-source]],Table44[Fuel Type],Table44[Landfill CO2 Factor])) -> 0 | Y15: =Table146135136137138139146153160167174181188195202209216[[#This Row],[Data (Corrected)]]*(LOOKUP(Table146135136137138139146153160167174181188195202209216[[#This Row],[Emission Sub-source]],Table44[Fuel Type],Table44[Combusted CO2 Factor])) -> 0 | Z15: =((Table146135136137138139146153160167174181188195202209216[[#This Row],[CO2]]+Table146135136137138139146153160167174181188195202209216[[#This Row],[CH4 Corrected]]+Table146135136137138139146153160167174181188195202209216[[#This Row],[N2O Corrected]]+Table146135136137138139146153160167174181188195202209216[[#This Row],[GWP]]+Table146135136137138139146153160167174181188195202209216[[#This Row],[Recycled]]+Table146135136137138139146153160167174181188195202209216[[#This Row],[Landfill]]+Table146135136137138139146153160167174181188195202209216[[#This Row],[Combusted]])*Table146135136137138139146153160167174181188195202209216[[#This Row],[Data (Corrected)]])/1000 -> 5.449555
B17: Reporting year | C17: Entity | D17: Location | E17: Scope | F17: Emission Source | G17: Source Pseudonym | H17: Emission Sub-source | I17: Emission Pseudonym | J17: Unit Required | K17: Data (Raw) | L17: Unit Reported | M17: Concatenate Units | N17: Unit Conversion | O17: Data (Corrected) | P17: Unit (Corrected) | Q17: CO2 | R17: CH4 | S17: CH4 Corrected | T17: N2O | U17: N2O Corrected | V17: GWP | W17: Recycled | X17: Landfill | Y17: Combusted | Z17: tCO2e Emission Equivalent
